extractdate,publisheruri,publisherlabel,serviceyypeuri,servicetypelabel,DATE OF TRANSACTION,LA DEPARTMENT INCURRING SPEND,BENEFICIARY,GROSS AMOUNT,SUMMARY OF PURPOSE OF SPEND,MERCHANT CATEGORY
29/10/2015,http://opendatacommunities.org/id/county-council/surrey,Surrey,http://id.esd.org.uk/service/1465,Council expenditure,26/06/2015,CLOSED LANDFILL,RS COMPONENTS,11.21,EQUIPMENT,ELECTRICAL PARTS AND EQUIPMENT
29/10/2015,http://opendatacommunities.org/id/county-council/surrey,Surrey,http://id.esd.org.uk/service/1465,Council expenditure,26/06/2015,LEAVING CARE PACKAGES,COUNTRYWIDE RESIDENTIA,700,INDEPENDENT LIVING PLACEMENTS,PROFESSIONAL SERVICES-NOT ELSEWHERE CLASSIFIED
29/10/2015,http://opendatacommunities.org/id/county-council/surrey,Surrey,http://id.esd.org.uk/service/1465,Council expenditure,26/06/2015,SW CARE - LAC,SURREY CC CARD PAY,11,LEGAL EXPENSES,COMPUTER NETWORK/INFORMATION SERVICES
29/10/2015,http://opendatacommunities.org/id/county-council/surrey,Surrey,http://id.esd.org.uk/service/1465,Council expenditure,26/06/2015,TRANSPORT,ALLBATTERIES UK LTD,63.77,OPERATIONAL FIRE EQUIPMENT,ELECTRICAL PARTS AND EQUIPMENT
29/10/2015,http://opendatacommunities.org/id/county-council/surrey,Surrey,http://id.esd.org.uk/service/1465,Council expenditure,26/06/2015,SOLD ESTATES MANAGEMENT,WWW.DVLA.GOV.UK,292.5,VEHICLE RUNNING COSTS,GOVERNMENT SERVICES-NOT ELSEWHERE CLASSIFIED
29/10/2015,http://opendatacommunities.org/id/county-council/surrey,Surrey,http://id.esd.org.uk/service/1465,Council expenditure,26/06/2015,HEAD OF SCH COMMISSIONING & ADMISSIONS,GOVKNOW EVENTS LIMITED,180,SUBSISTENCE AND CONFERENCE EXPENSES,BUSINESS SERVICES-NOT ELSEWHERE CLASSIFIED
29/10/2015,http://opendatacommunities.org/id/county-council/surrey,Surrey,http://id.esd.org.uk/service/1465,Council expenditure,26/06/2015,SOLD DAY TO DAY OPERATIONS,AMAZON UK MARKETPLACE,37.74,EQUIPMENT,BOOK STORES
29/10/2015,http://opendatacommunities.org/id/county-council/surrey,Surrey,http://id.esd.org.uk/service/1465,Council expenditure,26/06/2015,KARIBU COMMUNITY HOME,AMAZON UK MARKETPLACE,19,EQUIPMENT,BOOK STORES
29/10/2015,http://opendatacommunities.org/id/county-council/surrey,Surrey,http://id.esd.org.uk/service/1465,Council expenditure,26/06/2015,RUTH HOUSE,BUYSPARES,-1,EQUIPMENT,ELECTRICAL PARTS AND EQUIPMENT
29/10/2015,http://opendatacommunities.org/id/county-council/surrey,Surrey,http://id.esd.org.uk/service/1465,Council expenditure,26/06/2015,TRANSPORT,DVSA,420,VEHICLE REPAIRS AND MAINTENANCE,GOVERNMENT SERVICES-NOT ELSEWHERE CLASSIFIED
29/10/2015,http://opendatacommunities.org/id/county-council/surrey,Surrey,http://id.esd.org.uk/service/1465,Council expenditure,26/06/2015,LIBERTAS COMMUNITY HOME,OCADO LTD.,146.94,PURCHASE OF FOOD (RAW MATERIALS),"MISC FOOD STORE-CONVENIENCE,MRKT,SPLTY,VENDNG MACS"
29/10/2015,http://opendatacommunities.org/id/county-council/surrey,Surrey,http://id.esd.org.uk/service/1465,Council expenditure,26/06/2015,KARIBU COMMUNITY HOME,SAINSBURYS SACAT 0683,36.1,PURCHASE OF FOOD (RAW MATERIALS),"GROCERY STORES, SUPERMARKETS"
29/10/2015,http://opendatacommunities.org/id/county-council/surrey,Surrey,http://id.esd.org.uk/service/1465,Council expenditure,26/06/2015,HOPE SERVICE - EAST,"AMAZON SVCS EUROPE,SAR",-45.98,EQUIPMENT,BOOK STORES
29/10/2015,http://opendatacommunities.org/id/county-council/surrey,Surrey,http://id.esd.org.uk/service/1465,Council expenditure,26/06/2015,NORTH EAST AREA TEAM,SAINSBURYS SACAT 0683,13.98,EQUIPMENT,"GROCERY STORES, SUPERMARKETS"
29/10/2015,http://opendatacommunities.org/id/county-council/surrey,Surrey,http://id.esd.org.uk/service/1465,Council expenditure,26/06/2015,IMT CRITICAL ENVIRONMENTS,QUOTIENT LTD,24,COMPUTER SERVICES,COMPUTER SOFTWARE STORES
29/10/2015,http://opendatacommunities.org/id/county-council/surrey,Surrey,http://id.esd.org.uk/service/1465,Council expenditure,26/06/2015,PROPERTY OPERATIONS TEAM,TOOLSTATION LTD,64.8,PURCHASE OF BUILDING MATERIALS,HARDWARE STORES
29/10/2015,http://opendatacommunities.org/id/county-council/surrey,Surrey,http://id.esd.org.uk/service/1465,Council expenditure,26/06/2015,COBGATES RESIDENTIAL CARE,AMAZON EU,9.6,EQUIPMENT,DIRECT MARKETING-OTHER DIRECT MARKETERS/NOT ELSEW.
29/10/2015,http://opendatacommunities.org/id/county-council/surrey,Surrey,http://id.esd.org.uk/service/1465,Council expenditure,26/06/2015,IMT MODERN WORKER,AMAZON EU,529,COMPUTER HARDWARE,DIRECT MARKETING-OTHER DIRECT MARKETERS/NOT ELSEW.
29/10/2015,http://opendatacommunities.org/id/county-council/surrey,Surrey,http://id.esd.org.uk/service/1465,Council expenditure,26/06/2015,SOLD DAY TO DAY OPERATIONS,AMAZON UK MARKETPLACE,25.16,EQUIPMENT,BOOK STORES
29/10/2015,http://opendatacommunities.org/id/county-council/surrey,Surrey,http://id.esd.org.uk/service/1465,Council expenditure,26/06/2015,IMT MODERN WORKER,"AMAZON SVCS EUROPE,SAR",67.98,COMPUTER HARDWARE,BOOK STORES
29/10/2015,http://opendatacommunities.org/id/county-council/surrey,Surrey,http://id.esd.org.uk/service/1465,Council expenditure,26/06/2015,HILLSIDE,SAINSBURYS 0675,47.33,PURCHASE OF FOOD (RAW MATERIALS),"GROCERY STORES, SUPERMARKETS"
29/10/2015,http://opendatacommunities.org/id/county-council/surrey,Surrey,http://id.esd.org.uk/service/1465,Council expenditure,26/06/2015,RUTH HOUSE,"AMAZON SVCS EUROPE,SAR",111.94,FURNITURE,BOOK STORES
29/10/2015,http://opendatacommunities.org/id/county-council/surrey,Surrey,http://id.esd.org.uk/service/1465,Council expenditure,26/06/2015,ACL CENTRAL EXPENDITURE,AMAZON EU,28.38,DAY TO DAY MAINTENANCE,DIRECT MARKETING-OTHER DIRECT MARKETERS/NOT ELSEW.
29/10/2015,http://opendatacommunities.org/id/county-council/surrey,Surrey,http://id.esd.org.uk/service/1465,Council expenditure,26/06/2015,"SW REF, ASS & INT SERVICE - HUB 1",IKEA ONLINE,205,FURNITURE,MISCELLANEOUS HOUSE FURNISHING SPECIALTY SHOPS
29/10/2015,http://opendatacommunities.org/id/county-council/surrey,Surrey,http://id.esd.org.uk/service/1465,Council expenditure,26/06/2015,RUTH HOUSE,BUYSPARES,-9,EDUC VISITS/HOLS/CAMPS/TOYS,ELECTRICAL PARTS AND EQUIPMENT
29/10/2015,http://opendatacommunities.org/id/county-council/surrey,Surrey,http://id.esd.org.uk/service/1465,Council expenditure,26/06/2015,PENSIONS TEAM,WWW.LOCAL.GOV.UK,276,SUBSISTENCE AND CONFERENCE EXPENSES,BUSINESS SERVICES-NOT ELSEWHERE CLASSIFIED
29/10/2015,http://opendatacommunities.org/id/county-council/surrey,Surrey,http://id.esd.org.uk/service/1465,Council expenditure,26/06/2015,MALLOW CRESCENT,HOMEBASE LTD 050,23.98,EQUIPMENT,"BUILDING MATERIALS, LUMBER STORES"
29/10/2015,http://opendatacommunities.org/id/county-council/surrey,Surrey,http://id.esd.org.uk/service/1465,Council expenditure,26/06/2015,HERITAGE PARTNERSHIP AND LEARNING,PREMIER INN44016350,262,SUBSISTENCE AND CONFERENCE EXPENSES,PREMIER INN
29/10/2015,http://opendatacommunities.org/id/county-council/surrey,Surrey,http://id.esd.org.uk/service/1465,Council expenditure,26/06/2015,LOWER MOLE COUNTRYSIDE PROJECT,SAINSBURYS 0683,75.35,REFRESHMENT COSTS,"GROCERY STORES, SUPERMARKETS"
29/10/2015,http://opendatacommunities.org/id/county-council/surrey,Surrey,http://id.esd.org.uk/service/1465,Council expenditure,26/06/2015,SE CARE - LAC,SURREY CC CARD PAY,21,CHILDREN ACT SEC 17 PAYMENTS,COMPUTER NETWORK/INFORMATION SERVICES
29/10/2015,http://opendatacommunities.org/id/county-council/surrey,Surrey,http://id.esd.org.uk/service/1465,Council expenditure,26/06/2015,BURBANK COMMUNITY HOME,WICKES,25.58,EQUIPMENT,HOME SUPPLY WAREHOUSE STORES
29/10/2015,http://opendatacommunities.org/id/county-council/surrey,Surrey,http://id.esd.org.uk/service/1465,Council expenditure,26/06/2015,NW SECTION 17 CARE,TRAVELODGE WEBSITE,409.95,CHILDREN ACT SEC 17 PAYMENTS,TRAVELODGE
29/10/2015,http://opendatacommunities.org/id/county-council/surrey,Surrey,http://id.esd.org.uk/service/1465,Council expenditure,26/06/2015,INCLUSION VIRTUAL LEARNING ENVIRONMENT,AMAZON UK MARKETPLACE,30.48,EQUIPMENT,BOOK STORES
29/10/2015,http://opendatacommunities.org/id/county-council/surrey,Surrey,http://id.esd.org.uk/service/1465,Council expenditure,26/06/2015,TARGETED INTERVENTION,TESCO STORES 3220,20.19,EDUC VISITS/HOLS/CAMPS/TOYS,"GROCERY STORES, SUPERMARKETS"
29/10/2015,http://opendatacommunities.org/id/county-council/surrey,Surrey,http://id.esd.org.uk/service/1465,Council expenditure,26/06/2015,ASSET PLANNING - OPERATIONS,ANDREW PAGE LTD,4.49,EQUIPMENT,"AUTOMOTIVE PARTS, ACCESSORIES STORES"
29/10/2015,http://opendatacommunities.org/id/county-council/surrey,Surrey,http://id.esd.org.uk/service/1465,Council expenditure,26/06/2015,NW CARE - LAC,COUNTRYWIDE RESIDENTIA,742,INDEPENDENT LIVING PLACEMENTS,PROFESSIONAL SERVICES-NOT ELSEWHERE CLASSIFIED
29/10/2015,http://opendatacommunities.org/id/county-council/surrey,Surrey,http://id.esd.org.uk/service/1465,Council expenditure,26/06/2015,LSTF GRANT,AMAZON UK MARKETPLACE,44.86,EQUIPMENT,BOOK STORES
29/10/2015,http://opendatacommunities.org/id/county-council/surrey,Surrey,http://id.esd.org.uk/service/1465,Council expenditure,26/06/2015,"SW REF, ASS & INT SERVICE - HUB 1",DAIRY CREST,141.6,REFRESHMENT COSTS,"MISC FOOD STORE-CONVENIENCE,MRKT,SPLTY,VENDNG MACS"
29/10/2015,http://opendatacommunities.org/id/county-council/surrey,Surrey,http://id.esd.org.uk/service/1465,Council expenditure,26/06/2015,PROPERTY OPERATIONS TEAM,"AMAZON SVCS EUROPE,SAR",389.95,EQUIPMENT,BOOK STORES
29/10/2015,http://opendatacommunities.org/id/county-council/surrey,Surrey,http://id.esd.org.uk/service/1465,Council expenditure,26/06/2015,RUTH HOUSE,DOMESTIC & GENERAL,55.4,FEES,"INSURANCE SALES,UNDERWRITING,AND PREMIUMS"
29/10/2015,http://opendatacommunities.org/id/county-council/surrey,Surrey,http://id.esd.org.uk/service/1465,Council expenditure,26/06/2015,CHIEF PROPERTY OFFICER,AMAZON UK MARKETPLACE,13.28,TELECOMMUNICATION CHARGES,BOOK STORES
29/10/2015,http://opendatacommunities.org/id/county-council/surrey,Surrey,http://id.esd.org.uk/service/1465,Council expenditure,26/06/2015,SAP COMPETENCY CENTRE,TRAINLINE.COM,54.06,TRAINING EXPENSES EXTERNAL GENERAL,PASSENGER RAILWAYS
29/10/2015,http://opendatacommunities.org/id/county-council/surrey,Surrey,http://id.esd.org.uk/service/1465,Council expenditure,26/06/2015,TRANSPORT,PLATE AND LOCATE LTD,78,OPERATIONAL FIRE EQUIPMENT,INDUSTRIAL SUPPLIES NOT ELSEWHERE CLASSIFIED
29/10/2015,http://opendatacommunities.org/id/county-council/surrey,Surrey,http://id.esd.org.uk/service/1465,Council expenditure,26/06/2015,AD OPERATIONS HIGHWAYS AND COUNTRYSIDE,WWW.NEOPOST.CO.UK,515,POSTAGE AND COURIER CHARGES,STATIONERY/OFFICE SUPPLIES/PRINTING & WRITING PAP.
29/10/2015,http://opendatacommunities.org/id/county-council/surrey,Surrey,http://id.esd.org.uk/service/1465,Council expenditure,26/06/2015,NW SECTION 17 CARE,TRAVELODGE WEBSITE,174,CHILDREN ACT SEC 17 PAYMENTS,TRAVELODGE
29/10/2015,http://opendatacommunities.org/id/county-council/surrey,Surrey,http://id.esd.org.uk/service/1465,Council expenditure,26/06/2015,IMT MODERN WORKER,"AMAZON SVCS EUROPE,SAR",10.11,FIXTURES AND FITTINGS,BOOK STORES
29/10/2015,http://opendatacommunities.org/id/county-council/surrey,Surrey,http://id.esd.org.uk/service/1465,Council expenditure,26/06/2015,SOLD CATERING,THE BOX TREE,31.25,REFRESHMENT COSTS,"BAR,LOUNGE,DISCO,NIGHTCLUB,TAVERN-ALCOHOLIC DRINKS"
29/10/2015,http://opendatacommunities.org/id/county-council/surrey,Surrey,http://id.esd.org.uk/service/1465,Council expenditure,26/06/2015,LOCAL DELIVERY GROUP,AMAZON EU,7.14,EQUIPMENT,DIRECT MARKETING-OTHER DIRECT MARKETERS/NOT ELSEW.
29/10/2015,http://opendatacommunities.org/id/county-council/surrey,Surrey,http://id.esd.org.uk/service/1465,Council expenditure,26/06/2015,IMT CRITICAL ENVIRONMENTS,AMAZON UK MARKETPLACE,16.31,COMPUTER HARDWARE,BOOK STORES
29/10/2015,http://opendatacommunities.org/id/county-council/surrey,Surrey,http://id.esd.org.uk/service/1465,Council expenditure,26/06/2015,HEAD OF SERVICES FOR YOUNG PEOPLE,AMAZON EU,6.29,TRAINING EXPENSES EXTERNAL GENERAL,DIRECT MARKETING-OTHER DIRECT MARKETERS/NOT ELSEW.
29/10/2015,http://opendatacommunities.org/id/county-council/surrey,Surrey,http://id.esd.org.uk/service/1465,Council expenditure,26/06/2015,PE/CDT MAINTENANCE OVERHEADS,AMER SPORTS UK LTD,62.5,ITEMS PURCHASED FOR RE-SALE,SPORTING GOODS STORES
29/10/2015,http://opendatacommunities.org/id/county-council/surrey,Surrey,http://id.esd.org.uk/service/1465,Council expenditure,26/06/2015,HERITAGE                                ,EB DISCOVERING COLLEGE,36,TRAINING EXPENSES EXTERNAL GENERAL,BUSINESS SERVICES-NOT ELSEWHERE CLASSIFIED
29/10/2015,http://opendatacommunities.org/id/county-council/surrey,Surrey,http://id.esd.org.uk/service/1465,Council expenditure,26/06/2015,HERITAGE                                ,EB DISCOVERING COLLEGE,2.3,TRAINING EXPENSES EXTERNAL GENERAL,BUSINESS SERVICES-NOT ELSEWHERE CLASSIFIED
29/10/2015,http://opendatacommunities.org/id/county-council/surrey,Surrey,http://id.esd.org.uk/service/1465,Council expenditure,26/06/2015,SOLD ESTATES MANAGEMENT,WWW.DVLA.GOV.UK,292.5,VEHICLE RUNNING COSTS,GOVERNMENT SERVICES-NOT ELSEWHERE CLASSIFIED
29/10/2015,http://opendatacommunities.org/id/county-council/surrey,Surrey,http://id.esd.org.uk/service/1465,Council expenditure,26/06/2015,IMT MODERN WORKER,AMAZON EU,15.96,COMPUTER HARDWARE,DIRECT MARKETING-OTHER DIRECT MARKETERS/NOT ELSEW.
29/10/2015,http://opendatacommunities.org/id/county-council/surrey,Surrey,http://id.esd.org.uk/service/1465,Council expenditure,26/06/2015,ASSESSMENT TEAM,AMAZON UK MARKETPLACE,3.65,EQUIPMENT,BOOK STORES
29/10/2015,http://opendatacommunities.org/id/county-council/surrey,Surrey,http://id.esd.org.uk/service/1465,Council expenditure,26/06/2015,TRAINING ENVIRONMENT SERVICES,WWW.LETSRECYCLE.COM,286.8,TRAINING EXPENSES EXTERNAL GENERAL,ADVERTISING SERVICES
29/10/2015,http://opendatacommunities.org/id/county-council/surrey,Surrey,http://id.esd.org.uk/service/1465,Council expenditure,26/06/2015,TRAINING ENVIRONMENT SERVICES,WWW.LETSRECYCLE.COM,288,TRAINING EXPENSES EXTERNAL GENERAL,ADVERTISING SERVICES
29/10/2015,http://opendatacommunities.org/id/county-council/surrey,Surrey,http://id.esd.org.uk/service/1465,Council expenditure,26/06/2015,TARGETED INTERVENTION,W M MORRISONS,2,EDUC VISITS/HOLS/CAMPS/TOYS,"GROCERY STORES, SUPERMARKETS"
29/10/2015,http://opendatacommunities.org/id/county-council/surrey,Surrey,http://id.esd.org.uk/service/1465,Council expenditure,26/06/2015,TARGETED INTERVENTION,TESCO STORES-2047,6,EDUC VISITS/HOLS/CAMPS/TOYS,"GROCERY STORES, SUPERMARKETS"
29/10/2015,http://opendatacommunities.org/id/county-council/surrey,Surrey,http://id.esd.org.uk/service/1465,Council expenditure,26/06/2015,SOLD DAY TO DAY OPERATIONS,AMAZON UK MARKETPLACE,37.74,EQUIPMENT,BOOK STORES
29/10/2015,http://opendatacommunities.org/id/county-council/surrey,Surrey,http://id.esd.org.uk/service/1465,Council expenditure,26/06/2015,HOLLAND CLOSE RESIDENTIAL HOME,ROBERT DYAS HOLDNG LTD,54.98,EQUIPMENT,HARDWARE STORES
29/10/2015,http://opendatacommunities.org/id/county-council/surrey,Surrey,http://id.esd.org.uk/service/1465,Council expenditure,26/06/2015,ARUNDEL,TESCOS,133.34,REFRESHMENT COSTS,"GROCERY STORES, SUPERMARKETS"
29/10/2015,http://opendatacommunities.org/id/county-council/surrey,Surrey,http://id.esd.org.uk/service/1465,Council expenditure,26/06/2015,ARUNDEL,TESCOS,19.82,REFRESHMENT COSTS,"GROCERY STORES, SUPERMARKETS"
29/10/2015,http://opendatacommunities.org/id/county-council/surrey,Surrey,http://id.esd.org.uk/service/1465,Council expenditure,26/06/2015,RUTH HOUSE,DOMESTIC & GENERAL,55.4,FEES,"INSURANCE SALES,UNDERWRITING,AND PREMIUMS"
29/10/2015,http://opendatacommunities.org/id/county-council/surrey,Surrey,http://id.esd.org.uk/service/1465,Council expenditure,26/06/2015,PROGRAMME TEAM,EB YLG AMP CDEG CONFE,"1,152.00",TRAINING EXPENSES EXTERNAL GENERAL,BUSINESS SERVICES-NOT ELSEWHERE CLASSIFIED
29/10/2015,http://opendatacommunities.org/id/county-council/surrey,Surrey,http://id.esd.org.uk/service/1465,Council expenditure,26/06/2015,WOODLANDS COMMUNITY HOME,SAINSBURYS,25,CLEANING MATERIALS,"GROCERY STORES, SUPERMARKETS"
29/10/2015,http://opendatacommunities.org/id/county-council/surrey,Surrey,http://id.esd.org.uk/service/1465,Council expenditure,26/06/2015,WOODLANDS COMMUNITY HOME,SAINSBURYS,7.3,PURCHASE OF FOOD (RAW MATERIALS),"GROCERY STORES, SUPERMARKETS"
29/10/2015,http://opendatacommunities.org/id/county-council/surrey,Surrey,http://id.esd.org.uk/service/1465,Council expenditure,26/06/2015,WOODLANDS COMMUNITY HOME,SAINSBURYS,17.1,PURCHASE OF FOOD (RAW MATERIALS),"GROCERY STORES, SUPERMARKETS"
29/10/2015,http://opendatacommunities.org/id/county-council/surrey,Surrey,http://id.esd.org.uk/service/1465,Council expenditure,26/06/2015,RUTH HOUSE,DOMESTIC & GENERAL,55.4,FEES,"INSURANCE SALES,UNDERWRITING,AND PREMIUMS"
29/10/2015,http://opendatacommunities.org/id/county-council/surrey,Surrey,http://id.esd.org.uk/service/1465,Council expenditure,26/06/2015,LSTF GRANT,AMAZON UK MARKETPLACE,1.34,EQUIPMENT,BOOK STORES
29/10/2015,http://opendatacommunities.org/id/county-council/surrey,Surrey,http://id.esd.org.uk/service/1465,Council expenditure,26/06/2015,IMT MODERN WORKER,AMAZON EU,529,COMPUTER HARDWARE,DIRECT MARKETING-OTHER DIRECT MARKETERS/NOT ELSEW.
29/10/2015,http://opendatacommunities.org/id/county-council/surrey,Surrey,http://id.esd.org.uk/service/1465,Council expenditure,26/06/2015,RUTH HOUSE,DOMESTIC & GENERAL,69,FEES,"INSURANCE SALES,UNDERWRITING,AND PREMIUMS"
29/10/2015,http://opendatacommunities.org/id/county-council/surrey,Surrey,http://id.esd.org.uk/service/1465,Council expenditure,26/06/2015,YSS MANAGEMENT PRACTICE AND SUPPORT,PLYMOUTH UNIVERSITY AC,86,SUBSISTENCE AND CONFERENCE EXPENSES,"COLLEGES, UNIV, PRO SCHOOLS, JUNIOR COLLEGES"
29/10/2015,http://opendatacommunities.org/id/county-council/surrey,Surrey,http://id.esd.org.uk/service/1465,Council expenditure,26/06/2015,ROW MAINTENANCE,SCREWFIX GUILDFORD,56.52,DAY TO DAY MAINTENANCE,"BUILDING MATERIALS, LUMBER STORES"
29/10/2015,http://opendatacommunities.org/id/county-council/surrey,Surrey,http://id.esd.org.uk/service/1465,Council expenditure,27/06/2015,LEAVING CARE PACKAGES,FAIRDENE GUEST HOUSE,280,INDEPENDENT LIVING PLACEMENTS,"LODGING-HOTELS,MOTELS,RESORTS-NOT CLASSIFIED"
29/10/2015,http://opendatacommunities.org/id/county-council/surrey,Surrey,http://id.esd.org.uk/service/1465,Council expenditure,27/06/2015,HR - BUSINESS SERVICES AND TRAINING,AMAZON PRIME,79,EQUIPMENT,DIRECT MARKETING-CONTINUITY/SUBSCRIPTION MERCHANTS
29/10/2015,http://opendatacommunities.org/id/county-council/surrey,Surrey,http://id.esd.org.uk/service/1465,Council expenditure,27/06/2015,HILLSIDE,SAINSBURYS 0675,3.9,PURCHASE OF FOOD (RAW MATERIALS),"GROCERY STORES, SUPERMARKETS"
29/10/2015,http://opendatacommunities.org/id/county-council/surrey,Surrey,http://id.esd.org.uk/service/1465,Council expenditure,27/06/2015,BURBANK COMMUNITY HOME,SAINSBURYS 0686,24.34,PURCHASE OF FOOD (RAW MATERIALS),"GROCERY STORES, SUPERMARKETS"
29/10/2015,http://opendatacommunities.org/id/county-council/surrey,Surrey,http://id.esd.org.uk/service/1465,Council expenditure,27/06/2015,HILLSIDE,SAINSBURYS 0675,94.85,PURCHASE OF FOOD (RAW MATERIALS),"GROCERY STORES, SUPERMARKETS"
29/10/2015,http://opendatacommunities.org/id/county-council/surrey,Surrey,http://id.esd.org.uk/service/1465,Council expenditure,27/06/2015,HEAD OF SERVICES FOR YOUNG PEOPLE,"AMAZON SVCS EUROPE,SAR",7.47,TRAINING EXPENSES EXTERNAL GENERAL,BOOK STORES
29/10/2015,http://opendatacommunities.org/id/county-council/surrey,Surrey,http://id.esd.org.uk/service/1465,Council expenditure,27/06/2015,KARIBU COMMUNITY HOME,TESCO STORE 2812,439.9,PURCHASE OF FOOD (RAW MATERIALS),"GROCERY STORES, SUPERMARKETS"
29/10/2015,http://opendatacommunities.org/id/county-council/surrey,Surrey,http://id.esd.org.uk/service/1465,Council expenditure,27/06/2015,HILLSIDE,SAINSBURYS 0675,22.85,PURCHASE OF FOOD (RAW MATERIALS),"GROCERY STORES, SUPERMARKETS"
29/10/2015,http://opendatacommunities.org/id/county-council/surrey,Surrey,http://id.esd.org.uk/service/1465,Council expenditure,27/06/2015,COUNTYWIDE MANAGED PRINT SERVICE,AMAZON EU,54.47,COMPUTER CONSUMABLES,DIRECT MARKETING-OTHER DIRECT MARKETERS/NOT ELSEW.
29/10/2015,http://opendatacommunities.org/id/county-council/surrey,Surrey,http://id.esd.org.uk/service/1465,Council expenditure,27/06/2015,TANDRIDGE LOCALITY TEAM,AMAZON EU,19.55,BOOKS,DIRECT MARKETING-OTHER DIRECT MARKETERS/NOT ELSEW.
29/10/2015,http://opendatacommunities.org/id/county-council/surrey,Surrey,http://id.esd.org.uk/service/1465,Council expenditure,27/06/2015,CHEYNE WALK COMMUNITY HOME,TESCO STORE 2560,22.47,PURCHASE OF FOOD (RAW MATERIALS),"GROCERY STORES, SUPERMARKETS"
29/10/2015,http://opendatacommunities.org/id/county-council/surrey,Surrey,http://id.esd.org.uk/service/1465,Council expenditure,27/06/2015,NE ASSESSMENT TEAM,TRAVELODGE WEBSITE,162.2,OTHER COMMUNITY CARE PRIV,TRAVELODGE
29/10/2015,http://opendatacommunities.org/id/county-council/surrey,Surrey,http://id.esd.org.uk/service/1465,Council expenditure,27/06/2015,VIRTUAL SCHOOL FOR LAC PUPIL PREMIUM,AMAZON EU,200,BOOKS,DIRECT MARKETING-OTHER DIRECT MARKETERS/NOT ELSEW.
29/10/2015,http://opendatacommunities.org/id/county-council/surrey,Surrey,http://id.esd.org.uk/service/1465,Council expenditure,27/06/2015,HOLLAND CLOSE RESIDENTIAL HOME,TESCO-STORES 6647,201.24,PURCHASE OF FOOD (RAW MATERIALS),"GROCERY STORES, SUPERMARKETS"
29/10/2015,http://opendatacommunities.org/id/county-council/surrey,Surrey,http://id.esd.org.uk/service/1465,Council expenditure,27/06/2015,ASHTEAD YC,TESCO STORE 3235,19,REFRESHMENT COSTS,"GROCERY STORES, SUPERMARKETS"
29/10/2015,http://opendatacommunities.org/id/county-council/surrey,Surrey,http://id.esd.org.uk/service/1465,Council expenditure,27/06/2015,KARIBU COMMUNITY HOME,ASDA SUPERSTORE,26.58,PURCHASE OF FOOD (RAW MATERIALS),"GROCERY STORES, SUPERMARKETS"
29/10/2015,http://opendatacommunities.org/id/county-council/surrey,Surrey,http://id.esd.org.uk/service/1465,Council expenditure,27/06/2015,HILLSIDE,SAINSBURYS 0675,3.75,PURCHASE OF FOOD (RAW MATERIALS),"GROCERY STORES, SUPERMARKETS"
29/10/2015,http://opendatacommunities.org/id/county-council/surrey,Surrey,http://id.esd.org.uk/service/1465,Council expenditure,27/06/2015,FAIRCROFT COMMUNITY HOME,NANDOS GUILDFORD,66.85,REFRESHMENT COSTS,"EATING PLACES, RESTAURANTS"
29/10/2015,http://opendatacommunities.org/id/county-council/surrey,Surrey,http://id.esd.org.uk/service/1465,Council expenditure,27/06/2015,RUTH HOUSE,W M MORRISONS,21.5,CLEANING MATERIALS,"GROCERY STORES, SUPERMARKETS"
29/10/2015,http://opendatacommunities.org/id/county-council/surrey,Surrey,http://id.esd.org.uk/service/1465,Council expenditure,27/06/2015,WOODLANDS COMMUNITY HOME,POUNDLAND,42,EDUC VISITS/HOLS/CAMPS/TOYS,DISCOUNT STORES
29/10/2015,http://opendatacommunities.org/id/county-council/surrey,Surrey,http://id.esd.org.uk/service/1465,Council expenditure,27/06/2015,WOODLANDS COMMUNITY HOME,POUNDLAND,2,EDUC VISITS/HOLS/CAMPS/TOYS,DISCOUNT STORES
29/10/2015,http://opendatacommunities.org/id/county-council/surrey,Surrey,http://id.esd.org.uk/service/1465,Council expenditure,27/06/2015,WOODLANDS COMMUNITY HOME,99P STORES LTD,23.76,EDUC VISITS/HOLS/CAMPS/TOYS,"GROCERY STORES, SUPERMARKETS"
29/10/2015,http://opendatacommunities.org/id/county-council/surrey,Surrey,http://id.esd.org.uk/service/1465,Council expenditure,27/06/2015,CHEYNE WALK COMMUNITY HOME,GO APE,141,EDUC VISITS/HOLS/CAMPS/TOYS,RECREATIONAL AND SPORTING CAMPS
29/10/2015,http://opendatacommunities.org/id/county-council/surrey,Surrey,http://id.esd.org.uk/service/1465,Council expenditure,27/06/2015,PSSS ICT SUPPORT,"AMAZON SVCS EUROPE,SAR",3.1,EQUIPMENT,BOOK STORES
29/10/2015,http://opendatacommunities.org/id/county-council/surrey,Surrey,http://id.esd.org.uk/service/1465,Council expenditure,27/06/2015,WOODLANDS COMMUNITY HOME,CARD FACTORY,4.95,EDUC VISITS/HOLS/CAMPS/TOYS,"GIFT, CARD, NOVELTY AND SOUVENIR SHOPS"
29/10/2015,http://opendatacommunities.org/id/county-council/surrey,Surrey,http://id.esd.org.uk/service/1465,Council expenditure,28/06/2015,KARIBU COMMUNITY HOME,SPORTSDIRECT 53,6,"CLOTHING, UNIFORM AND LAUNDRY",SPORTING GOODS STORES
29/10/2015,http://opendatacommunities.org/id/county-council/surrey,Surrey,http://id.esd.org.uk/service/1465,Council expenditure,28/06/2015,NE LOOKED AFTER TEAM,PREMIER INN 44536370,66,OTHER COMMUNITY CARE PRIV,PREMIER INN
29/10/2015,http://opendatacommunities.org/id/county-council/surrey,Surrey,http://id.esd.org.uk/service/1465,Council expenditure,28/06/2015,LOCAL DELIVERY GROUP,AMAZON EU,183.92,EQUIPMENT,DIRECT MARKETING-OTHER DIRECT MARKETERS/NOT ELSEW.
29/10/2015,http://opendatacommunities.org/id/county-council/surrey,Surrey,http://id.esd.org.uk/service/1465,Council expenditure,28/06/2015,COMMUNICATIONS TEAM,ITUNES.COM/BILL,9.99,SUBSCRIPTIONS,RECORD SHOPS
29/10/2015,http://opendatacommunities.org/id/county-council/surrey,Surrey,http://id.esd.org.uk/service/1465,Council expenditure,28/06/2015,COMMUNICATIONS TEAM,ITUNES.COM/BILL,4.99,STATIONERY,RECORD SHOPS
29/10/2015,http://opendatacommunities.org/id/county-council/surrey,Surrey,http://id.esd.org.uk/service/1465,Council expenditure,28/06/2015,LONGFIELD RESIDENTIAL CARE,SAINSBURYS SACAT 0652,12.25,MEDICAL EXPENSES,"GROCERY STORES, SUPERMARKETS"
29/10/2015,http://opendatacommunities.org/id/county-council/surrey,Surrey,http://id.esd.org.uk/service/1465,Council expenditure,28/06/2015,ASHTEAD YC,TESCO PFS 2485,84,VEHICLE RUNNING COSTS,SERVICE STATIONS WITH OR WITHOUT ANCILLARY SERVICE
29/10/2015,http://opendatacommunities.org/id/county-council/surrey,Surrey,http://id.esd.org.uk/service/1465,Council expenditure,28/06/2015,KARIBU COMMUNITY HOME,MCDONALDS,11.08,PURCHASE OF FOOD (RAW MATERIALS),"EATING PLACES, RESTAURANTS"
29/10/2015,http://opendatacommunities.org/id/county-council/surrey,Surrey,http://id.esd.org.uk/service/1465,Council expenditure,28/06/2015,IMT MODERN WORKER,"AMAZON SVCS EUROPE,SAR",33.99,COMPUTER HARDWARE,BOOK STORES
29/10/2015,http://opendatacommunities.org/id/county-council/surrey,Surrey,http://id.esd.org.uk/service/1465,Council expenditure,28/06/2015,CEO - PUBLIC HEALTH CAMPAIGNS           ,GOOGLE  ADWS2060179426,500,PUBLICITY,DIRECT MARKETING-CONTINUITY/SUBSCRIPTION MERCHANTS
29/10/2015,http://opendatacommunities.org/id/county-council/surrey,Surrey,http://id.esd.org.uk/service/1465,Council expenditure,28/06/2015,PROPERTY OPERATIONS TEAM,AUTOGLASS,123.24,PURCHASE OF BUILDING MATERIALS,"AUTOMOTIVE PARTS, ACCESSORIES STORES"
29/10/2015,http://opendatacommunities.org/id/county-council/surrey,Surrey,http://id.esd.org.uk/service/1465,Council expenditure,29/06/2015,SW CARE - LAC,GRO HM PASSPORT OFFICE,-23.4,FEES,GOVERNMENT SERVICES-NOT ELSEWHERE CLASSIFIED
29/10/2015,http://opendatacommunities.org/id/county-council/surrey,Surrey,http://id.esd.org.uk/service/1465,Council expenditure,29/06/2015,LSTF GRANT,NANDOS WOKING,50,EQUIPMENT,"EATING PLACES, RESTAURANTS"
29/10/2015,http://opendatacommunities.org/id/county-council/surrey,Surrey,http://id.esd.org.uk/service/1465,Council expenditure,29/06/2015,NE ASSESSMENT TEAM,POTTERS INTERNATIONAL,179,OTHER COMMUNITY CARE PRIV,"LODGING-HOTELS,MOTELS,RESORTS-NOT CLASSIFIED"
29/10/2015,http://opendatacommunities.org/id/county-council/surrey,Surrey,http://id.esd.org.uk/service/1465,Council expenditure,29/06/2015,COVEHAM,SAINSBURYS TO YOU 0687,-7.4,PURCHASE OF FOOD (RAW MATERIALS),"GROCERY STORES, SUPERMARKETS"
29/10/2015,http://opendatacommunities.org/id/county-council/surrey,Surrey,http://id.esd.org.uk/service/1465,Council expenditure,29/06/2015,IMT TECHNICAL DELIVERY,AMAZON EU,50,COMPUTER SOFTWARE,DIRECT MARKETING-OTHER DIRECT MARKETERS/NOT ELSEW.
29/10/2015,http://opendatacommunities.org/id/county-council/surrey,Surrey,http://id.esd.org.uk/service/1465,Council expenditure,29/06/2015,IMT PRODUCTION APPLICATIONS TEAM,RACKSPACE EMAIL & APPS,52.25,COMPUTER SERVICES,COMPUTER NETWORK/INFORMATION SERVICES
29/10/2015,http://opendatacommunities.org/id/county-council/surrey,Surrey,http://id.esd.org.uk/service/1465,Council expenditure,29/06/2015,TRAINING SERVICES FOR YOUNG PEOPLE,THE DUKE OF WELLINGTON,100,TRAINING EXPENSES EXTERNAL GENERAL,"EATING PLACES, RESTAURANTS"
29/10/2015,http://opendatacommunities.org/id/county-council/surrey,Surrey,http://id.esd.org.uk/service/1465,Council expenditure,29/06/2015,ADOPTION TEAM,WP-ADOPTION UK,57.3,LIBRARY RESOURCES,"ORGANIZATIONS, CHARITABLE AND SOCIAL SERVICES"
29/10/2015,http://opendatacommunities.org/id/county-council/surrey,Surrey,http://id.esd.org.uk/service/1465,Council expenditure,29/06/2015,FAIRCROFT COMMUNITY HOME,RINGGO,9.2,MISCELLANEOUS STAFF TRAVEL,GOVERNMENT SERVICES-NOT ELSEWHERE CLASSIFIED
29/10/2015,http://opendatacommunities.org/id/county-council/surrey,Surrey,http://id.esd.org.uk/service/1465,Council expenditure,29/06/2015,BURBANK COMMUNITY HOME,RING-A-ROSES,53.75,EQUIPMENT,FLORISTS
29/10/2015,http://opendatacommunities.org/id/county-council/surrey,Surrey,http://id.esd.org.uk/service/1465,Council expenditure,29/06/2015,ASSESSMENT TEAM,WWW.PAYOCS.CO.UK,31.43,REFRESHMENT COSTS,"CLEANING AND MAINTENANCE, JANITORIAL SERVICES"
29/10/2015,http://opendatacommunities.org/id/county-council/surrey,Surrey,http://id.esd.org.uk/service/1465,Council expenditure,29/06/2015,CHILDREN'S RIGHTS TEAM,AMAZON UK MARKETPLACE,9.78,EQUIPMENT,BOOK STORES
29/10/2015,http://opendatacommunities.org/id/county-council/surrey,Surrey,http://id.esd.org.uk/service/1465,Council expenditure,29/06/2015,WOODLANDS COMMUNITY HOME,RYMAN,6.58,EDUC VISITS/HOLS/CAMPS/TOYS,"OFFICE, SCHOOL SUPPLY, AND STATIONERY STORES"
29/10/2015,http://opendatacommunities.org/id/county-council/surrey,Surrey,http://id.esd.org.uk/service/1465,Council expenditure,29/06/2015,HILLSIDE,TESCO STORE 3149,166.39,PURCHASE OF FOOD (RAW MATERIALS),"GROCERY STORES, SUPERMARKETS"
29/10/2015,http://opendatacommunities.org/id/county-council/surrey,Surrey,http://id.esd.org.uk/service/1465,Council expenditure,29/06/2015,KARIBU COMMUNITY HOME,BLACKS BURGERS,20.5,EDUC VISITS/HOLS/CAMPS/TOYS,"EATING PLACES, RESTAURANTS"
29/10/2015,http://opendatacommunities.org/id/county-council/surrey,Surrey,http://id.esd.org.uk/service/1465,Council expenditure,29/06/2015,COVEHAM,SAINSBURYS TO YOU 0687,101.85,PURCHASE OF FOOD (RAW MATERIALS),"GROCERY STORES, SUPERMARKETS"
29/10/2015,http://opendatacommunities.org/id/county-council/surrey,Surrey,http://id.esd.org.uk/service/1465,Council expenditure,29/06/2015,CS BUSINESS SUPPORT WEST,AMAZON UK MARKETPLACE,-7.8,EQUIPMENT,MISCELLANEOUS AND SPECIALTY RETAIL STORES
29/10/2015,http://opendatacommunities.org/id/county-council/surrey,Surrey,http://id.esd.org.uk/service/1465,Council expenditure,29/06/2015,ROW VOLUNTEERS EAST                     ,FAIRALLS,156.44,EQUIPMENT,CONSTRUCTION MATERIALS NOT ELSEWHERE CLASSIFIED
29/10/2015,http://opendatacommunities.org/id/county-council/surrey,Surrey,http://id.esd.org.uk/service/1465,Council expenditure,29/06/2015,LIBERTAS COMMUNITY HOME,SURREY WATER GARDENS &,16.75,EQUIPMENT,PET SHOPS - PET FOODS AND SUPPLIES
29/10/2015,http://opendatacommunities.org/id/county-council/surrey,Surrey,http://id.esd.org.uk/service/1465,Council expenditure,29/06/2015,SW LOOKED AFTER TEAM,GRO HM PASSPORT OFFICE,46.8,FEES,GOVERNMENT SERVICES-NOT ELSEWHERE CLASSIFIED
29/10/2015,http://opendatacommunities.org/id/county-council/surrey,Surrey,http://id.esd.org.uk/service/1465,Council expenditure,29/06/2015,IMT CRITICAL ENVIRONMENTS,AMAZON EU,47.45,REFRESHMENT COSTS,DIRECT MARKETING-OTHER DIRECT MARKETERS/NOT ELSEW.
29/10/2015,http://opendatacommunities.org/id/county-council/surrey,Surrey,http://id.esd.org.uk/service/1465,Council expenditure,29/06/2015,HOPE SERVICE - WEST,SAINSBURYS TO YOU 0652,128.25,PURCHASE OF FOOD (RAW MATERIALS),"GROCERY STORES, SUPERMARKETS"
29/10/2015,http://opendatacommunities.org/id/county-council/surrey,Surrey,http://id.esd.org.uk/service/1465,Council expenditure,29/06/2015,HOPE SERVICE - EAST,WWW.AIRHOPTRAMPELINEOA,92,EDUC VISITS/HOLS/CAMPS/TOYS,RECREATIONAL AND SPORTING CAMPS
29/10/2015,http://opendatacommunities.org/id/county-council/surrey,Surrey,http://id.esd.org.uk/service/1465,Council expenditure,29/06/2015,SUPERFAST BROADBAND ECONOMIC DEVELOPMENT,LAYERSHIFT,60,COMPUTER SERVICES,COMPUTER NETWORK/INFORMATION SERVICES
29/10/2015,http://opendatacommunities.org/id/county-council/surrey,Surrey,http://id.esd.org.uk/service/1465,Council expenditure,29/06/2015,TRANSPORT,TOYE KENNING & SPENCER,547.68,FURNITURE,MISCELLANEOUS AND SPECIALTY RETAIL STORES
29/10/2015,http://opendatacommunities.org/id/county-council/surrey,Surrey,http://id.esd.org.uk/service/1465,Council expenditure,29/06/2015,HOPE SERVICE - EAST,SAINSBURYS 0683,91.61,CURRICULUM EQUIPMENT AND FURNITURE,"GROCERY STORES, SUPERMARKETS"
29/10/2015,http://opendatacommunities.org/id/county-council/surrey,Surrey,http://id.esd.org.uk/service/1465,Council expenditure,29/06/2015,HOLLAND CLOSE RESIDENTIAL HOME,ARGOS LTD,99.99,EQUIPMENT,DISCOUNT STORES
29/10/2015,http://opendatacommunities.org/id/county-council/surrey,Surrey,http://id.esd.org.uk/service/1465,Council expenditure,29/06/2015,RUTH HOUSE, SAINSBURYS' FOOD DELIVERY. ,9.95,PURCHASE OF FOOD (RAW MATERIALS),"GROCERY STORES, SUPERMARKETS"
29/10/2015,http://opendatacommunities.org/id/county-council/surrey,Surrey,http://id.esd.org.uk/service/1465,Council expenditure,29/06/2015,RUTH HOUSE, SAINSBURYS' FOOD DELIVERY.,193.15,PURCHASE OF FOOD (RAW MATERIALS),"GROCERY STORES, SUPERMARKETS"
29/10/2015,http://opendatacommunities.org/id/county-council/surrey,Surrey,http://id.esd.org.uk/service/1465,Council expenditure,29/06/2015,LIBERTAS COMMUNITY HOME,EASYJET00 000EPBFXSN,"2,975.24",EDUC VISITS/HOLS/CAMPS/TOYS,EASYJET
29/10/2015,http://opendatacommunities.org/id/county-council/surrey,Surrey,http://id.esd.org.uk/service/1465,Council expenditure,29/06/2015,LEGAL SUPPORT TEAM,COMPANIES HOUSE,13,FEES,GOVERNMENT SERVICES-NOT ELSEWHERE CLASSIFIED
29/10/2015,http://opendatacommunities.org/id/county-council/surrey,Surrey,http://id.esd.org.uk/service/1465,Council expenditure,29/06/2015,MALLOW CRESCENT,SAINSBURYS,24.6,PURCHASE OF FOOD (RAW MATERIALS),"GROCERY STORES, SUPERMARKETS"
29/10/2015,http://opendatacommunities.org/id/county-council/surrey,Surrey,http://id.esd.org.uk/service/1465,Council expenditure,29/06/2015,MALLOW CRESCENT,SAINSBURYS,84.2,PURCHASE OF FOOD (RAW MATERIALS),"GROCERY STORES, SUPERMARKETS"
29/10/2015,http://opendatacommunities.org/id/county-council/surrey,Surrey,http://id.esd.org.uk/service/1465,Council expenditure,29/06/2015,LEGAL SUPPORT TEAM,M&S E COMMERCE,59.5,REFRESHMENT COSTS,"GROCERY STORES, SUPERMARKETS"
29/10/2015,http://opendatacommunities.org/id/county-council/surrey,Surrey,http://id.esd.org.uk/service/1465,Council expenditure,29/06/2015,LEGAL SUPPORT TEAM,COMPANIES HOUSE,13,FEES,GOVERNMENT SERVICES-NOT ELSEWHERE CLASSIFIED
29/10/2015,http://opendatacommunities.org/id/county-council/surrey,Surrey,http://id.esd.org.uk/service/1465,Council expenditure,29/06/2015,SOLD DAY TO DAY OPERATIONS,TESCO-STORES 2590,19.73,EQUIPMENT,"GROCERY STORES, SUPERMARKETS"
29/10/2015,http://opendatacommunities.org/id/county-council/surrey,Surrey,http://id.esd.org.uk/service/1465,Council expenditure,29/06/2015,SW CARE - CP & COURT LAC,SURREY CC CARD PAY,10,FEES,COMPUTER NETWORK/INFORMATION SERVICES
29/10/2015,http://opendatacommunities.org/id/county-council/surrey,Surrey,http://id.esd.org.uk/service/1465,Council expenditure,29/06/2015,LIBERTAS COMMUNITY HOME,SAINSBURYS 0652,100,EDUC VISITS/HOLS/CAMPS/TOYS,"GROCERY STORES, SUPERMARKETS"
29/10/2015,http://opendatacommunities.org/id/county-council/surrey,Surrey,http://id.esd.org.uk/service/1465,Council expenditure,29/06/2015,ASHTEAD YC,K&P TYRES,114.12,VEHICLE REPAIRS AND MAINTENANCE,MOTOR VEHICLE SUPPLIES AND NEW PARTS
29/10/2015,http://opendatacommunities.org/id/county-council/surrey,Surrey,http://id.esd.org.uk/service/1465,Council expenditure,29/06/2015,ACCESS 2 EDUCATION NE NON-MEDICAL,DOD`S PARLIAMENTARY CO,270,TRAINING EXPENSES EXTERNAL GENERAL,BUSINESS SERVICES-NOT ELSEWHERE CLASSIFIED
29/10/2015,http://opendatacommunities.org/id/county-council/surrey,Surrey,http://id.esd.org.uk/service/1465,Council expenditure,29/06/2015,HR - BUSINESS SERVICES AND TRAINING,AMAZON UK MARKETPLACE,6.99,EQUIPMENT,BOOK STORES
29/10/2015,http://opendatacommunities.org/id/county-council/surrey,Surrey,http://id.esd.org.uk/service/1465,Council expenditure,29/06/2015,FAIRCROFT COMMUNITY HOME,TESCO STORE 2160,206.21,PURCHASE OF FOOD (RAW MATERIALS),"GROCERY STORES, SUPERMARKETS"
29/10/2015,http://opendatacommunities.org/id/county-council/surrey,Surrey,http://id.esd.org.uk/service/1465,Council expenditure,29/06/2015,SE CARE - LAC,WESTSUSSEX.GOV.UK,10,CHILDREN ACT SEC 17 PAYMENTS,"COLLEGES, UNIV, PRO SCHOOLS, JUNIOR COLLEGES"
29/10/2015,http://opendatacommunities.org/id/county-council/surrey,Surrey,http://id.esd.org.uk/service/1465,Council expenditure,29/06/2015,DVD AND VIDEO                           ,AMAZON EU,33.95,LIBRARY RESOURCES,DIRECT MARKETING-OTHER DIRECT MARKETERS/NOT ELSEW.
29/10/2015,http://opendatacommunities.org/id/county-council/surrey,Surrey,http://id.esd.org.uk/service/1465,Council expenditure,29/06/2015,PSSS ICT SUPPORT,"AMAZON SVCS EUROPE,SAR",39.95,EQUIPMENT,BOOK STORES
29/10/2015,http://opendatacommunities.org/id/county-council/surrey,Surrey,http://id.esd.org.uk/service/1465,Council expenditure,29/06/2015,HR - BUSINESS SERVICES AND TRAINING,AMAZON PRIME,-79,EQUIPMENT,DIRECT MARKETING-CONTINUITY/SUBSCRIPTION MERCHANTS
29/10/2015,http://opendatacommunities.org/id/county-council/surrey,Surrey,http://id.esd.org.uk/service/1465,Council expenditure,29/06/2015,LIBERTAS COMMUNITY HOME,SAINSBURYS 0652,183.64,PURCHASE OF FOOD (RAW MATERIALS),"GROCERY STORES, SUPERMARKETS"
29/10/2015,http://opendatacommunities.org/id/county-council/surrey,Surrey,http://id.esd.org.uk/service/1465,Council expenditure,29/06/2015,SECTOR MANAGER,ROYAL MAIL,982.8,ITEMS PURCHASED FOR RE-SALE,POSTAL SERVICES-GOVERNMENT ONLY
29/10/2015,http://opendatacommunities.org/id/county-council/surrey,Surrey,http://id.esd.org.uk/service/1465,Council expenditure,29/06/2015,SOLD DAY TO DAY OPERATIONS,B & Q,15.45,EQUIPMENT,"BUILDING MATERIALS, LUMBER STORES"
29/10/2015,http://opendatacommunities.org/id/county-council/surrey,Surrey,http://id.esd.org.uk/service/1465,Council expenditure,29/06/2015,SOLD CATERING,LIDL UK,32.64,PURCHASE OF FOOD (RAW MATERIALS),"GROCERY STORES, SUPERMARKETS"
29/10/2015,http://opendatacommunities.org/id/county-council/surrey,Surrey,http://id.esd.org.uk/service/1465,Council expenditure,29/06/2015,WORKING TOGETHER - TRAINING,WWW.WESTMINSTER BRIEFI LONDON,415.8,SUBSISTENCE AND CONFERENCE EXPENSES,"SCHOOLS, BUSINESS AND SECRETARIAL"
29/10/2015,http://opendatacommunities.org/id/county-council/surrey,Surrey,http://id.esd.org.uk/service/1465,Council expenditure,29/06/2015,BUILDING WORLDCLASS WORKFORCE,WWW.WESTMINSTER BRIEFI LONDON,214.2,SUBSISTENCE AND CONFERENCE EXPENSES,"SCHOOLS, BUSINESS AND SECRETARIAL"
29/10/2015,http://opendatacommunities.org/id/county-council/surrey,Surrey,http://id.esd.org.uk/service/1465,Council expenditure,29/06/2015,LOCAL PREVENTION FRAMEWORK - TANDRIDGE,SAINSBURYS SACAT 0023,22,CURRICULUM CONSUMABLES,"GROCERY STORES, SUPERMARKETS"
29/10/2015,http://opendatacommunities.org/id/county-council/surrey,Surrey,http://id.esd.org.uk/service/1465,Council expenditure,30/06/2015,RUTH HOUSE,BUYSPARES,15.96,EQUIPMENT,ELECTRICAL PARTS AND EQUIPMENT
29/10/2015,http://opendatacommunities.org/id/county-council/surrey,Surrey,http://id.esd.org.uk/service/1465,Council expenditure,30/06/2015,ACL CENTRAL EXPENDITURE,FACEBOOK C2QSJ76CB2,5.94,PUBLICITY,ADVERTISING SERVICES
29/10/2015,http://opendatacommunities.org/id/county-council/surrey,Surrey,http://id.esd.org.uk/service/1465,Council expenditure,30/06/2015,CEO - PUBLIC HEALTH CAMPAIGNS           ,FACEBOOK RYUW58J9K2,434.43,PUBLICITY,ADVERTISING SERVICES
29/10/2015,http://opendatacommunities.org/id/county-council/surrey,Surrey,http://id.esd.org.uk/service/1465,Council expenditure,30/06/2015,POLICY AND PERFORMANCE TEAM,AMAZON UK MARKETPLACE,14.85,EQUIPMENT,BOOK STORES
29/10/2015,http://opendatacommunities.org/id/county-council/surrey,Surrey,http://id.esd.org.uk/service/1465,Council expenditure,30/06/2015,ASSET PLANNING - OPERATIONS,COLE-PARMER,59.94,EQUIPMENT,INDUSTRIAL SUPPLIES NOT ELSEWHERE CLASSIFIED
29/10/2015,http://opendatacommunities.org/id/county-council/surrey,Surrey,http://id.esd.org.uk/service/1465,Council expenditure,30/06/2015,INNOVATION FUND,TRAVELODGE WEBSITE,-834.55,EDUC VISITS/HOLS/CAMPS/TOYS,TRAVELODGE
29/10/2015,http://opendatacommunities.org/id/county-council/surrey,Surrey,http://id.esd.org.uk/service/1465,Council expenditure,30/06/2015,"SW REF, ASS & INT SERVICE - HUB 1",WWW.NEOPOST.CO.UK,"1,030.00",POSTAGE AND COURIER CHARGES,STATIONERY/OFFICE SUPPLIES/PRINTING & WRITING PAP.
29/10/2015,http://opendatacommunities.org/id/county-council/surrey,Surrey,http://id.esd.org.uk/service/1465,Council expenditure,30/06/2015,LOCAL PREVENTION FRAMEWORK - TANDRIDGE,BERRINGTONS,10,CURRICULUM CONSUMABLES,"CLOCK, JEWELRY, WATCH, AND SILVERWARE STORE"
29/10/2015,http://opendatacommunities.org/id/county-council/surrey,Surrey,http://id.esd.org.uk/service/1465,Council expenditure,30/06/2015,ARUNDEL,ASDA SUPERSTORE,18.49,REFRESHMENT COSTS,"GROCERY STORES, SUPERMARKETS"
29/10/2015,http://opendatacommunities.org/id/county-council/surrey,Surrey,http://id.esd.org.uk/service/1465,Council expenditure,30/06/2015,ARUNDEL,ASDA SUPERSTORE,91.8,CLEANING MATERIALS,"GROCERY STORES, SUPERMARKETS"
29/10/2015,http://opendatacommunities.org/id/county-council/surrey,Surrey,http://id.esd.org.uk/service/1465,Council expenditure,30/06/2015,HOLLAND CLOSE RESIDENTIAL HOME,ARGOS LTD,29.98,EQUIPMENT,DISCOUNT STORES
29/10/2015,http://opendatacommunities.org/id/county-council/surrey,Surrey,http://id.esd.org.uk/service/1465,Council expenditure,30/06/2015,INNOVATION FUND,TRAVELODGE WEBSITE,-696.85,EDUC VISITS/HOLS/CAMPS/TOYS,TRAVELODGE
29/10/2015,http://opendatacommunities.org/id/county-council/surrey,Surrey,http://id.esd.org.uk/service/1465,Council expenditure,30/06/2015,EAST SUSSEX CONTRACT - PENSION ADMIN,WWW.EASTSUSSEXCC.GOV.U,12,PURCHASE CARD TRANSACTION LOG DEFAULT,"AMUSEMENT PARKS,CARNIVALS,CIRCUS,FORTUNE TELLERS"
29/10/2015,http://opendatacommunities.org/id/county-council/surrey,Surrey,http://id.esd.org.uk/service/1465,Council expenditure,30/06/2015,COUNTYWIDE MANAGED PRINT SERVICE,GALTEC SOLUTIONS LTD,944.4,COMPUTER CONSUMABLES,COMPUTER SOFTWARE STORES
29/10/2015,http://opendatacommunities.org/id/county-council/surrey,Surrey,http://id.esd.org.uk/service/1465,Council expenditure,30/06/2015,APPLEWOOD,ASDA HOME SHOPPING,186.88,PURCHASE OF FOOD (RAW MATERIALS),"GROCERY STORES, SUPERMARKETS"
29/10/2015,http://opendatacommunities.org/id/county-council/surrey,Surrey,http://id.esd.org.uk/service/1465,Council expenditure,30/06/2015,SOLD ESTATES MANAGEMENT,LEE SANITATION LTD,64.07,DAY TO DAY MAINTENANCE,BOAT DEALERS
29/10/2015,http://opendatacommunities.org/id/county-council/surrey,Surrey,http://id.esd.org.uk/service/1465,Council expenditure,30/06/2015,EAST SUSSEX CONTRACT - PENSION ADMIN,WWW.BHCC-INTERNET,10,PURCHASE CARD TRANSACTION LOG DEFAULT,GOVERNMENT SERVICES-NOT ELSEWHERE CLASSIFIED
29/10/2015,http://opendatacommunities.org/id/county-council/surrey,Surrey,http://id.esd.org.uk/service/1465,Council expenditure,30/06/2015,SE CP & COURT TEAM,NEW SOUTHERN RAILW,292.7,MISCELLANEOUS STAFF TRAVEL,PASSENGER RAILWAYS
29/10/2015,http://opendatacommunities.org/id/county-council/surrey,Surrey,http://id.esd.org.uk/service/1465,Council expenditure,30/06/2015,BURBANK COMMUNITY HOME,W M MORRISONS,5,EDUC VISITS/HOLS/CAMPS/TOYS,"GROCERY STORES, SUPERMARKETS"
29/10/2015,http://opendatacommunities.org/id/county-council/surrey,Surrey,http://id.esd.org.uk/service/1465,Council expenditure,30/06/2015,LIBERTAS COMMUNITY HOME,BLUE SHED,16.95,PURCHASE OF FOOD (RAW MATERIALS),"EATING PLACES, RESTAURANTS"
29/10/2015,http://opendatacommunities.org/id/county-council/surrey,Surrey,http://id.esd.org.uk/service/1465,Council expenditure,30/06/2015,SW SECTION 17 CARE,TRAVELODGE WEBSITE,314,CHILDREN ACT SEC 17 PAYMENTS,TRAVELODGE
29/10/2015,http://opendatacommunities.org/id/county-council/surrey,Surrey,http://id.esd.org.uk/service/1465,Council expenditure,30/06/2015,HILLSIDE,SAINSBURYS,45.6,PURCHASE OF FOOD (RAW MATERIALS),"GROCERY STORES, SUPERMARKETS"
29/10/2015,http://opendatacommunities.org/id/county-council/surrey,Surrey,http://id.esd.org.uk/service/1465,Council expenditure,30/06/2015,HILLSIDE,SAINSBURYS,80,PURCHASE OF FOOD (RAW MATERIALS),"GROCERY STORES, SUPERMARKETS"
29/10/2015,http://opendatacommunities.org/id/county-council/surrey,Surrey,http://id.esd.org.uk/service/1465,Council expenditure,30/06/2015,PERMANENTLY SURPLUS LAND,JCM LOCKSMITHS LTD,90.12,SECURITY ALARM MAINTENANCE,HARDWARE STORES
29/10/2015,http://opendatacommunities.org/id/county-council/surrey,Surrey,http://id.esd.org.uk/service/1465,Council expenditure,30/06/2015,ACL CENTRAL EXPENDITURE,WILKO RETAIL LIMIT,14.5,PUBLICITY,HOUSEHOLD APPLIANCE STORES
29/10/2015,http://opendatacommunities.org/id/county-council/surrey,Surrey,http://id.esd.org.uk/service/1465,Council expenditure,30/06/2015,SW CARE - NON-LAC CP & COURT,SURREY CC CARD PAY,21,FEES,COMPUTER NETWORK/INFORMATION SERVICES
29/10/2015,http://opendatacommunities.org/id/county-council/surrey,Surrey,http://id.esd.org.uk/service/1465,Council expenditure,30/06/2015,THE BRIDGE YC,B & Q,6.9,EQUIPMENT,"BUILDING MATERIALS, LUMBER STORES"
29/10/2015,http://opendatacommunities.org/id/county-council/surrey,Surrey,http://id.esd.org.uk/service/1465,Council expenditure,30/06/2015,ARUNDEL,ASDA SUPERSTORE,18,EQUIPMENT,"GROCERY STORES, SUPERMARKETS"
29/10/2015,http://opendatacommunities.org/id/county-council/surrey,Surrey,http://id.esd.org.uk/service/1465,Council expenditure,30/06/2015,LIBERTAS COMMUNITY HOME,SAINSBURYS 0652,13.6,CLEANING MATERIALS,"GROCERY STORES, SUPERMARKETS"
29/10/2015,http://opendatacommunities.org/id/county-council/surrey,Surrey,http://id.esd.org.uk/service/1465,Council expenditure,30/06/2015,YSS MANAGEMENT PRACTICE AND SUPPORT,TRAINLINE.COM,4,MISCELLANEOUS STAFF TRAVEL,PASSENGER RAILWAYS
29/10/2015,http://opendatacommunities.org/id/county-council/surrey,Surrey,http://id.esd.org.uk/service/1465,Council expenditure,30/06/2015,HEAD OF SERVICES FOR YOUNG PEOPLE,WWW.SOLACE.ORG.UK,203,SUBSCRIPTIONS,"ORGANIZATIONS, MEMBERSHIP-NOT ELSEWHERE CLASSIFIED"
29/10/2015,http://opendatacommunities.org/id/county-council/surrey,Surrey,http://id.esd.org.uk/service/1465,Council expenditure,30/06/2015,SW SECTION 17 CARE,TRAVELODGE WEBSITE,399,CHILDREN ACT SEC 17 PAYMENTS,TRAVELODGE
29/10/2015,http://opendatacommunities.org/id/county-council/surrey,Surrey,http://id.esd.org.uk/service/1465,Council expenditure,30/06/2015,LEAVING CARE TEAM,"AMAZON SVCS EUROPE,SAR",94.2,OTHER COMMUNITY CARE VOL,BOOK STORES
29/10/2015,http://opendatacommunities.org/id/county-council/surrey,Surrey,http://id.esd.org.uk/service/1465,Council expenditure,30/06/2015,CHILDREN'S RIGHTS TEAM,PARTY DELIGHTS LIMITED,73.75,EQUIPMENT,"GIFT, CARD, NOVELTY AND SOUVENIR SHOPS"
29/10/2015,http://opendatacommunities.org/id/county-council/surrey,Surrey,http://id.esd.org.uk/service/1465,Council expenditure,30/06/2015,APPLEWOOD,ASDA HOME SHOPPING,-0.6,PURCHASE OF FOOD (RAW MATERIALS),"GROCERY STORES, SUPERMARKETS"
29/10/2015,http://opendatacommunities.org/id/county-council/surrey,Surrey,http://id.esd.org.uk/service/1465,Council expenditure,30/06/2015,WRAY PARK COMPLEX,SELCO TRADE CTR EFT S0,242.98,ADAPTATIONS,"BUILDING MATERIALS, LUMBER STORES"
29/10/2015,http://opendatacommunities.org/id/county-council/surrey,Surrey,http://id.esd.org.uk/service/1465,Council expenditure,30/06/2015,PROPERTY OPERATIONS TEAM,WICKES,24.99,PURCHASE OF BUILDING MATERIALS,"BUILDING MATERIALS, LUMBER STORES"
29/10/2015,http://opendatacommunities.org/id/county-council/surrey,Surrey,http://id.esd.org.uk/service/1465,Council expenditure,30/06/2015,THE BRIDGE YC,TESCO STORE 2812,21.19,PURCHASE OF FOOD (RAW MATERIALS),"GROCERY STORES, SUPERMARKETS"
29/10/2015,http://opendatacommunities.org/id/county-council/surrey,Surrey,http://id.esd.org.uk/service/1465,Council expenditure,30/06/2015,EAST SUSSEX CONTRACT - AP & AR,AMAZON UK MARKETPLACE,4.98,PURCHASE CARD TRANSACTION LOG DEFAULT,BOOK STORES
29/10/2015,http://opendatacommunities.org/id/county-council/surrey,Surrey,http://id.esd.org.uk/service/1465,Council expenditure,30/06/2015,CHILDREN'S RIGHTS TEAM,POUNDWORLD RETAIL,21,EQUIPMENT,DISCOUNT STORES
29/10/2015,http://opendatacommunities.org/id/county-council/surrey,Surrey,http://id.esd.org.uk/service/1465,Council expenditure,30/06/2015,YSS MANAGEMENT PRACTICE AND SUPPORT,TRAINLINE.COM,145.35,MISCELLANEOUS STAFF TRAVEL,PASSENGER RAILWAYS
29/10/2015,http://opendatacommunities.org/id/county-council/surrey,Surrey,http://id.esd.org.uk/service/1465,Council expenditure,30/06/2015,WEY CENTRE YC,CO-OP GROUP 500270,35.04,PURCHASE OF FOOD (RAW MATERIALS),"GROCERY STORES, SUPERMARKETS"
29/10/2015,http://opendatacommunities.org/id/county-council/surrey,Surrey,http://id.esd.org.uk/service/1465,Council expenditure,30/06/2015,SURREY PARENT PARTNERSHIP,TRAVELODGE WEBSITE,47,TRAINING EXPENSES EXTERNAL GENERAL,TRAVELODGE
29/10/2015,http://opendatacommunities.org/id/county-council/surrey,Surrey,http://id.esd.org.uk/service/1465,Council expenditure,30/06/2015,COUNTY HALL,JOHN LEWIS,200,EQUIPMENT,DEPARTMENT STORES
29/10/2015,http://opendatacommunities.org/id/county-council/surrey,Surrey,http://id.esd.org.uk/service/1465,Council expenditure,30/06/2015,TRANSPORT,ARGOS REIGATE,49.99,DAY TO DAY MAINTENANCE,DISCOUNT STORES
29/10/2015,http://opendatacommunities.org/id/county-council/surrey,Surrey,http://id.esd.org.uk/service/1465,Council expenditure,30/06/2015,ADOPTION TEAM,GREENARY HIRE LTD,824.1,FIXTURES AND FITTINGS,LAWN AND GARDEN SUPPLY STORES
29/10/2015,http://opendatacommunities.org/id/county-council/surrey,Surrey,http://id.esd.org.uk/service/1465,Council expenditure,30/06/2015,SPECIAL EDUCATIONAL NEEDS,JOHN HENNY LTD,754.8,EQUIPMENT,"EQUIPMENT RENTAL&LEASING SVS, FURNTURE/TOOL RENTAL"
29/10/2015,http://opendatacommunities.org/id/county-council/surrey,Surrey,http://id.esd.org.uk/service/1465,Council expenditure,30/06/2015,SPECIAL EDUCATIONAL NEEDS,JOHN HENNY LTD,36.09,EQUIPMENT,"EQUIPMENT RENTAL&LEASING SVS, FURNTURE/TOOL RENTAL"
29/10/2015,http://opendatacommunities.org/id/county-council/surrey,Surrey,http://id.esd.org.uk/service/1465,Council expenditure,30/06/2015,HOLLAND CLOSE RESIDENTIAL HOME,PHARMACYEQUIPMENT.,21.14,EQUIPMENT,"DRUGS, DRUP PROPRIETARIES, AND DRUGGIST'S SUPPLIES"
29/10/2015,http://opendatacommunities.org/id/county-council/surrey,Surrey,http://id.esd.org.uk/service/1465,Council expenditure,30/06/2015,HOPE SERVICE - WEST,SAINSBURYS SACAT(4409),16.2,PURCHASE OF FOOD (RAW MATERIALS),"GROCERY STORES, SUPERMARKETS"
29/10/2015,http://opendatacommunities.org/id/county-council/surrey,Surrey,http://id.esd.org.uk/service/1465,Council expenditure,30/06/2015,INNOVATION FUND,TRAVELODGE WEBSITE,-765.7,EDUC VISITS/HOLS/CAMPS/TOYS,TRAVELODGE
29/10/2015,http://opendatacommunities.org/id/county-council/surrey,Surrey,http://id.esd.org.uk/service/1465,Council expenditure,30/06/2015,TARGETED INTERVENTION,STARBUCKS,10.2,EDUC VISITS/HOLS/CAMPS/TOYS,FAST FOOD RESTAURANTS
29/10/2015,http://opendatacommunities.org/id/county-council/surrey,Surrey,http://id.esd.org.uk/service/1465,Council expenditure,30/06/2015,FAIRCROFT COMMUNITY HOME,TESCO STORE 2160,61.9,PURCHASE OF FOOD (RAW MATERIALS),"GROCERY STORES, SUPERMARKETS"
29/10/2015,http://opendatacommunities.org/id/county-council/surrey,Surrey,http://id.esd.org.uk/service/1465,Council expenditure,30/06/2015,LEAVING CARE TEAM,THE WHITE HART HOTEL,65,OTHER COMMUNITY CARE PRIV,"BAR,LOUNGE,DISCO,NIGHTCLUB,TAVERN-ALCOHOLIC DRINKS"
29/10/2015,http://opendatacommunities.org/id/county-council/surrey,Surrey,http://id.esd.org.uk/service/1465,Council expenditure,30/06/2015,MALLOW CRESCENT,AMAZON UK MARKETPLACE,17.75,EQUIPMENT,BOOK STORES
29/10/2015,http://opendatacommunities.org/id/county-council/surrey,Surrey,http://id.esd.org.uk/service/1465,Council expenditure,30/06/2015,HOLLAND CLOSE RESIDENTIAL HOME,ARGOS LTD,249,EQUIPMENT,DISCOUNT STORES
29/10/2015,http://opendatacommunities.org/id/county-council/surrey,Surrey,http://id.esd.org.uk/service/1465,Council expenditure,30/06/2015,RUTH HOUSE,W M MORRISONS,24,PURCHASE OF FOOD (RAW MATERIALS),"GROCERY STORES, SUPERMARKETS"
29/10/2015,http://opendatacommunities.org/id/county-council/surrey,Surrey,http://id.esd.org.uk/service/1465,Council expenditure,30/06/2015,MALLOW CRESCENT,SAINSBURYS,10.5,PURCHASE OF FOOD (RAW MATERIALS),"GROCERY STORES, SUPERMARKETS"
29/10/2015,http://opendatacommunities.org/id/county-council/surrey,Surrey,http://id.esd.org.uk/service/1465,Council expenditure,30/06/2015,MALLOW CRESCENT,SAINSBURYS,66.93,PURCHASE OF FOOD (RAW MATERIALS),"GROCERY STORES, SUPERMARKETS"
29/10/2015,http://opendatacommunities.org/id/county-council/surrey,Surrey,http://id.esd.org.uk/service/1465,Council expenditure,30/06/2015,HOPE SERVICE - EAST,ARGOS LTD,18.75,CURRICULUM EQUIPMENT AND FURNITURE,DISCOUNT STORES
29/10/2015,http://opendatacommunities.org/id/county-council/surrey,Surrey,http://id.esd.org.uk/service/1465,Council expenditure,30/06/2015,CHILDREN'S RIGHTS TEAM,PAPERCHASE,5.5,STATIONERY,"GIFT, CARD, NOVELTY AND SOUVENIR SHOPS"
29/10/2015,http://opendatacommunities.org/id/county-council/surrey,Surrey,http://id.esd.org.uk/service/1465,Council expenditure,30/06/2015,TARGETED INTERVENTION,SAINSBURYS 0652,4.2,EDUC VISITS/HOLS/CAMPS/TOYS,"GROCERY STORES, SUPERMARKETS"
29/10/2015,http://opendatacommunities.org/id/county-council/surrey,Surrey,http://id.esd.org.uk/service/1465,Council expenditure,30/06/2015,TRIZANCIA HOUSE WOKING,HORACE SMITH LOCKSMITH,28.27,SECURITY ALARM MAINTENANCE,HARDWARE STORES
29/10/2015,http://opendatacommunities.org/id/county-council/surrey,Surrey,http://id.esd.org.uk/service/1465,Council expenditure,30/06/2015,ADOPTION CARE,WWW.SACOAPARTMENTS.CO.,652,CHILDREN ACT SEC 17 PAYMENTS,"LODGING-HOTELS,MOTELS,RESORTS-NOT CLASSIFIED"
29/10/2015,http://opendatacommunities.org/id/county-council/surrey,Surrey,http://id.esd.org.uk/service/1465,Council expenditure,30/06/2015,INNOVATION FUND,TRAVELODGE WEBSITE,"2,299.10",EDUC VISITS/HOLS/CAMPS/TOYS,TRAVELODGE
29/10/2015,http://opendatacommunities.org/id/county-council/surrey,Surrey,http://id.esd.org.uk/service/1465,Council expenditure,30/06/2015,AEO MANAGEMENT TEAM (SE),SURREY CC CARD PAY,12,TRAINING EXPENSES EXTERNAL GENERAL,COMPUTER NETWORK/INFORMATION SERVICES
29/10/2015,http://opendatacommunities.org/id/county-council/surrey,Surrey,http://id.esd.org.uk/service/1465,Council expenditure,30/06/2015,PE/CDT MAINTENANCE OVERHEADS,MARGNOR FASTENERS,58.97,EQUIPMENT,MISCELLANEOUS AND SPECIALTY RETAIL STORES
29/10/2015,http://opendatacommunities.org/id/county-council/surrey,Surrey,http://id.esd.org.uk/service/1465,Council expenditure,30/06/2015,LEAVING CARE TEAM,AMAZON UK MARKETPLACE,5.6,OTHER COMMUNITY CARE VOL,BOOK STORES
29/10/2015,http://opendatacommunities.org/id/county-council/surrey,Surrey,http://id.esd.org.uk/service/1465,Council expenditure,30/06/2015,LEAVING CARE TEAM,"AMAZON SVCS EUROPE,SAR",6.8,OTHER COMMUNITY CARE VOL,BOOK STORES
29/10/2015,http://opendatacommunities.org/id/county-council/surrey,Surrey,http://id.esd.org.uk/service/1465,Council expenditure,30/06/2015,LIBERTAS COMMUNITY HOME,WOKING GARDEN CENT,14.5,REFRESHMENT COSTS,LAWN AND GARDEN SUPPLY STORES
29/10/2015,http://opendatacommunities.org/id/county-council/surrey,Surrey,http://id.esd.org.uk/service/1465,Council expenditure,30/06/2015,ADOPTION CARE,WWW.SACOAPARTMENTS.CO.,500,CHILDREN ACT SEC 17 PAYMENTS,"LODGING-HOTELS,MOTELS,RESORTS-NOT CLASSIFIED"
29/10/2015,http://opendatacommunities.org/id/county-council/surrey,Surrey,http://id.esd.org.uk/service/1465,Council expenditure,30/06/2015,LEAVING CARE TEAM,AMAZON UK MARKETPLACE,22.26,EDUC VISITS/HOLS/CAMPS/TOYS,BOOK STORES
29/10/2015,http://opendatacommunities.org/id/county-council/surrey,Surrey,http://id.esd.org.uk/service/1465,Council expenditure,30/06/2015,ORDER TO CASH TEAMS,WWW.GOV.UK,10,FEES,PROFESSIONAL SERVICES-NOT ELSEWHERE CLASSIFIED
29/10/2015,http://opendatacommunities.org/id/county-council/surrey,Surrey,http://id.esd.org.uk/service/1465,Council expenditure,30/06/2015,LOCAL DELIVERY GROUP,AMAZON EU,23.09,EQUIPMENT,DIRECT MARKETING-OTHER DIRECT MARKETERS/NOT ELSEW.
29/10/2015,http://opendatacommunities.org/id/county-council/surrey,Surrey,http://id.esd.org.uk/service/1465,Council expenditure,30/06/2015,FAMILY WORKFORCE DEVELOPMENT EAST,AMAZON UK MARKETPLACE,22.59,EQUIPMENT,BOOK STORES
29/10/2015,http://opendatacommunities.org/id/county-council/surrey,Surrey,http://id.esd.org.uk/service/1465,Council expenditure,01/07/2015,CHILDREN'S RIGHTS TEAM,PAPERCHASE,-5.5,STATIONERY,"GIFT, CARD, NOVELTY AND SOUVENIR SHOPS"
29/10/2015,http://opendatacommunities.org/id/county-council/surrey,Surrey,http://id.esd.org.uk/service/1465,Council expenditure,01/07/2015,SFRS-SERVICE DELIVERY,AMAZON EU,34.99,EQUIPMENT,DIRECT MARKETING-OTHER DIRECT MARKETERS/NOT ELSEW.
29/10/2015,http://opendatacommunities.org/id/county-council/surrey,Surrey,http://id.esd.org.uk/service/1465,Council expenditure,01/07/2015,HOPE SERVICE - EAST,ASDA SUPERSTORE,10,PURCHASE OF FOOD (RAW MATERIALS),"GROCERY STORES, SUPERMARKETS"
29/10/2015,http://opendatacommunities.org/id/county-council/surrey,Surrey,http://id.esd.org.uk/service/1465,Council expenditure,01/07/2015,PARK HALL RESIDENTIAL CARE,MYSMARTBUY,404.75,EQUIPMENT,DIRECT MARKETING-CATALOG MERCHANTS
29/10/2015,http://opendatacommunities.org/id/county-council/surrey,Surrey,http://id.esd.org.uk/service/1465,Council expenditure,01/07/2015,LIBERTAS COMMUNITY HOME,POUNDLAND LTD 1518,12,PURCHASE OF FOOD (RAW MATERIALS),DISCOUNT STORES
29/10/2015,http://opendatacommunities.org/id/county-council/surrey,Surrey,http://id.esd.org.uk/service/1465,Council expenditure,01/07/2015,IMT CRITICAL ENVIRONMENTS,WWW.MILKANDMORE.CO.UK,3.12,REFRESHMENT COSTS,DIRECT MARKETING-CONTINUITY/SUBSCRIPTION MERCHANTS
29/10/2015,http://opendatacommunities.org/id/county-council/surrey,Surrey,http://id.esd.org.uk/service/1465,Council expenditure,01/07/2015,BURBANK COMMUNITY HOME,ASDA STORES 4823,5.5,"CLOTHING, UNIFORM AND LAUNDRY","GROCERY STORES, SUPERMARKETS"
29/10/2015,http://opendatacommunities.org/id/county-council/surrey,Surrey,http://id.esd.org.uk/service/1465,Council expenditure,01/07/2015,HOPE SERVICE - WEST,AMAZON UK MARKETPLACE,36.92,CURRICULUM CONSUMABLES,BOOK STORES
29/10/2015,http://opendatacommunities.org/id/county-council/surrey,Surrey,http://id.esd.org.uk/service/1465,Council expenditure,01/07/2015,TRANSPORT,OMBINDING.CO.UK,29.32,STATIONERY,"OFFICE, SCHOOL SUPPLY, AND STATIONERY STORES"
29/10/2015,http://opendatacommunities.org/id/county-council/surrey,Surrey,http://id.esd.org.uk/service/1465,Council expenditure,01/07/2015,HILLSIDE,SAINSBURYS SACAT 0675,13.5,PURCHASE OF FOOD (RAW MATERIALS),"GROCERY STORES, SUPERMARKETS"
29/10/2015,http://opendatacommunities.org/id/county-council/surrey,Surrey,http://id.esd.org.uk/service/1465,Council expenditure,01/07/2015,TARGETED INTERVENTION,TESCO STORES-2047,22.68,EDUC VISITS/HOLS/CAMPS/TOYS,"GROCERY STORES, SUPERMARKETS"
29/10/2015,http://opendatacommunities.org/id/county-council/surrey,Surrey,http://id.esd.org.uk/service/1465,Council expenditure,01/07/2015,TRANSPORT,AMAZON EU,5.99,STATIONERY,DIRECT MARKETING-OTHER DIRECT MARKETERS/NOT ELSEW.
29/10/2015,http://opendatacommunities.org/id/county-council/surrey,Surrey,http://id.esd.org.uk/service/1465,Council expenditure,01/07/2015,MALLOW CRESCENT,SAINSBURYS,8.6,PURCHASE OF FOOD (RAW MATERIALS),"GROCERY STORES, SUPERMARKETS"
29/10/2015,http://opendatacommunities.org/id/county-council/surrey,Surrey,http://id.esd.org.uk/service/1465,Council expenditure,01/07/2015,MALLOW CRESCENT,SAINSBURYS,95.9,PURCHASE OF FOOD (RAW MATERIALS),"GROCERY STORES, SUPERMARKETS"
29/10/2015,http://opendatacommunities.org/id/county-council/surrey,Surrey,http://id.esd.org.uk/service/1465,Council expenditure,01/07/2015,COUNTY HALL,"AMAZON SVCS EUROPE,SAR",17.95,EQUIPMENT,BOOK STORES
29/10/2015,http://opendatacommunities.org/id/county-council/surrey,Surrey,http://id.esd.org.uk/service/1465,Council expenditure,01/07/2015,ASSET PLANNING - OPERATIONS,WICKES,11.99,EQUIPMENT,"BUILDING MATERIALS, LUMBER STORES"
29/10/2015,http://opendatacommunities.org/id/county-council/surrey,Surrey,http://id.esd.org.uk/service/1465,Council expenditure,01/07/2015,COUNTY HALL,TLC (SOUTHERN) LTD,93.6,EQUIPMENT,HOUSEHOLD APPLIANCE STORES
29/10/2015,http://opendatacommunities.org/id/county-council/surrey,Surrey,http://id.esd.org.uk/service/1465,Council expenditure,01/07/2015,PROPERTY OPERATIONS TEAM,TOOLSTATION LTD,7.22,PURCHASE OF BUILDING MATERIALS,HARDWARE STORES
29/10/2015,http://opendatacommunities.org/id/county-council/surrey,Surrey,http://id.esd.org.uk/service/1465,Council expenditure,01/07/2015,LEAVING CARE TEAM,T D STUDIO,48,STATIONERY,MISCELLANEOUS PUBLISHING AND PRINTING
29/10/2015,http://opendatacommunities.org/id/county-council/surrey,Surrey,http://id.esd.org.uk/service/1465,Council expenditure,01/07/2015,SFRS-SERVICE DELIVERY,AMAZON EU,34.99,EQUIPMENT,DIRECT MARKETING-OTHER DIRECT MARKETERS/NOT ELSEW.
29/10/2015,http://opendatacommunities.org/id/county-council/surrey,Surrey,http://id.esd.org.uk/service/1465,Council expenditure,01/07/2015,BURBANK COMMUNITY HOME,W M MORRISONS,2,MEDICAL EXPENSES,"GROCERY STORES, SUPERMARKETS"
29/10/2015,http://opendatacommunities.org/id/county-council/surrey,Surrey,http://id.esd.org.uk/service/1465,Council expenditure,01/07/2015,COMMUNICATIONS TEAM,RYMAN 1174,0.99,STATIONERY,"OFFICE, SCHOOL SUPPLY, AND STATIONERY STORES"
29/10/2015,http://opendatacommunities.org/id/county-council/surrey,Surrey,http://id.esd.org.uk/service/1465,Council expenditure,01/07/2015,SURREY ARTS GENERAL,AMAZON UK MARKETPLACE,19.48,EQUIPMENT,BOOK STORES
29/10/2015,http://opendatacommunities.org/id/county-council/surrey,Surrey,http://id.esd.org.uk/service/1465,Council expenditure,01/07/2015,NORTH EAST AREA TEAM,WINDSOR LEISURE CENTRE,10.6,EDUC VISITS/HOLS/CAMPS/TOYS,RECREATION SERVICES (NOT ELSEWHERE CLASSIFIED)
29/10/2015,http://opendatacommunities.org/id/county-council/surrey,Surrey,http://id.esd.org.uk/service/1465,Council expenditure,01/07/2015,HILLSIDE,SAINSBURYS SACAT 0675,9,PURCHASE OF FOOD (RAW MATERIALS),"GROCERY STORES, SUPERMARKETS"
29/10/2015,http://opendatacommunities.org/id/county-council/surrey,Surrey,http://id.esd.org.uk/service/1465,Council expenditure,01/07/2015,CHEYNE WALK COMMUNITY HOME,TESCO STORE 2560,68.09,PURCHASE OF FOOD (RAW MATERIALS),"GROCERY STORES, SUPERMARKETS"
29/10/2015,http://opendatacommunities.org/id/county-council/surrey,Surrey,http://id.esd.org.uk/service/1465,Council expenditure,01/07/2015,FAIRCROFT COMMUNITY HOME,SAINSBURYS 0687,16,EQUIPMENT,"GROCERY STORES, SUPERMARKETS"
29/10/2015,http://opendatacommunities.org/id/county-council/surrey,Surrey,http://id.esd.org.uk/service/1465,Council expenditure,01/07/2015,LIBERTAS COMMUNITY HOME,LAKELAND LIMITED,25.97,CLEANING MATERIALS,ACCESSORY AND APPAREL STORES-MISCELLANEOUS
29/10/2015,http://opendatacommunities.org/id/county-council/surrey,Surrey,http://id.esd.org.uk/service/1465,Council expenditure,01/07/2015,LIBERTAS COMMUNITY HOME,LIDL UK,15.92,PURCHASE OF FOOD (RAW MATERIALS),"GROCERY STORES, SUPERMARKETS"
29/10/2015,http://opendatacommunities.org/id/county-council/surrey,Surrey,http://id.esd.org.uk/service/1465,Council expenditure,01/07/2015,LIBERTAS COMMUNITY HOME,LIDL UK,43.46,PURCHASE OF FOOD (RAW MATERIALS),"GROCERY STORES, SUPERMARKETS"
29/10/2015,http://opendatacommunities.org/id/county-council/surrey,Surrey,http://id.esd.org.uk/service/1465,Council expenditure,01/07/2015,FOSTERING SERVICE CENTRAL COSTS,SUPERDRUG STORES PLC,247.99,OTHER COMMUNITY CARE VOL,"DRUG STORES, PHARMACIES"
29/10/2015,http://opendatacommunities.org/id/county-council/surrey,Surrey,http://id.esd.org.uk/service/1465,Council expenditure,01/07/2015,HOPE SERVICE - WEST,AMAZON UK MARKETPLACE,2.49,CURRICULUM CONSUMABLES,BOOK STORES
29/10/2015,http://opendatacommunities.org/id/county-council/surrey,Surrey,http://id.esd.org.uk/service/1465,Council expenditure,01/07/2015,HOPE SERVICE - EAST,SAINSBURYS TO YOU 0683,65.98,PURCHASE OF FOOD (RAW MATERIALS),"GROCERY STORES, SUPERMARKETS"
29/10/2015,http://opendatacommunities.org/id/county-council/surrey,Surrey,http://id.esd.org.uk/service/1465,Council expenditure,01/07/2015,LAKERS YC,WWW.AIRHOPTRAMPELINEOA,90,EDUC VISITS/HOLS/CAMPS/TOYS,RECREATIONAL AND SPORTING CAMPS
29/10/2015,http://opendatacommunities.org/id/county-council/surrey,Surrey,http://id.esd.org.uk/service/1465,Council expenditure,01/07/2015,ARUNDEL,TESCO STORES 5999,198.95,REFRESHMENT COSTS,"GROCERY STORES, SUPERMARKETS"
29/10/2015,http://opendatacommunities.org/id/county-council/surrey,Surrey,http://id.esd.org.uk/service/1465,Council expenditure,01/07/2015,HOPE SERVICE - EAST,TESCO STORES 6320,2.78,PURCHASE OF FOOD (RAW MATERIALS),"GROCERY STORES, SUPERMARKETS"
29/10/2015,http://opendatacommunities.org/id/county-council/surrey,Surrey,http://id.esd.org.uk/service/1465,Council expenditure,01/07/2015,BURBANK COMMUNITY HOME,SAINSBURYS TO YOU 0686,226.69,PURCHASE OF FOOD (RAW MATERIALS),"GROCERY STORES, SUPERMARKETS"
29/10/2015,http://opendatacommunities.org/id/county-council/surrey,Surrey,http://id.esd.org.uk/service/1465,Council expenditure,01/07/2015,HILLSIDE,SAINSBURYS,77.24,PURCHASE OF FOOD (RAW MATERIALS),"GROCERY STORES, SUPERMARKETS"
29/10/2015,http://opendatacommunities.org/id/county-council/surrey,Surrey,http://id.esd.org.uk/service/1465,Council expenditure,01/07/2015,HILLSIDE,SAINSBURYS,52.48,PURCHASE OF FOOD (RAW MATERIALS),"GROCERY STORES, SUPERMARKETS"
29/10/2015,http://opendatacommunities.org/id/county-council/surrey,Surrey,http://id.esd.org.uk/service/1465,Council expenditure,01/07/2015,LEAVING CARE PACKAGES,GIFTVOUCHERSHOP.CO.UK,600,OTHER COMMUNITY CARE VOL,"GIFT, CARD, NOVELTY AND SOUVENIR SHOPS"
29/10/2015,http://opendatacommunities.org/id/county-council/surrey,Surrey,http://id.esd.org.uk/service/1465,Council expenditure,01/07/2015,SE CP & COURT TEAM,NEW SOUTHERN RAILW,330.7,MISCELLANEOUS STAFF TRAVEL,PASSENGER RAILWAYS
29/10/2015,http://opendatacommunities.org/id/county-council/surrey,Surrey,http://id.esd.org.uk/service/1465,Council expenditure,01/07/2015,MALLOW CRESCENT,SAINSBURYS,13.5,PURCHASE OF FOOD (RAW MATERIALS),"GROCERY STORES, SUPERMARKETS"
29/10/2015,http://opendatacommunities.org/id/county-council/surrey,Surrey,http://id.esd.org.uk/service/1465,Council expenditure,01/07/2015,MALLOW CRESCENT,SAINSBURYS,12.75,PURCHASE OF FOOD (RAW MATERIALS),"GROCERY STORES, SUPERMARKETS"
29/10/2015,http://opendatacommunities.org/id/county-council/surrey,Surrey,http://id.esd.org.uk/service/1465,Council expenditure,01/07/2015,COMMUNICATIONS TEAM,MAPLIN KINGSTON KT1,39.99,STATIONERY,ELECTRONIC SALES
29/10/2015,http://opendatacommunities.org/id/county-council/surrey,Surrey,http://id.esd.org.uk/service/1465,Council expenditure,01/07/2015,FRIMLEY YC,TESCO STORES 6669,4.08,REFRESHMENT COSTS,"GROCERY STORES, SUPERMARKETS"
29/10/2015,http://opendatacommunities.org/id/county-council/surrey,Surrey,http://id.esd.org.uk/service/1465,Council expenditure,01/07/2015,NORTH EAST AREA TEAM,MCDONALDS,9.76,EDUC VISITS/HOLS/CAMPS/TOYS,FAST FOOD RESTAURANTS
29/10/2015,http://opendatacommunities.org/id/county-council/surrey,Surrey,http://id.esd.org.uk/service/1465,Council expenditure,01/07/2015,EAST SUSSEX CONTRACT - MGMT & ADMIN,TESCO STORES 3330,2.75,REFRESHMENT COSTS,"GROCERY STORES, SUPERMARKETS"
29/10/2015,http://opendatacommunities.org/id/county-council/surrey,Surrey,http://id.esd.org.uk/service/1465,Council expenditure,01/07/2015,MULBERRY YC,MARKS & SPENCER,20.93,PURCHASE OF FOOD (RAW MATERIALS),"GROCERY STORES, SUPERMARKETS"
29/10/2015,http://opendatacommunities.org/id/county-council/surrey,Surrey,http://id.esd.org.uk/service/1465,Council expenditure,01/07/2015,SE CP & COURT TEAM,NEW SOUTHERN RAILW,319.2,MISCELLANEOUS STAFF TRAVEL,PASSENGER RAILWAYS
29/10/2015,http://opendatacommunities.org/id/county-council/surrey,Surrey,http://id.esd.org.uk/service/1465,Council expenditure,01/07/2015,SFRS-SERVICE DELIVERY,AMAZON UK MARKETPLACE,86.08,EQUIPMENT,BOOK STORES
29/10/2015,http://opendatacommunities.org/id/county-council/surrey,Surrey,http://id.esd.org.uk/service/1465,Council expenditure,01/07/2015,SERVICE DELIVERY RESOURCES,SCREWFIX DIRECT,91.42,EQUIPMENT,"BUILDING MATERIALS, LUMBER STORES"
29/10/2015,http://opendatacommunities.org/id/county-council/surrey,Surrey,http://id.esd.org.uk/service/1465,Council expenditure,01/07/2015,SURREY ARTS GENERAL,PAYPAL  GUILDFORDAR,20,SUBSCRIPTIONS,"ORGANIZATIONS, CHARITABLE AND SOCIAL SERVICES"
29/10/2015,http://opendatacommunities.org/id/county-council/surrey,Surrey,http://id.esd.org.uk/service/1465,Council expenditure,01/07/2015,WOODLANDS COMMUNITY HOME,SAINSBURYS,33,EQUIPMENT,"GROCERY STORES, SUPERMARKETS"
29/10/2015,http://opendatacommunities.org/id/county-council/surrey,Surrey,http://id.esd.org.uk/service/1465,Council expenditure,01/07/2015,WOODLANDS COMMUNITY HOME,SAINSBURYS,16.5,PURCHASE OF FOOD (RAW MATERIALS),"GROCERY STORES, SUPERMARKETS"
29/10/2015,http://opendatacommunities.org/id/county-council/surrey,Surrey,http://id.esd.org.uk/service/1465,Council expenditure,01/07/2015,WOODLANDS COMMUNITY HOME,SAINSBURYS,113.28,PURCHASE OF FOOD (RAW MATERIALS),"GROCERY STORES, SUPERMARKETS"
29/10/2015,http://opendatacommunities.org/id/county-council/surrey,Surrey,http://id.esd.org.uk/service/1465,Council expenditure,01/07/2015,CHEYNE WALK COMMUNITY HOME,AMAZON EU,24.52,EQUIPMENT,DIRECT MARKETING-OTHER DIRECT MARKETERS/NOT ELSEW.
29/10/2015,http://opendatacommunities.org/id/county-council/surrey,Surrey,http://id.esd.org.uk/service/1465,Council expenditure,01/07/2015,SE SECTION 17 CARE,AMAZON UK MARKETPLACE,138.9,CHILDREN ACT SEC 17 PAYMENTS,BOOK STORES
29/10/2015,http://opendatacommunities.org/id/county-council/surrey,Surrey,http://id.esd.org.uk/service/1465,Council expenditure,02/07/2015,MALLOW CRESCENT,TVLICENSING.CO.UK,145.5,EQUIPMENT,"CONSULTING, MANAGEMENT, AND PUBLIC RELATIONS SVCS"
29/10/2015,http://opendatacommunities.org/id/county-council/surrey,Surrey,http://id.esd.org.uk/service/1465,Council expenditure,02/07/2015,TARGETED INTERVENTION,WOKING BOROUGH COUNCIL,3.9,EDUC VISITS/HOLS/CAMPS/TOYS,AUTOMOBILE PARKING LOTS AND GARAGES
29/10/2015,http://opendatacommunities.org/id/county-council/surrey,Surrey,http://id.esd.org.uk/service/1465,Council expenditure,02/07/2015,COMMUNICATIONS TEAM,TIMES NEWSPAPERS LTD,34.67,SUBSCRIPTIONS,"BOOKS,PERIODICALS AND NEWSPAPERS"
29/10/2015,http://opendatacommunities.org/id/county-council/surrey,Surrey,http://id.esd.org.uk/service/1465,Council expenditure,02/07/2015,MALLOW CRESCENT,TVLICENSING.CO.UK,145.5,EQUIPMENT,"CONSULTING, MANAGEMENT, AND PUBLIC RELATIONS SVCS"
29/10/2015,http://opendatacommunities.org/id/county-council/surrey,Surrey,http://id.esd.org.uk/service/1465,Council expenditure,02/07/2015,ACL CENTRAL EXPENDITURE,THE CONSORTIUM/WMS,126.07,EQUIPMENT,DIRECT MARKETING-CONTINUITY/SUBSCRIPTION MERCHANTS
29/10/2015,http://opendatacommunities.org/id/county-council/surrey,Surrey,http://id.esd.org.uk/service/1465,Council expenditure,02/07/2015,ASSET PLANNING GROUP,THE EUROPA HOTEL,90,MISCELLANEOUS STAFF TRAVEL,"LODGING-HOTELS,MOTELS,RESORTS-NOT CLASSIFIED"
29/10/2015,http://opendatacommunities.org/id/county-council/surrey,Surrey,http://id.esd.org.uk/service/1465,Council expenditure,02/07/2015,MAGNA CARTA CELEBRATIONS,PAYPAL  BABZMEDIALT,1.29,EQUIPMENT,CHEMICALS/ALLIED PRODUCTS NOT ELSEWHERE CLASSIFIED
29/10/2015,http://opendatacommunities.org/id/county-council/surrey,Surrey,http://id.esd.org.uk/service/1465,Council expenditure,02/07/2015,MALLOW CRESCENT,TVLICENSING.CO.UK,145.5,EQUIPMENT,"CONSULTING, MANAGEMENT, AND PUBLIC RELATIONS SVCS"
29/10/2015,http://opendatacommunities.org/id/county-council/surrey,Surrey,http://id.esd.org.uk/service/1465,Council expenditure,02/07/2015,ASYLUM SEEKERS 18+,LANES HOTEL,180,3RD PARTY PAYMENTS PRIVATE INDIV,"LODGING-HOTELS,MOTELS,RESORTS-NOT CLASSIFIED"
29/10/2015,http://opendatacommunities.org/id/county-council/surrey,Surrey,http://id.esd.org.uk/service/1465,Council expenditure,02/07/2015,HILLSIDE,SAINSBURYS,18.6,PURCHASE OF FOOD (RAW MATERIALS),"GROCERY STORES, SUPERMARKETS"
29/10/2015,http://opendatacommunities.org/id/county-council/surrey,Surrey,http://id.esd.org.uk/service/1465,Council expenditure,02/07/2015,HILLSIDE,SAINSBURYS,9.3,PURCHASE OF FOOD (RAW MATERIALS),"GROCERY STORES, SUPERMARKETS"
29/10/2015,http://opendatacommunities.org/id/county-council/surrey,Surrey,http://id.esd.org.uk/service/1465,Council expenditure,02/07/2015,NE CARE - LAC,WWW CAPITALRESOLVE COM,90,NON-STAFF RELATED TRANSPORT COSTS,OTHER SERVICES (NOT ELSEWHERE CLASSIFIED)
29/10/2015,http://opendatacommunities.org/id/county-council/surrey,Surrey,http://id.esd.org.uk/service/1465,Council expenditure,02/07/2015,FOSTERING SERVICE CENTRAL COSTS,AMAZON UK MARKETPLACE,30.4,EQUIPMENT,BOOK STORES
29/10/2015,http://opendatacommunities.org/id/county-council/surrey,Surrey,http://id.esd.org.uk/service/1465,Council expenditure,02/07/2015,TRANSPORT,AMAZON UK MARKETPLACE,185.24,FURNITURE,BOOK STORES
29/10/2015,http://opendatacommunities.org/id/county-council/surrey,Surrey,http://id.esd.org.uk/service/1465,Council expenditure,02/07/2015,SOLD DAY TO DAY OPERATIONS,WWW.TTS-GROUPS.CO.UK,67.08,EQUIPMENT,"OFFICE, SCHOOL SUPPLY, AND STATIONERY STORES"
29/10/2015,http://opendatacommunities.org/id/county-council/surrey,Surrey,http://id.esd.org.uk/service/1465,Council expenditure,02/07/2015,SOLD DAY TO DAY OPERATIONS,WWW.TOPPERSAILBOATS.CO,104.95,EQUIPMENT,BOAT DEALERS
29/10/2015,http://opendatacommunities.org/id/county-council/surrey,Surrey,http://id.esd.org.uk/service/1465,Council expenditure,02/07/2015,LSTF GRANT,ODEON,25,EQUIPMENT,MOTION PICTURE THEATERS
29/10/2015,http://opendatacommunities.org/id/county-council/surrey,Surrey,http://id.esd.org.uk/service/1465,Council expenditure,02/07/2015,SOLD DAY TO DAY OPERATIONS,"AMAZON SVCS EUROPE,SAR",139.95,EQUIPMENT,BOOK STORES
29/10/2015,http://opendatacommunities.org/id/county-council/surrey,Surrey,http://id.esd.org.uk/service/1465,Council expenditure,02/07/2015,COMMUNICATIONS TEAM,AMAZON UK MARKETPLACE,1.28,STATIONERY,BOOK STORES
29/10/2015,http://opendatacommunities.org/id/county-council/surrey,Surrey,http://id.esd.org.uk/service/1465,Council expenditure,02/07/2015,SUPERFAST BROADBAND ECONOMIC DEVELOPMENT,GOOGLE  SVCSAPPS_SUPER,30.25,COMPUTER SERVICES,DIRECT MARKETING-CONTINUITY/SUBSCRIPTION MERCHANTS
29/10/2015,http://opendatacommunities.org/id/county-council/surrey,Surrey,http://id.esd.org.uk/service/1465,Council expenditure,02/07/2015,SOLD CATERING,ASDA SUPERSTORE,63.84,PURCHASE OF FOOD (RAW MATERIALS),"GROCERY STORES, SUPERMARKETS"
29/10/2015,http://opendatacommunities.org/id/county-council/surrey,Surrey,http://id.esd.org.uk/service/1465,Council expenditure,02/07/2015,SOLD ESTATES MANAGEMENT,MERITYRE SPECIALISTS,30,VEHICLE REPAIRS AND MAINTENANCE,"AUTOMOTIVE PARTS, ACCESSORIES STORES"
29/10/2015,http://opendatacommunities.org/id/county-council/surrey,Surrey,http://id.esd.org.uk/service/1465,Council expenditure,02/07/2015,ARUNDEL,TESCOS,170,EDUC VISITS/HOLS/CAMPS/TOYS,"GROCERY STORES, SUPERMARKETS"
29/10/2015,http://opendatacommunities.org/id/county-council/surrey,Surrey,http://id.esd.org.uk/service/1465,Council expenditure,02/07/2015,ARUNDEL,TESCOS,12.34,EDUC VISITS/HOLS/CAMPS/TOYS,"GROCERY STORES, SUPERMARKETS"
29/10/2015,http://opendatacommunities.org/id/county-council/surrey,Surrey,http://id.esd.org.uk/service/1465,Council expenditure,02/07/2015,TARGETED INTERVENTION,NEW LOOK 1792,6,EXAMINATION FEES,WOMEN'S READY TO WEAR STORES
29/10/2015,http://opendatacommunities.org/id/county-council/surrey,Surrey,http://id.esd.org.uk/service/1465,Council expenditure,02/07/2015,ACCESS 2 EDUCATION NE NON-MEDICAL,WWW.EPLANBOOKS.COM,93.96,CURRIC BOOKS,BOOK STORES
29/10/2015,http://opendatacommunities.org/id/county-council/surrey,Surrey,http://id.esd.org.uk/service/1465,Council expenditure,02/07/2015,SW LOOKED AFTER TEAM,GRO HM PASSPORT OFFICE,23.4,LEGAL EXPENSES,GOVERNMENT SERVICES-NOT ELSEWHERE CLASSIFIED
29/10/2015,http://opendatacommunities.org/id/county-council/surrey,Surrey,http://id.esd.org.uk/service/1465,Council expenditure,02/07/2015,LSTF GRANT,CULLENDERS,65,EQUIPMENT,"GROCERY STORES, SUPERMARKETS"
29/10/2015,http://opendatacommunities.org/id/county-council/surrey,Surrey,http://id.esd.org.uk/service/1465,Council expenditure,02/07/2015,PE/CDT MAINTENANCE OVERHEADS,WWW.PLAYDALE.CO.UK,219.39,EQUIPMENT,INDUSTRIAL SUPPLIES NOT ELSEWHERE CLASSIFIED
29/10/2015,http://opendatacommunities.org/id/county-council/surrey,Surrey,http://id.esd.org.uk/service/1465,Council expenditure,02/07/2015,KARIBU COMMUNITY HOME,ROKERS LTD,14.99,EQUIPMENT,PET SHOPS - PET FOODS AND SUPPLIES
29/10/2015,http://opendatacommunities.org/id/county-council/surrey,Surrey,http://id.esd.org.uk/service/1465,Council expenditure,02/07/2015,LSTF GRANT,CHALK HILLS BAKERY,65,EQUIPMENT,"EATING PLACES, RESTAURANTS"
29/10/2015,http://opendatacommunities.org/id/county-council/surrey,Surrey,http://id.esd.org.uk/service/1465,Council expenditure,02/07/2015,TARGETED INTERVENTION,COSTA @ DEBENHAMS 4303,6.1,EDUC VISITS/HOLS/CAMPS/TOYS,"EATING PLACES, RESTAURANTS"
29/10/2015,http://opendatacommunities.org/id/county-council/surrey,Surrey,http://id.esd.org.uk/service/1465,Council expenditure,02/07/2015,FAIRCROFT COMMUNITY HOME,SAINSBURYS SACAT 0687,39.99,EQUIPMENT,"GROCERY STORES, SUPERMARKETS"
29/10/2015,http://opendatacommunities.org/id/county-council/surrey,Surrey,http://id.esd.org.uk/service/1465,Council expenditure,02/07/2015,CHILDREN'S RIGHTS TEAM,TESCO STORES 6542,3,REFRESHMENT COSTS,"GROCERY STORES, SUPERMARKETS"
29/10/2015,http://opendatacommunities.org/id/county-council/surrey,Surrey,http://id.esd.org.uk/service/1465,Council expenditure,02/07/2015,TARGETED INTERVENTION,HARRIS & HOOLE,1.95,EDUC VISITS/HOLS/CAMPS/TOYS,"EATING PLACES, RESTAURANTS"
29/10/2015,http://opendatacommunities.org/id/county-council/surrey,Surrey,http://id.esd.org.uk/service/1465,Council expenditure,02/07/2015,SFRS-SERVICE DELIVERY,AMAZON UK MARKETPLACE,45.66,EQUIPMENT,BOOK STORES
29/10/2015,http://opendatacommunities.org/id/county-council/surrey,Surrey,http://id.esd.org.uk/service/1465,Council expenditure,02/07/2015,LOCAL PREVENTION FRAMEWORK - TANDRIDGE,FREEDOM LEISURE,6.6,EDUC VISITS/HOLS/CAMPS/TOYS,RECREATION SERVICES (NOT ELSEWHERE CLASSIFIED)
29/10/2015,http://opendatacommunities.org/id/county-council/surrey,Surrey,http://id.esd.org.uk/service/1465,Council expenditure,02/07/2015,SCHOOL GAMES LOC 2015-16                ,W M MORRISON,12.47,HIRE OF VEHICLES,SERVICE STATIONS WITH OR WITHOUT ANCILLARY SERVICE
29/10/2015,http://opendatacommunities.org/id/county-council/surrey,Surrey,http://id.esd.org.uk/service/1465,Council expenditure,02/07/2015,HEAD OF PROCUREMENT,AMAZON EU,95,BOOKS,DIRECT MARKETING-OTHER DIRECT MARKETERS/NOT ELSEW.
29/10/2015,http://opendatacommunities.org/id/county-council/surrey,Surrey,http://id.esd.org.uk/service/1465,Council expenditure,02/07/2015,ADOPTION TEAM,WWW.SPEAKIT.INFO,111.54,EQUIPMENT,"OFFICE, SCHOOL SUPPLY, AND STATIONERY STORES"
29/10/2015,http://opendatacommunities.org/id/county-council/surrey,Surrey,http://id.esd.org.uk/service/1465,Council expenditure,02/07/2015,CHILDREN'S RIGHTS TEAM,HAWKINS BAZAAR,12,STATIONERY,"GAME, TOY, AND HOBBY SHOPS"
29/10/2015,http://opendatacommunities.org/id/county-council/surrey,Surrey,http://id.esd.org.uk/service/1465,Council expenditure,02/07/2015,RUTH HOUSE,ZOOPLUS,99.9,EDUC VISITS/HOLS/CAMPS/TOYS,PET SHOPS - PET FOODS AND SUPPLIES
29/10/2015,http://opendatacommunities.org/id/county-council/surrey,Surrey,http://id.esd.org.uk/service/1465,Council expenditure,02/07/2015,NORTH EAST AREA TEAM,POUNDLAND LTD 1317,8,REFRESHMENT COSTS,DISCOUNT STORES
29/10/2015,http://opendatacommunities.org/id/county-council/surrey,Surrey,http://id.esd.org.uk/service/1465,Council expenditure,02/07/2015,SURREY ARTS OPEN STUDIOS,WP-THE CRATFS COUNCIL,29.58,PUBLICITY,"ORGANIZATIONS, CHARITABLE AND SOCIAL SERVICES"
29/10/2015,http://opendatacommunities.org/id/county-council/surrey,Surrey,http://id.esd.org.uk/service/1465,Council expenditure,02/07/2015,LAKERS YC,WAITROSE 181,8.86,EQUIPMENT,"GROCERY STORES, SUPERMARKETS"
29/10/2015,http://opendatacommunities.org/id/county-council/surrey,Surrey,http://id.esd.org.uk/service/1465,Council expenditure,02/07/2015,CHEYNE WALK COMMUNITY HOME,SAINSBURYS TO YOU 0026,224.7,PURCHASE OF FOOD (RAW MATERIALS),"GROCERY STORES, SUPERMARKETS"
29/10/2015,http://opendatacommunities.org/id/county-council/surrey,Surrey,http://id.esd.org.uk/service/1465,Council expenditure,02/07/2015,AREA SCHOOLS OFFICER (NE),SURREY CC CARD PAY,12,TRAINING EXPENSES EXTERNAL GENERAL,COMPUTER NETWORK/INFORMATION SERVICES
29/10/2015,http://opendatacommunities.org/id/county-council/surrey,Surrey,http://id.esd.org.uk/service/1465,Council expenditure,02/07/2015,POLICY AND PERFORMANCE TEAM,AMAZON EU,34.68,EQUIPMENT,DIRECT MARKETING-OTHER DIRECT MARKETERS/NOT ELSEW.
29/10/2015,http://opendatacommunities.org/id/county-council/surrey,Surrey,http://id.esd.org.uk/service/1465,Council expenditure,02/07/2015,OCCUPATIONAL HEALTH,AMAZON UK MARKETPLACE,66,EQUIPMENT,BOOK STORES
29/10/2015,http://opendatacommunities.org/id/county-council/surrey,Surrey,http://id.esd.org.uk/service/1465,Council expenditure,02/07/2015,LAC INITIATIVES,THE DERBYSHIRE HOTEL,79,SUBSISTENCE AND CONFERENCE EXPENSES,"LODGING-HOTELS,MOTELS,RESORTS-NOT CLASSIFIED"
29/10/2015,http://opendatacommunities.org/id/county-council/surrey,Surrey,http://id.esd.org.uk/service/1465,Council expenditure,02/07/2015,SE SECTION 17 CARE,TRAVELODGE WEBSITE,61.4,INDEPENDENT LIVING PLACEMENTS,TRAVELODGE
29/10/2015,http://opendatacommunities.org/id/county-council/surrey,Surrey,http://id.esd.org.uk/service/1465,Council expenditure,02/07/2015,MALLOW CRESCENT,SAINSBURYS,16.3,PURCHASE OF FOOD (RAW MATERIALS),"GROCERY STORES, SUPERMARKETS"
29/10/2015,http://opendatacommunities.org/id/county-council/surrey,Surrey,http://id.esd.org.uk/service/1465,Council expenditure,02/07/2015,MALLOW CRESCENT,SAINSBURYS,75.65,PURCHASE OF FOOD (RAW MATERIALS),"GROCERY STORES, SUPERMARKETS"
29/10/2015,http://opendatacommunities.org/id/county-council/surrey,Surrey,http://id.esd.org.uk/service/1465,Council expenditure,02/07/2015,RUTH HOUSE,W M MORRISONS,21.85,PURCHASE OF FOOD (RAW MATERIALS),"GROCERY STORES, SUPERMARKETS"
29/10/2015,http://opendatacommunities.org/id/county-council/surrey,Surrey,http://id.esd.org.uk/service/1465,Council expenditure,02/07/2015,SW SECTION 17 CARE,TRAVELODGE WEBSITE,69,CHILDREN ACT SEC 17 PAYMENTS,TRAVELODGE
29/10/2015,http://opendatacommunities.org/id/county-council/surrey,Surrey,http://id.esd.org.uk/service/1465,Council expenditure,02/07/2015,COUNTY HALL,JCM LOCKSMITHS LTD,325.1,DAY TO DAY MAINTENANCE,HARDWARE STORES
29/10/2015,http://opendatacommunities.org/id/county-council/surrey,Surrey,http://id.esd.org.uk/service/1465,Council expenditure,02/07/2015,TRAINING PROPERTY,WWW.LEARNING-AT-HOME.C,498,TRAINING EXPENSES EXTERNAL GENERAL,"SCHOOLS, TRADE AND VOCATIONAL"
29/10/2015,http://opendatacommunities.org/id/county-council/surrey,Surrey,http://id.esd.org.uk/service/1465,Council expenditure,02/07/2015,BUSINESS IMPROVEMENTS,UNFLATPACK UKINSTALLAT,150,FURNITURE,GENERAL CONTRACTORS/RESIDENTIAL BUILDINGS
29/10/2015,http://opendatacommunities.org/id/county-council/surrey,Surrey,http://id.esd.org.uk/service/1465,Council expenditure,02/07/2015,TARGETED INTERVENTION,JD SPORTS PLC,20,EXAMINATION FEES,SPORTING GOODS STORES
29/10/2015,http://opendatacommunities.org/id/county-council/surrey,Surrey,http://id.esd.org.uk/service/1465,Council expenditure,02/07/2015,IMT TECHNICAL DELIVERY,AMAZON EU,171.33,COMPUTER HARDWARE,DIRECT MARKETING-OTHER DIRECT MARKETERS/NOT ELSEW.
29/10/2015,http://opendatacommunities.org/id/county-council/surrey,Surrey,http://id.esd.org.uk/service/1465,Council expenditure,03/07/2015,NW CARE - LAC,SURREY CC CARD PAY,-11,FEES,COMPUTER NETWORK/INFORMATION SERVICES
29/10/2015,http://opendatacommunities.org/id/county-council/surrey,Surrey,http://id.esd.org.uk/service/1465,Council expenditure,03/07/2015,NW CARE - LAC,SURREY CC CARD PAY,-11,EQUIPMENT,COMPUTER NETWORK/INFORMATION SERVICES
29/10/2015,http://opendatacommunities.org/id/county-council/surrey,Surrey,http://id.esd.org.uk/service/1465,Council expenditure,03/07/2015,COMMUNICATIONS TEAM,FINANCIAL TIMES,54,SUBSCRIPTIONS,DIRECT MARKETING-CATALOG MERCHANTS
29/10/2015,http://opendatacommunities.org/id/county-council/surrey,Surrey,http://id.esd.org.uk/service/1465,Council expenditure,03/07/2015,TRANSPORT,AMAZON UK MARKETPLACE,44.25,FURNITURE,BOOK STORES
29/10/2015,http://opendatacommunities.org/id/county-council/surrey,Surrey,http://id.esd.org.uk/service/1465,Council expenditure,03/07/2015,TRANSPORT,AMAZON EU,9.57,STATIONERY,DIRECT MARKETING-OTHER DIRECT MARKETERS/NOT ELSEW.
29/10/2015,http://opendatacommunities.org/id/county-council/surrey,Surrey,http://id.esd.org.uk/service/1465,Council expenditure,03/07/2015,COVEHAM,SAINSBURYS 0687,5.4,CLEANING AND DOMESTIC SUPPLIES,"GROCERY STORES, SUPERMARKETS"
29/10/2015,http://opendatacommunities.org/id/county-council/surrey,Surrey,http://id.esd.org.uk/service/1465,Council expenditure,03/07/2015,ACCESS 2 EDUCATION NE NON-MEDICAL,AMAZON EU,52.88,EQUIPMENT,DIRECT MARKETING-OTHER DIRECT MARKETERS/NOT ELSEW.
29/10/2015,http://opendatacommunities.org/id/county-council/surrey,Surrey,http://id.esd.org.uk/service/1465,Council expenditure,03/07/2015,PE/CDT MAINTENANCE OVERHEADS,POST OFFICE COUNTER,15.85,POSTAGE AND COURIER CHARGES,POSTAL SERVICES-GOVERNMENT ONLY
29/10/2015,http://opendatacommunities.org/id/county-council/surrey,Surrey,http://id.esd.org.uk/service/1465,Council expenditure,03/07/2015,HOPE SERVICE - EAST,HOEBRIDGE GOLF,11.3,EDUC VISITS/HOLS/CAMPS/TOYS,GOLF COURSES-PUBLIC
29/10/2015,http://opendatacommunities.org/id/county-council/surrey,Surrey,http://id.esd.org.uk/service/1465,Council expenditure,03/07/2015,HOLLAND CLOSE RESIDENTIAL HOME,WH SMITH,4.49,CURRICULUM EQUIPMENT AND FURNITURE,NEWS DEALERS AND NEWSSTANDS
29/10/2015,http://opendatacommunities.org/id/county-council/surrey,Surrey,http://id.esd.org.uk/service/1465,Council expenditure,03/07/2015,TRANSPORT,SCREWFIX,78.04,DAY TO DAY MAINTENANCE,"BUILDING MATERIALS, LUMBER STORES"
29/10/2015,http://opendatacommunities.org/id/county-council/surrey,Surrey,http://id.esd.org.uk/service/1465,Council expenditure,03/07/2015,HOPE SERVICE - WEST,AMAZON UK MARKETPLACE,11.25,CURRICULUM EQUIPMENT AND FURNITURE,BOOK STORES
29/10/2015,http://opendatacommunities.org/id/county-council/surrey,Surrey,http://id.esd.org.uk/service/1465,Council expenditure,03/07/2015,COVEHAM,SANDY BALLS ESTATE,500,EDUC VISITS/HOLS/CAMPS/TOYS,CAMPGROUNDS AND TRAILER PARKS
29/10/2015,http://opendatacommunities.org/id/county-council/surrey,Surrey,http://id.esd.org.uk/service/1465,Council expenditure,03/07/2015,TRAINING ENVIRONMENT SERVICES,WWW.LETSRECYCLE.COM,569.04,TRAINING EXPENSES EXTERNAL GENERAL,ADVERTISING SERVICES
29/10/2015,http://opendatacommunities.org/id/county-council/surrey,Surrey,http://id.esd.org.uk/service/1465,Council expenditure,03/07/2015,TRANSPORT,AMAZON EU,8.92,STATIONERY,DIRECT MARKETING-OTHER DIRECT MARKETERS/NOT ELSEW.
29/10/2015,http://opendatacommunities.org/id/county-council/surrey,Surrey,http://id.esd.org.uk/service/1465,Council expenditure,03/07/2015,CHILDREN'S RIGHTS TEAM,PRIMARK,7.6,EQUIPMENT,FAMILY CLOTHING STORES
29/10/2015,http://opendatacommunities.org/id/county-council/surrey,Surrey,http://id.esd.org.uk/service/1465,Council expenditure,03/07/2015,SOLD CURRICULUM PROGRAMME DELIVERY,WWW.BEGROUP.CO.UK,118.8,EDUC VISITS/HOLS/CAMPS/TOYS,BUSINESS SERVICES-NOT ELSEWHERE CLASSIFIED
29/10/2015,http://opendatacommunities.org/id/county-council/surrey,Surrey,http://id.esd.org.uk/service/1465,Council expenditure,03/07/2015,SURREY ARTS GENERAL,FOUR X NINETY LTD,100.74,EQUIPMENT,HARDWARE EQUIPMENT AND SUPPLIES
29/10/2015,http://opendatacommunities.org/id/county-council/surrey,Surrey,http://id.esd.org.uk/service/1465,Council expenditure,03/07/2015,ASSET PLANNING - OPERATIONS,POST OFFICE COUNTER,5.45,FEES,POSTAL SERVICES-GOVERNMENT ONLY
29/10/2015,http://opendatacommunities.org/id/county-council/surrey,Surrey,http://id.esd.org.uk/service/1465,Council expenditure,03/07/2015,CHEYNE WALK COMMUNITY HOME,SHY HORSE,95.68,PURCHASE OF FOOD (RAW MATERIALS),"EATING PLACES, RESTAURANTS"
29/10/2015,http://opendatacommunities.org/id/county-council/surrey,Surrey,http://id.esd.org.uk/service/1465,Council expenditure,03/07/2015,SURREY ARTS GENERAL,AMAZON EU,17.99,EQUIPMENT,DIRECT MARKETING-OTHER DIRECT MARKETERS/NOT ELSEW.
29/10/2015,http://opendatacommunities.org/id/county-council/surrey,Surrey,http://id.esd.org.uk/service/1465,Council expenditure,03/07/2015,ADOPTION TEAM,AMAZON EU,90.63,LIBRARY RESOURCES,DIRECT MARKETING-OTHER DIRECT MARKETERS/NOT ELSEW.
29/10/2015,http://opendatacommunities.org/id/county-council/surrey,Surrey,http://id.esd.org.uk/service/1465,Council expenditure,03/07/2015,SERVICE MARKETING,AMAZON UK MARKETPLACE,17.98,EQUIPMENT,BOOK STORES
29/10/2015,http://opendatacommunities.org/id/county-council/surrey,Surrey,http://id.esd.org.uk/service/1465,Council expenditure,03/07/2015,COVEHAM,ARGOS LTD,89.97,EQUIPMENT,DISCOUNT STORES
29/10/2015,http://opendatacommunities.org/id/county-council/surrey,Surrey,http://id.esd.org.uk/service/1465,Council expenditure,03/07/2015,PE/CDT MAINTENANCE OVERHEADS,PORTER VALMIC,237.6,EQUIPMENT,"FURNITURE-REUPHOLSTERY AND REPAIR, REFINISHING"
29/10/2015,http://opendatacommunities.org/id/county-council/surrey,Surrey,http://id.esd.org.uk/service/1465,Council expenditure,03/07/2015,SW SECTION 17 CARE,TRAVELODGE WEBSITE,494,CHILDREN ACT SEC 17 PAYMENTS,TRAVELODGE
29/10/2015,http://opendatacommunities.org/id/county-council/surrey,Surrey,http://id.esd.org.uk/service/1465,Council expenditure,03/07/2015,RESOURCES STATIONERY                    ,AMAZON UK MARKETPLACE,15.98,LIBRARY RESOURCES,BOOK STORES
29/10/2015,http://opendatacommunities.org/id/county-council/surrey,Surrey,http://id.esd.org.uk/service/1465,Council expenditure,03/07/2015,LEAVING CARE PACKAGES,FAIRDENE GUEST HOUSE,280,INDEPENDENT LIVING PLACEMENTS,"LODGING-HOTELS,MOTELS,RESORTS-NOT CLASSIFIED"
29/10/2015,http://opendatacommunities.org/id/county-council/surrey,Surrey,http://id.esd.org.uk/service/1465,Council expenditure,03/07/2015,NW CARE - LAC,SURREY CC CARD PAY,11,FEES,COMPUTER NETWORK/INFORMATION SERVICES
29/10/2015,http://opendatacommunities.org/id/county-council/surrey,Surrey,http://id.esd.org.uk/service/1465,Council expenditure,03/07/2015,ASHTEAD YC,TESCO STORE 3235,44.29,REFRESHMENT COSTS,"GROCERY STORES, SUPERMARKETS"
29/10/2015,http://opendatacommunities.org/id/county-council/surrey,Surrey,http://id.esd.org.uk/service/1465,Council expenditure,03/07/2015,MOLESEY YC,AMZ PRINTED,62.26,PUBLICITY,COMPUTER NETWORK/INFORMATION SERVICES
29/10/2015,http://opendatacommunities.org/id/county-council/surrey,Surrey,http://id.esd.org.uk/service/1465,Council expenditure,03/07/2015,COUNTY HALL,BHS 026,99.98,EQUIPMENT,DEPARTMENT STORES
29/10/2015,http://opendatacommunities.org/id/county-council/surrey,Surrey,http://id.esd.org.uk/service/1465,Council expenditure,03/07/2015,CHEYNE WALK COMMUNITY HOME,TESCO STORE 2560,41.54,EQUIPMENT,"GROCERY STORES, SUPERMARKETS"
29/10/2015,http://opendatacommunities.org/id/county-council/surrey,Surrey,http://id.esd.org.uk/service/1465,Council expenditure,03/07/2015,OCCUPATIONAL HEALTH,AMAZON EU,16.31,EQUIPMENT,DIRECT MARKETING-OTHER DIRECT MARKETERS/NOT ELSEW.
29/10/2015,http://opendatacommunities.org/id/county-council/surrey,Surrey,http://id.esd.org.uk/service/1465,Council expenditure,03/07/2015,RUTH HOUSE,WALLPAPER WAREHSE LTD,133.82,EQUIPMENT,"GLASS, PAINT, WALLPAPER STORES"
29/10/2015,http://opendatacommunities.org/id/county-council/surrey,Surrey,http://id.esd.org.uk/service/1465,Council expenditure,03/07/2015,HOPE SERVICE - WEST,AMAZON UK MARKETPLACE,44.12,CURRICULUM EQUIPMENT AND FURNITURE,BOOK STORES
29/10/2015,http://opendatacommunities.org/id/county-council/surrey,Surrey,http://id.esd.org.uk/service/1465,Council expenditure,03/07/2015,LIBERTAS COMMUNITY HOME,OCADO LTD.,97.52,PURCHASE OF FOOD (RAW MATERIALS),"MISC FOOD STORE-CONVENIENCE,MRKT,SPLTY,VENDNG MACS"
29/10/2015,http://opendatacommunities.org/id/county-council/surrey,Surrey,http://id.esd.org.uk/service/1465,Council expenditure,03/07/2015,WORKPLACE ACTIVITY                      ,CURRYS ONLINE,84.99,ITEMS PURCHASED FOR RE-SALE,ELECTRONIC SALES
29/10/2015,http://opendatacommunities.org/id/county-council/surrey,Surrey,http://id.esd.org.uk/service/1465,Council expenditure,03/07/2015,NW CARE - LAC,SURREY CC CARD PAY,11,FEES,COMPUTER NETWORK/INFORMATION SERVICES
29/10/2015,http://opendatacommunities.org/id/county-council/surrey,Surrey,http://id.esd.org.uk/service/1465,Council expenditure,03/07/2015,COBGATES RESIDENTIAL CARE,AMAZON UK MARKETPLACE,79.8,EQUIPMENT,BOOK STORES
29/10/2015,http://opendatacommunities.org/id/county-council/surrey,Surrey,http://id.esd.org.uk/service/1465,Council expenditure,03/07/2015,TRAINING AND DEVELOPMENT,AMAZON EU,170.28,TRAINING EXPENSES EXTERNAL GENERAL,DIRECT MARKETING-OTHER DIRECT MARKETERS/NOT ELSEW.
29/10/2015,http://opendatacommunities.org/id/county-council/surrey,Surrey,http://id.esd.org.uk/service/1465,Council expenditure,03/07/2015,TRANSPORT,AMAZON UK MARKETPLACE,39.45,FURNITURE,BOOK STORES
29/10/2015,http://opendatacommunities.org/id/county-council/surrey,Surrey,http://id.esd.org.uk/service/1465,Council expenditure,03/07/2015,HOPE SERVICE - WEST,SAINSBURYS SACAT(4409),13.44,PURCHASE OF FOOD (RAW MATERIALS),"GROCERY STORES, SUPERMARKETS"
29/10/2015,http://opendatacommunities.org/id/county-council/surrey,Surrey,http://id.esd.org.uk/service/1465,Council expenditure,03/07/2015,PE/CDT MAINTENANCE OVERHEADS,B & G LOCK & TOOL CO L,214.21,EQUIPMENT,HOUSEHOLD APPLIANCE STORES
29/10/2015,http://opendatacommunities.org/id/county-council/surrey,Surrey,http://id.esd.org.uk/service/1465,Council expenditure,03/07/2015,WOODLANDS COMMUNITY HOME,VUE BSL LTD,34.07,EDUC VISITS/HOLS/CAMPS/TOYS,MOTION PICTURE THEATERS
29/10/2015,http://opendatacommunities.org/id/county-council/surrey,Surrey,http://id.esd.org.uk/service/1465,Council expenditure,03/07/2015,COUNTYWIDE MANAGED PRINT SERVICE,AMAZON UK MARKETPLACE,193.35,COMPUTER CONSUMABLES,BOOK STORES
29/10/2015,http://opendatacommunities.org/id/county-council/surrey,Surrey,http://id.esd.org.uk/service/1465,Council expenditure,03/07/2015,LAKERS YC,SAINSBURYS 0686,34.43,REFRESHMENT COSTS,"GROCERY STORES, SUPERMARKETS"
29/10/2015,http://opendatacommunities.org/id/county-council/surrey,Surrey,http://id.esd.org.uk/service/1465,Council expenditure,03/07/2015,SW SECTION 17 CARE,TRAVELODGE WEBSITE,452,CHILDREN ACT SEC 17 PAYMENTS,TRAVELODGE
29/10/2015,http://opendatacommunities.org/id/county-council/surrey,Surrey,http://id.esd.org.uk/service/1465,Council expenditure,03/07/2015,ASHTEAD YC,GOV.UK/DART-CHARGE,5,MISCELLANEOUS STAFF TRAVEL,"BRIDGE AND ROAD FEES, TOLLS"
29/10/2015,http://opendatacommunities.org/id/county-council/surrey,Surrey,http://id.esd.org.uk/service/1465,Council expenditure,03/07/2015,ARUNDEL,TESCO STORES 5999,75.02,REFRESHMENT COSTS,"GROCERY STORES, SUPERMARKETS"
29/10/2015,http://opendatacommunities.org/id/county-council/surrey,Surrey,http://id.esd.org.uk/service/1465,Council expenditure,03/07/2015,WOODLANDS COMMUNITY HOME,WWW.YHA.ORG.UK,40,EDUC VISITS/HOLS/CAMPS/TOYS,"LODGING-HOTELS,MOTELS,RESORTS-NOT CLASSIFIED"
29/10/2015,http://opendatacommunities.org/id/county-council/surrey,Surrey,http://id.esd.org.uk/service/1465,Council expenditure,03/07/2015,NW SECTION 17 CARE,TRAVELODGE WEBSITE,521,CHILDREN ACT SEC 17 PAYMENTS,TRAVELODGE
29/10/2015,http://opendatacommunities.org/id/county-council/surrey,Surrey,http://id.esd.org.uk/service/1465,Council expenditure,03/07/2015,ASHTEAD YC,ASHSTEAD COBBLERS,14,EQUIPMENT,"HAT CLEANING SHOPS, SHOE REPAIR SHOPS, SHOE SHINE"
29/10/2015,http://opendatacommunities.org/id/county-council/surrey,Surrey,http://id.esd.org.uk/service/1465,Council expenditure,03/07/2015,FAIRCROFT COMMUNITY HOME,SAINSBURYS,16.3,EQUIPMENT,HARDWARE STORES
29/10/2015,http://opendatacommunities.org/id/county-council/surrey,Surrey,http://id.esd.org.uk/service/1465,Council expenditure,03/07/2015,FAIRCROFT COMMUNITY HOME,SAINSBURYS,1.98,EQUIPMENT,HARDWARE STORES
29/10/2015,http://opendatacommunities.org/id/county-council/surrey,Surrey,http://id.esd.org.uk/service/1465,Council expenditure,03/07/2015,HILLSIDE,SAINSBURYS,68.14,PURCHASE OF FOOD (RAW MATERIALS),"GROCERY STORES, SUPERMARKETS"
29/10/2015,http://opendatacommunities.org/id/county-council/surrey,Surrey,http://id.esd.org.uk/service/1465,Council expenditure,03/07/2015,HILLSIDE,SAINSBURYS,11,PURCHASE OF FOOD (RAW MATERIALS),"GROCERY STORES, SUPERMARKETS"
29/10/2015,http://opendatacommunities.org/id/county-council/surrey,Surrey,http://id.esd.org.uk/service/1465,Council expenditure,03/07/2015,HOPE SERVICE - EAST,HOEBRIDGE GOLF,30.5,EDUC VISITS/HOLS/CAMPS/TOYS,GOLF COURSES-PUBLIC
29/10/2015,http://opendatacommunities.org/id/county-council/surrey,Surrey,http://id.esd.org.uk/service/1465,Council expenditure,03/07/2015,COVEHAM,SANDY BALLS ESTATE,956,EDUC VISITS/HOLS/CAMPS/TOYS,CAMPGROUNDS AND TRAILER PARKS
29/10/2015,http://opendatacommunities.org/id/county-council/surrey,Surrey,http://id.esd.org.uk/service/1465,Council expenditure,03/07/2015,APPLEWOOD,DOMESTIC & GENERAL,191.88,EQUIPMENT,"INSURANCE SALES,UNDERWRITING,AND PREMIUMS"
29/10/2015,http://opendatacommunities.org/id/county-council/surrey,Surrey,http://id.esd.org.uk/service/1465,Council expenditure,03/07/2015,ARUNDEL,SAINSBURYS TO YOU 0687,80.15,PURCHASE OF FOOD (RAW MATERIALS),"GROCERY STORES, SUPERMARKETS"
29/10/2015,http://opendatacommunities.org/id/county-council/surrey,Surrey,http://id.esd.org.uk/service/1465,Council expenditure,03/07/2015,ASYLUM SEEKERS 18+,LANES HOTEL,320,3RD PARTY PAYMENTS PRIVATE INDIV,"LODGING-HOTELS,MOTELS,RESORTS-NOT CLASSIFIED"
29/10/2015,http://opendatacommunities.org/id/county-council/surrey,Surrey,http://id.esd.org.uk/service/1465,Council expenditure,03/07/2015,WOODLANDS COMMUNITY HOME,SAINSBURYS,57.75,CLEANING MATERIALS,"GROCERY STORES, SUPERMARKETS"
29/10/2015,http://opendatacommunities.org/id/county-council/surrey,Surrey,http://id.esd.org.uk/service/1465,Council expenditure,03/07/2015,WOODLANDS COMMUNITY HOME,SAINSBURYS,11,PURCHASE OF FOOD (RAW MATERIALS),"GROCERY STORES, SUPERMARKETS"
29/10/2015,http://opendatacommunities.org/id/county-council/surrey,Surrey,http://id.esd.org.uk/service/1465,Council expenditure,03/07/2015,WOODLANDS COMMUNITY HOME,SAINSBURYS,56.39,PURCHASE OF FOOD (RAW MATERIALS),"GROCERY STORES, SUPERMARKETS"
29/10/2015,http://opendatacommunities.org/id/county-council/surrey,Surrey,http://id.esd.org.uk/service/1465,Council expenditure,03/07/2015,TRANSPORT,AMAZON EU,13.15,STATIONERY,DIRECT MARKETING-OTHER DIRECT MARKETERS/NOT ELSEW.
29/10/2015,http://opendatacommunities.org/id/county-council/surrey,Surrey,http://id.esd.org.uk/service/1465,Council expenditure,04/07/2015,FAMILY LANGUAGE /LITERACY/NUMERACY,POST OFFICE COUNTER,7.36,POSTAGE AND COURIER CHARGES,POSTAL SERVICES-GOVERNMENT ONLY
29/10/2015,http://opendatacommunities.org/id/county-council/surrey,Surrey,http://id.esd.org.uk/service/1465,Council expenditure,04/07/2015,CHILDREN'S RIGHTS TEAM,W M MORRISONS,25.24,REFRESHMENT COSTS,"GROCERY STORES, SUPERMARKETS"
29/10/2015,http://opendatacommunities.org/id/county-council/surrey,Surrey,http://id.esd.org.uk/service/1465,Council expenditure,04/07/2015,POLICY AND PERFORMANCE TEAM,GOOGLE  SVCSAPPS_SHIFT,36.3,COMPUTER SERVICES,DIRECT MARKETING-CONTINUITY/SUBSCRIPTION MERCHANTS
29/10/2015,http://opendatacommunities.org/id/county-council/surrey,Surrey,http://id.esd.org.uk/service/1465,Council expenditure,04/07/2015,CHILDREN'S RIGHTS TEAM,CERAMIC DESIGN (WHOLES,9.6,EQUIPMENT,"GLASS, PAINT, WALLPAPER STORES"
29/10/2015,http://opendatacommunities.org/id/county-council/surrey,Surrey,http://id.esd.org.uk/service/1465,Council expenditure,04/07/2015,ASHTEAD YC,MCDONALDS,33.78,REFRESHMENT COSTS,FAST FOOD RESTAURANTS
29/10/2015,http://opendatacommunities.org/id/county-council/surrey,Surrey,http://id.esd.org.uk/service/1465,Council expenditure,04/07/2015,ASHTEAD YC,BP BOREHAM CONNECT,22.75,PETROL/DIESEL ALL OFF BUSINESS,SERVICE STATIONS WITH OR WITHOUT ANCILLARY SERVICE
29/10/2015,http://opendatacommunities.org/id/county-council/surrey,Surrey,http://id.esd.org.uk/service/1465,Council expenditure,04/07/2015,CHILDREN'S RIGHTS TEAM,ARGOS LTD,14.99,EQUIPMENT,DISCOUNT STORES
29/10/2015,http://opendatacommunities.org/id/county-council/surrey,Surrey,http://id.esd.org.uk/service/1465,Council expenditure,04/07/2015,HILLSIDE,SAINSBURYS 0675,104,PURCHASE OF FOOD (RAW MATERIALS),"GROCERY STORES, SUPERMARKETS"
29/10/2015,http://opendatacommunities.org/id/county-council/surrey,Surrey,http://id.esd.org.uk/service/1465,Council expenditure,04/07/2015,WEB OPERATIONS TEAM,HOOTSUITE MEDIA INC.,4.74,SUBSCRIPTIONS,BUSINESS SERVICES-NOT ELSEWHERE CLASSIFIED
29/10/2015,http://opendatacommunities.org/id/county-council/surrey,Surrey,http://id.esd.org.uk/service/1465,Council expenditure,04/07/2015,LIBERTAS COMMUNITY HOME,CURRYS S/S,137.08,EQUIPMENT,ELECTRONIC SALES
29/10/2015,http://opendatacommunities.org/id/county-council/surrey,Surrey,http://id.esd.org.uk/service/1465,Council expenditure,04/07/2015,KARIBU COMMUNITY HOME,SUPERFISH ASHSTEAD,27.6,PURCHASE OF FOOD (RAW MATERIALS),FAST FOOD RESTAURANTS
29/10/2015,http://opendatacommunities.org/id/county-council/surrey,Surrey,http://id.esd.org.uk/service/1465,Council expenditure,04/07/2015,ASHTEAD YC,ASDA SUPERSTORE,11.6,REFRESHMENT COSTS,"GROCERY STORES, SUPERMARKETS"
29/10/2015,http://opendatacommunities.org/id/county-council/surrey,Surrey,http://id.esd.org.uk/service/1465,Council expenditure,04/07/2015,HOLLAND CLOSE RESIDENTIAL HOME,TESCO DELIVERY SAVER1,60,PURCHASE OF FOOD (RAW MATERIALS),"GROCERY STORES, SUPERMARKETS"
29/10/2015,http://opendatacommunities.org/id/county-council/surrey,Surrey,http://id.esd.org.uk/service/1465,Council expenditure,04/07/2015,SHEPPERTON LIBRARY,AMAZON UK MARKETPLACE,31.49,EQUIPMENT,BOOK STORES
29/10/2015,http://opendatacommunities.org/id/county-council/surrey,Surrey,http://id.esd.org.uk/service/1465,Council expenditure,04/07/2015,ASHTEAD YC,KINGPIN,48,EDUC VISITS/HOLS/CAMPS/TOYS,RECREATION SERVICES (NOT ELSEWHERE CLASSIFIED)
29/10/2015,http://opendatacommunities.org/id/county-council/surrey,Surrey,http://id.esd.org.uk/service/1465,Council expenditure,04/07/2015,CORE ACTIVITY                           ,GORSE HILL,102,TRAINING EXPENSES EXTERNAL GENERAL,"LODGING-HOTELS,MOTELS,RESORTS-NOT CLASSIFIED"
29/10/2015,http://opendatacommunities.org/id/county-council/surrey,Surrey,http://id.esd.org.uk/service/1465,Council expenditure,04/07/2015,RESOURCES STATIONERY                    ,AMAZON EU,31.5,LIBRARY RESOURCES,DIRECT MARKETING-OTHER DIRECT MARKETERS/NOT ELSEW.
29/10/2015,http://opendatacommunities.org/id/county-council/surrey,Surrey,http://id.esd.org.uk/service/1465,Council expenditure,04/07/2015,CHILDREN'S RIGHTS TEAM,W M MORRISONS,6,REFRESHMENT COSTS,"GROCERY STORES, SUPERMARKETS"
29/10/2015,http://opendatacommunities.org/id/county-council/surrey,Surrey,http://id.esd.org.uk/service/1465,Council expenditure,04/07/2015,FOOD PURCHASE JUL                       ,BURGER KING,40.53,OPERATIONAL FIRE EQUIPMENT,"EATING PLACES, RESTAURANTS"
29/10/2015,http://opendatacommunities.org/id/county-council/surrey,Surrey,http://id.esd.org.uk/service/1465,Council expenditure,04/07/2015,OCCUPATIONAL HEALTH,AMAZON UK MARKETPLACE,77.46,EQUIPMENT,BOOK STORES
29/10/2015,http://opendatacommunities.org/id/county-council/surrey,Surrey,http://id.esd.org.uk/service/1465,Council expenditure,04/07/2015,CHILDREN'S RIGHTS TEAM,W M MORRISONS,5,REFRESHMENT COSTS,"GROCERY STORES, SUPERMARKETS"
29/10/2015,http://opendatacommunities.org/id/county-council/surrey,Surrey,http://id.esd.org.uk/service/1465,Council expenditure,04/07/2015,COMMUNICATIONS TEAM,AMAZON UK MARKETPLACE,23.88,STATIONERY,BOOK STORES
29/10/2015,http://opendatacommunities.org/id/county-council/surrey,Surrey,http://id.esd.org.uk/service/1465,Council expenditure,04/07/2015,BURBANK COMMUNITY HOME,W M MORRISONS,11.32,PURCHASE OF FOOD (RAW MATERIALS),"GROCERY STORES, SUPERMARKETS"
29/10/2015,http://opendatacommunities.org/id/county-council/surrey,Surrey,http://id.esd.org.uk/service/1465,Council expenditure,05/07/2015,FAIRCROFT COMMUNITY HOME,WOKING BOROUGH COUNCIL,2.6,MISCELLANEOUS STAFF TRAVEL,AUTOMOBILE PARKING LOTS AND GARAGES
29/10/2015,http://opendatacommunities.org/id/county-council/surrey,Surrey,http://id.esd.org.uk/service/1465,Council expenditure,05/07/2015,BURBANK COMMUNITY HOME,WOKING BOROUGH COUNCIL,3,MISCELLANEOUS STAFF TRAVEL,AUTOMOBILE PARKING LOTS AND GARAGES
29/10/2015,http://opendatacommunities.org/id/county-council/surrey,Surrey,http://id.esd.org.uk/service/1465,Council expenditure,05/07/2015,FAIRCROFT COMMUNITY HOME,PRIMARK,77.2,"CLOTHING, UNIFORM AND LAUNDRY",FAMILY CLOTHING STORES
29/10/2015,http://opendatacommunities.org/id/county-council/surrey,Surrey,http://id.esd.org.uk/service/1465,Council expenditure,05/07/2015,ASHTEAD YC,BP BOREHAM CONNECT,43.18,PETROL/DIESEL ALL OFF BUSINESS,SERVICE STATIONS WITH OR WITHOUT ANCILLARY SERVICE
29/10/2015,http://opendatacommunities.org/id/county-council/surrey,Surrey,http://id.esd.org.uk/service/1465,Council expenditure,05/07/2015,COUNTYWIDE MANAGED PRINT SERVICE,AMAZON EU,33.7,EQUIPMENT,DIRECT MARKETING-OTHER DIRECT MARKETERS/NOT ELSEW.
29/10/2015,http://opendatacommunities.org/id/county-council/surrey,Surrey,http://id.esd.org.uk/service/1465,Council expenditure,05/07/2015,ASHTEAD YC,KFC,42.58,REFRESHMENT COSTS,FAST FOOD RESTAURANTS
29/10/2015,http://opendatacommunities.org/id/county-council/surrey,Surrey,http://id.esd.org.uk/service/1465,Council expenditure,05/07/2015,E&I - PLASTICS                          ,GOOGLE  ADWS2060179426,500,PUBLICITY,DIRECT MARKETING-CONTINUITY/SUBSCRIPTION MERCHANTS
29/10/2015,http://opendatacommunities.org/id/county-council/surrey,Surrey,http://id.esd.org.uk/service/1465,Council expenditure,05/07/2015,NE CARE - LAC,LEBARA,20,TELECOMMUNICATION CHARGES,TELECOM INCL PREPAID/RECURRING PHONE SVCS
29/10/2015,http://opendatacommunities.org/id/county-council/surrey,Surrey,http://id.esd.org.uk/service/1465,Council expenditure,05/07/2015,COMMUNITY PARTNERSHIP,AMAZON EU,44.99,EQUIPMENT,DIRECT MARKETING-OTHER DIRECT MARKETERS/NOT ELSEW.
29/10/2015,http://opendatacommunities.org/id/county-council/surrey,Surrey,http://id.esd.org.uk/service/1465,Council expenditure,05/07/2015,LONGFIELD RESIDENTIAL CARE,WH SMITH,19,STATIONERY,NEWS DEALERS AND NEWSSTANDS
29/10/2015,http://opendatacommunities.org/id/county-council/surrey,Surrey,http://id.esd.org.uk/service/1465,Council expenditure,05/07/2015,LEGAL SUPPORT TEAM,"AMAZON SVCS EUROPE,SAR",22.8,EQUIPMENT,BOOK STORES
29/10/2015,http://opendatacommunities.org/id/county-council/surrey,Surrey,http://id.esd.org.uk/service/1465,Council expenditure,05/07/2015,MALLOW CRESCENT,AMAZON EU,68,EQUIPMENT,DIRECT MARKETING-OTHER DIRECT MARKETERS/NOT ELSEW.
29/10/2015,http://opendatacommunities.org/id/county-council/surrey,Surrey,http://id.esd.org.uk/service/1465,Council expenditure,05/07/2015,KARIBU COMMUNITY HOME,SAINSBURYS 0683,43.35,PURCHASE OF FOOD (RAW MATERIALS),"GROCERY STORES, SUPERMARKETS"
29/10/2015,http://opendatacommunities.org/id/county-council/surrey,Surrey,http://id.esd.org.uk/service/1465,Council expenditure,05/07/2015,BURBANK COMMUNITY HOME,SAINSBURYS 0686,27,MEDICAL EXPENSES,"GROCERY STORES, SUPERMARKETS"
29/10/2015,http://opendatacommunities.org/id/county-council/surrey,Surrey,http://id.esd.org.uk/service/1465,Council expenditure,05/07/2015,HOLLAND CLOSE RESIDENTIAL HOME,TESCO-STORES 6647,195.6,PURCHASE OF FOOD (RAW MATERIALS),"GROCERY STORES, SUPERMARKETS"
29/10/2015,http://opendatacommunities.org/id/county-council/surrey,Surrey,http://id.esd.org.uk/service/1465,Council expenditure,05/07/2015,COMMUNICATIONS TEAM,AMAZON UK MARKETPLACE,1.3,STATIONERY,BOOK STORES
29/10/2015,http://opendatacommunities.org/id/county-council/surrey,Surrey,http://id.esd.org.uk/service/1465,Council expenditure,06/07/2015,LIBERTAS COMMUNITY HOME,WWW.GATWICKAIRPORT.COM,-81,EDUC VISITS/HOLS/CAMPS/TOYS,AUTOMOBILE PARKING LOTS AND GARAGES
29/10/2015,http://opendatacommunities.org/id/county-council/surrey,Surrey,http://id.esd.org.uk/service/1465,Council expenditure,06/07/2015,SE CARE - CP & COURT LAC,GRO HM PASSPORT OFFICE,-9.25,CHILDREN ACT SEC 17 PAYMENTS,GOVERNMENT SERVICES-NOT ELSEWHERE CLASSIFIED
29/10/2015,http://opendatacommunities.org/id/county-council/surrey,Surrey,http://id.esd.org.uk/service/1465,Council expenditure,06/07/2015,MAGNA CARTA CELEBRATIONS,PAYPAL  SENSHIJAPAN,4.99,EQUIPMENT,SHOE STORES
29/10/2015,http://opendatacommunities.org/id/county-council/surrey,Surrey,http://id.esd.org.uk/service/1465,Council expenditure,06/07/2015,ASYLUM SEEKERS 18+,TVLICENSING.CO.UK,145.5,EQUIPMENT,"CONSULTING, MANAGEMENT, AND PUBLIC RELATIONS SVCS"
29/10/2015,http://opendatacommunities.org/id/county-council/surrey,Surrey,http://id.esd.org.uk/service/1465,Council expenditure,06/07/2015,LEAVING CARE PACKAGES,THE BIG APPLE,138,CHILDREN ACT SEC 17 PAYMENTS,BOWLING ALLEYS
29/10/2015,http://opendatacommunities.org/id/county-council/surrey,Surrey,http://id.esd.org.uk/service/1465,Council expenditure,06/07/2015,PROPERTY OPERATIONS TEAM,SCREWFIX GUILDFORD,52.11,PURCHASE OF BUILDING MATERIALS,"BUILDING MATERIALS, LUMBER STORES"
29/10/2015,http://opendatacommunities.org/id/county-council/surrey,Surrey,http://id.esd.org.uk/service/1465,Council expenditure,06/07/2015,HERITAGE PUBLIC SERVICE,W M MORRISONS,69.21,REFRESHMENT COSTS,"GROCERY STORES, SUPERMARKETS"
29/10/2015,http://opendatacommunities.org/id/county-council/surrey,Surrey,http://id.esd.org.uk/service/1465,Council expenditure,06/07/2015,LOCAL PREVENTION FRAMEWORK - TANDRIDGE,SAINSBURYS SACAT 0023,13.15,CURRICULUM CONSUMABLES,"GROCERY STORES, SUPERMARKETS"
29/10/2015,http://opendatacommunities.org/id/county-council/surrey,Surrey,http://id.esd.org.uk/service/1465,Council expenditure,06/07/2015,LIBERTAS COMMUNITY HOME,SAINSBURYS 0652,194.3,PURCHASE OF FOOD (RAW MATERIALS),"GROCERY STORES, SUPERMARKETS"
29/10/2015,http://opendatacommunities.org/id/county-council/surrey,Surrey,http://id.esd.org.uk/service/1465,Council expenditure,06/07/2015,MEMBERS EXPENSES (INCL ALLOWANCES),CARTRIDGESAVE.CO.UK,48.71,PRINTING,"OFFICE, SCHOOL SUPPLY, AND STATIONERY STORES"
29/10/2015,http://opendatacommunities.org/id/county-council/surrey,Surrey,http://id.esd.org.uk/service/1465,Council expenditure,06/07/2015,FAIRCROFT COMMUNITY HOME,SPORTSDIRECT 234,22.98,"CLOTHING, UNIFORM AND LAUNDRY",SPORTING GOODS STORES
29/10/2015,http://opendatacommunities.org/id/county-council/surrey,Surrey,http://id.esd.org.uk/service/1465,Council expenditure,06/07/2015,SFRS-SERVICE DELIVERY,STAND-BY FIRE PROTECTI,21.84,EQUIPMENT,HARDWARE EQUIPMENT AND SUPPLIES
29/10/2015,http://opendatacommunities.org/id/county-council/surrey,Surrey,http://id.esd.org.uk/service/1465,Council expenditure,06/07/2015,HILLSIDE,SAINSBURYS,96.53,PURCHASE OF FOOD (RAW MATERIALS),"GROCERY STORES, SUPERMARKETS"
29/10/2015,http://opendatacommunities.org/id/county-council/surrey,Surrey,http://id.esd.org.uk/service/1465,Council expenditure,06/07/2015,HILLSIDE,SAINSBURYS,17.85,PURCHASE OF FOOD (RAW MATERIALS),"GROCERY STORES, SUPERMARKETS"
29/10/2015,http://opendatacommunities.org/id/county-council/surrey,Surrey,http://id.esd.org.uk/service/1465,Council expenditure,06/07/2015,ASSESSMENT TEAM,AMAZON UK MARKETPLACE,2.15,EQUIPMENT,BOOK STORES
29/10/2015,http://opendatacommunities.org/id/county-council/surrey,Surrey,http://id.esd.org.uk/service/1465,Council expenditure,06/07/2015,COUNTY HALL,BHS 026,24.98,EQUIPMENT,DEPARTMENT STORES
29/10/2015,http://opendatacommunities.org/id/county-council/surrey,Surrey,http://id.esd.org.uk/service/1465,Council expenditure,06/07/2015,CHEYNE WALK COMMUNITY HOME,TESCO STORE 2560,37.85,EQUIPMENT,"GROCERY STORES, SUPERMARKETS"
29/10/2015,http://opendatacommunities.org/id/county-council/surrey,Surrey,http://id.esd.org.uk/service/1465,Council expenditure,06/07/2015,RUTH HOUSE, SAINSBURY'S FOOD DELIVERY,50.05,PURCHASE OF FOOD (RAW MATERIALS),"GROCERY STORES, SUPERMARKETS"
29/10/2015,http://opendatacommunities.org/id/county-council/surrey,Surrey,http://id.esd.org.uk/service/1465,Council expenditure,06/07/2015,RUTH HOUSE,SAINSBURY'S FOOD DELIVERY ,169.25,PURCHASE OF FOOD (RAW MATERIALS),"GROCERY STORES, SUPERMARKETS"
29/10/2015,http://opendatacommunities.org/id/county-council/surrey,Surrey,http://id.esd.org.uk/service/1465,Council expenditure,06/07/2015,TRANSPORT,AMAZON EU,18.09,STATIONERY,DIRECT MARKETING-OTHER DIRECT MARKETERS/NOT ELSEW.
29/10/2015,http://opendatacommunities.org/id/county-council/surrey,Surrey,http://id.esd.org.uk/service/1465,Council expenditure,06/07/2015,FAIRCROFT COMMUNITY HOME,BURGER KING GUILDFORD,6.79,REFRESHMENT COSTS,FAST FOOD RESTAURANTS
29/10/2015,http://opendatacommunities.org/id/county-council/surrey,Surrey,http://id.esd.org.uk/service/1465,Council expenditure,06/07/2015,TRANSPORT,DABS COM PLC,-170.96,COMPUTER CONSUMABLES,"COMPUTERS, COMPUTER PERIPHERAL EQUIPMENT, SOFTWARE"
29/10/2015,http://opendatacommunities.org/id/county-council/surrey,Surrey,http://id.esd.org.uk/service/1465,Council expenditure,06/07/2015,FAIRCROFT COMMUNITY HOME,TESCO STORE 2160,212.29,PURCHASE OF FOOD (RAW MATERIALS),"GROCERY STORES, SUPERMARKETS"
29/10/2015,http://opendatacommunities.org/id/county-council/surrey,Surrey,http://id.esd.org.uk/service/1465,Council expenditure,06/07/2015,SOLD ESTATES MANAGEMENT,B & Q,4.28,FIXTURES AND FITTINGS,"BUILDING MATERIALS, LUMBER STORES"
29/10/2015,http://opendatacommunities.org/id/county-council/surrey,Surrey,http://id.esd.org.uk/service/1465,Council expenditure,06/07/2015,PROPERTY OPERATIONS TEAM,TOOLSTATION LTD,6.59,PURCHASE OF BUILDING MATERIALS,HARDWARE STORES
29/10/2015,http://opendatacommunities.org/id/county-council/surrey,Surrey,http://id.esd.org.uk/service/1465,Council expenditure,06/07/2015,PROPERTY OPERATIONS TEAM,GUILDFORD LOCK & SAFE,20.37,PURCHASE OF BUILDING MATERIALS,HARDWARE EQUIPMENT AND SUPPLIES
29/10/2015,http://opendatacommunities.org/id/county-council/surrey,Surrey,http://id.esd.org.uk/service/1465,Council expenditure,06/07/2015,LIBERTAS COMMUNITY HOME,WWW.GATWICKAIRPORT.COM,81.95,EDUC VISITS/HOLS/CAMPS/TOYS,AUTOMOBILE PARKING LOTS AND GARAGES
29/10/2015,http://opendatacommunities.org/id/county-council/surrey,Surrey,http://id.esd.org.uk/service/1465,Council expenditure,06/07/2015,MALLOW CRESCENT,SAINSBURYS,10.5,PURCHASE OF FOOD (RAW MATERIALS),"GROCERY STORES, SUPERMARKETS"
29/10/2015,http://opendatacommunities.org/id/county-council/surrey,Surrey,http://id.esd.org.uk/service/1465,Council expenditure,06/07/2015,MALLOW CRESCENT,SAINSBURYS,94.15,PURCHASE OF FOOD (RAW MATERIALS),"GROCERY STORES, SUPERMARKETS"
29/10/2015,http://opendatacommunities.org/id/county-council/surrey,Surrey,http://id.esd.org.uk/service/1465,Council expenditure,06/07/2015,HOPE SERVICE - WEST,SAINSBURYS TO YOU 0686,149.7,PURCHASE OF FOOD (RAW MATERIALS),"GROCERY STORES, SUPERMARKETS"
29/10/2015,http://opendatacommunities.org/id/county-council/surrey,Surrey,http://id.esd.org.uk/service/1465,Council expenditure,06/07/2015,EAST SUSSEX CONTRACT - MGMT & ADMIN,TESCO STORES 3330,2.75,REFRESHMENT COSTS,"GROCERY STORES, SUPERMARKETS"
29/10/2015,http://opendatacommunities.org/id/county-council/surrey,Surrey,http://id.esd.org.uk/service/1465,Council expenditure,06/07/2015,BIKEABILITY - CYCLE TRAINING,BIKEABILITY MATERIALS,53.96,EQUIPMENT,BICYCLE SHOPS-SALES AND SERVICE
29/10/2015,http://opendatacommunities.org/id/county-council/surrey,Surrey,http://id.esd.org.uk/service/1465,Council expenditure,06/07/2015,SE CARE - CP & COURT LAC,GRO HM PASSPORT OFFICE,9.25,CHILDREN ACT SEC 17 PAYMENTS,GOVERNMENT SERVICES-NOT ELSEWHERE CLASSIFIED
29/10/2015,http://opendatacommunities.org/id/county-council/surrey,Surrey,http://id.esd.org.uk/service/1465,Council expenditure,06/07/2015,POLICY AND PERFORMANCE TEAM,CURRYS ONLINE,25.98,EQUIPMENT,ELECTRONIC SALES
29/10/2015,http://opendatacommunities.org/id/county-council/surrey,Surrey,http://id.esd.org.uk/service/1465,Council expenditure,06/07/2015,WOODLANDS COMMUNITY HOME,SAINSBURYS,3,CLEANING MATERIALS,"GROCERY STORES, SUPERMARKETS"
29/10/2015,http://opendatacommunities.org/id/county-council/surrey,Surrey,http://id.esd.org.uk/service/1465,Council expenditure,06/07/2015,WOODLANDS COMMUNITY HOME,SAINSBURYS,13.1,PURCHASE OF FOOD (RAW MATERIALS),"GROCERY STORES, SUPERMARKETS"
29/10/2015,http://opendatacommunities.org/id/county-council/surrey,Surrey,http://id.esd.org.uk/service/1465,Council expenditure,06/07/2015,WOODLANDS COMMUNITY HOME,SAINSBURYS,3.18,3RD PARTY PAYMENTS PRIVATE INDIV,"GROCERY STORES, SUPERMARKETS"
29/10/2015,http://opendatacommunities.org/id/county-council/surrey,Surrey,http://id.esd.org.uk/service/1465,Council expenditure,06/07/2015,WOODLANDS COMMUNITY HOME,SAINSBURYS,4.5,EQUIPMENT,"GROCERY STORES, SUPERMARKETS"
29/10/2015,http://opendatacommunities.org/id/county-council/surrey,Surrey,http://id.esd.org.uk/service/1465,Council expenditure,06/07/2015,WOODLANDS COMMUNITY HOME,SAINSBURYS,110.5,PURCHASE OF FOOD (RAW MATERIALS),"GROCERY STORES, SUPERMARKETS"
29/10/2015,http://opendatacommunities.org/id/county-council/surrey,Surrey,http://id.esd.org.uk/service/1465,Council expenditure,06/07/2015,FAMILY WORKFORCE DEVELOPMENT EAST,AMAZON EU,17.63,EQUIPMENT,DIRECT MARKETING-OTHER DIRECT MARKETERS/NOT ELSEW.
29/10/2015,http://opendatacommunities.org/id/county-council/surrey,Surrey,http://id.esd.org.uk/service/1465,Council expenditure,06/07/2015,TRAINING SURREY HIGHWAYS,ACUITY TRAINING LTD,714,TRAINING EXPENSES EXTERNAL GENERAL,"SCHOOLS, TRADE AND VOCATIONAL"
29/10/2015,http://opendatacommunities.org/id/county-council/surrey,Surrey,http://id.esd.org.uk/service/1465,Council expenditure,06/07/2015,WOODLANDS COMMUNITY HOME,HOMEBASE LTD 084,18.98,CLEANING MATERIALS,"BUILDING MATERIALS, LUMBER STORES"
29/10/2015,http://opendatacommunities.org/id/county-council/surrey,Surrey,http://id.esd.org.uk/service/1465,Council expenditure,06/07/2015,SW SECTION 17 CARE,WWW.SACOAPARTMENTS.CO.,"1,672.40",INDEPENDENT LIVING PLACEMENTS,"LODGING-HOTELS,MOTELS,RESORTS-NOT CLASSIFIED"
29/10/2015,http://opendatacommunities.org/id/county-council/surrey,Surrey,http://id.esd.org.uk/service/1465,Council expenditure,06/07/2015,ACCESS 2 EDUCATION NE NON-MEDICAL,"AMAZON SVCS EUROPE,SAR",66.59,CURRICULUM CONSUMABLES,BOOK STORES
29/10/2015,http://opendatacommunities.org/id/county-council/surrey,Surrey,http://id.esd.org.uk/service/1465,Council expenditure,06/07/2015,LIBERTAS COMMUNITY HOME,MARKS & SPENCER,47,EQUIPMENT,"GROCERY STORES, SUPERMARKETS"
29/10/2015,http://opendatacommunities.org/id/county-council/surrey,Surrey,http://id.esd.org.uk/service/1465,Council expenditure,06/07/2015,LIBERTAS COMMUNITY HOME,HOLMANS WOOD,162,EDUC VISITS/HOLS/CAMPS/TOYS,CAMPGROUNDS AND TRAILER PARKS
29/10/2015,http://opendatacommunities.org/id/county-council/surrey,Surrey,http://id.esd.org.uk/service/1465,Council expenditure,06/07/2015,TRANSPORT,AMAZON UK MARKETPLACE,29.93,FURNITURE,BOOK STORES
29/10/2015,http://opendatacommunities.org/id/county-council/surrey,Surrey,http://id.esd.org.uk/service/1465,Council expenditure,06/07/2015,CSF BUSINESS SUPPORT EDUCATION,AMAZON UK MARKETPLACE,45,EQUIPMENT,BOOK STORES
29/10/2015,http://opendatacommunities.org/id/county-council/surrey,Surrey,http://id.esd.org.uk/service/1465,Council expenditure,06/07/2015,PROGRAMME TEAM,X L DISPLAYS LTD,373.2,EQUIPMENT,"DURABLE GOODS, NOT ELSEWHERE CLASSIFIED"
29/10/2015,http://opendatacommunities.org/id/county-council/surrey,Surrey,http://id.esd.org.uk/service/1465,Council expenditure,06/07/2015,HR - BUSINESS SERVICES AND TRAINING,"AMAZON SVCS EUROPE,SAR",29.99,EQUIPMENT,BOOK STORES
29/10/2015,http://opendatacommunities.org/id/county-council/surrey,Surrey,http://id.esd.org.uk/service/1465,Council expenditure,06/07/2015,LEAVING CARE TEAM,"AMAZON SVCS EUROPE,SAR",22.29,EDUC VISITS/HOLS/CAMPS/TOYS,BOOK STORES
29/10/2015,http://opendatacommunities.org/id/county-council/surrey,Surrey,http://id.esd.org.uk/service/1465,Council expenditure,06/07/2015,KARIBU COMMUNITY HOME,STARBUCKS,12.88,PURCHASE OF FOOD (RAW MATERIALS),FAST FOOD RESTAURANTS
29/10/2015,http://opendatacommunities.org/id/county-council/surrey,Surrey,http://id.esd.org.uk/service/1465,Council expenditure,06/07/2015,LIBERTAS COMMUNITY HOME,WWW.GATWICKAIRPORT.COM,81.95,EDUC VISITS/HOLS/CAMPS/TOYS,AUTOMOBILE PARKING LOTS AND GARAGES
29/10/2015,http://opendatacommunities.org/id/county-council/surrey,Surrey,http://id.esd.org.uk/service/1465,Council expenditure,06/07/2015,CSF COMMUNICATIONS TEAM,HOOTSUITE MEDIA INC.,9.59,SUBSCRIPTIONS,BUSINESS SERVICES-NOT ELSEWHERE CLASSIFIED
29/10/2015,http://opendatacommunities.org/id/county-council/surrey,Surrey,http://id.esd.org.uk/service/1465,Council expenditure,06/07/2015,HOPE SERVICE - EAST,SAINSBURYS 0683,47.73,PURCHASE OF FOOD (RAW MATERIALS),"GROCERY STORES, SUPERMARKETS"
29/10/2015,http://opendatacommunities.org/id/county-council/surrey,Surrey,http://id.esd.org.uk/service/1465,Council expenditure,06/07/2015,COUNTY HALL,CURRYS ONLINE,68.97,EQUIPMENT,ELECTRONIC SALES
29/10/2015,http://opendatacommunities.org/id/county-council/surrey,Surrey,http://id.esd.org.uk/service/1465,Council expenditure,06/07/2015,OCCUPATIONAL HEALTH,AMAZON UK MARKETPLACE,12.49,EQUIPMENT,BOOK STORES
29/10/2015,http://opendatacommunities.org/id/county-council/surrey,Surrey,http://id.esd.org.uk/service/1465,Council expenditure,06/07/2015,TRANSPORT,AMAZON EU,23.25,COMPUTER HARDWARE,DIRECT MARKETING-OTHER DIRECT MARKETERS/NOT ELSEW.
29/10/2015,http://opendatacommunities.org/id/county-council/surrey,Surrey,http://id.esd.org.uk/service/1465,Council expenditure,06/07/2015,TRANSPORT,DABS COM PLC,-11.94,COMPUTER CONSUMABLES,"COMPUTERS, COMPUTER PERIPHERAL EQUIPMENT, SOFTWARE"
29/10/2015,http://opendatacommunities.org/id/county-council/surrey,Surrey,http://id.esd.org.uk/service/1465,Council expenditure,06/07/2015,TRANSPORT,AMAZON EU,8.92,STATIONERY,DIRECT MARKETING-OTHER DIRECT MARKETERS/NOT ELSEW.
29/10/2015,http://opendatacommunities.org/id/county-council/surrey,Surrey,http://id.esd.org.uk/service/1465,Council expenditure,06/07/2015,PROPERTY OPERATIONS TEAM,WICKES,19.36,PURCHASE OF BUILDING MATERIALS,"BUILDING MATERIALS, LUMBER STORES"
29/10/2015,http://opendatacommunities.org/id/county-council/surrey,Surrey,http://id.esd.org.uk/service/1465,Council expenditure,06/07/2015,TRANSPORT,AMAZON EU,72.36,COMPUTER HARDWARE,DIRECT MARKETING-OTHER DIRECT MARKETERS/NOT ELSEW.
29/10/2015,http://opendatacommunities.org/id/county-council/surrey,Surrey,http://id.esd.org.uk/service/1465,Council expenditure,07/07/2015,HEAD OF CHILDREN'S SERVICE,EXPRESS CABS AND COURI,87,TRANSPORT SOCIAL CARE-TAXI,LIMOUSINES AND TAXICABS
29/10/2015,http://opendatacommunities.org/id/county-council/surrey,Surrey,http://id.esd.org.uk/service/1465,Council expenditure,07/07/2015,TARGETED INTERVENTION,COSTA,6.85,EDUC VISITS/HOLS/CAMPS/TOYS,"EATING PLACES, RESTAURANTS"
29/10/2015,http://opendatacommunities.org/id/county-council/surrey,Surrey,http://id.esd.org.uk/service/1465,Council expenditure,07/07/2015,IMT TECHNICAL DELIVERY,AMAZON EU,30,STATIONERY,DIRECT MARKETING-OTHER DIRECT MARKETERS/NOT ELSEW.
29/10/2015,http://opendatacommunities.org/id/county-council/surrey,Surrey,http://id.esd.org.uk/service/1465,Council expenditure,07/07/2015,FAIRCROFT COMMUNITY HOME,CEX (WOKING),44.25,3RD PARTY PAYMENTS PRIVATE INDIV,ELECTRONIC SALES
29/10/2015,http://opendatacommunities.org/id/county-council/surrey,Surrey,http://id.esd.org.uk/service/1465,Council expenditure,07/07/2015,TRANSPORT,HOMEBASE LTD 247,29.97,EQUIPMENT,"BUILDING MATERIALS, LUMBER STORES"
29/10/2015,http://opendatacommunities.org/id/county-council/surrey,Surrey,http://id.esd.org.uk/service/1465,Council expenditure,07/07/2015,LIBERTAS COMMUNITY HOME,HOMEBASE LTD 050,5.86,EQUIPMENT,"BUILDING MATERIALS, LUMBER STORES"
29/10/2015,http://opendatacommunities.org/id/county-council/surrey,Surrey,http://id.esd.org.uk/service/1465,Council expenditure,07/07/2015,LAC CELEBRATORY AND BURSARY FUND,GREENARY HIRE LTD,824.1,OTHER COMMUNITY CARE VOL,LAWN AND GARDEN SUPPLY STORES
29/10/2015,http://opendatacommunities.org/id/county-council/surrey,Surrey,http://id.esd.org.uk/service/1465,Council expenditure,07/07/2015,CHILDREN'S RIGHTS TEAM,SURREY ARTS WARDRO,75,EQUIPMENT,GOVERNMENT SERVICES-NOT ELSEWHERE CLASSIFIED
29/10/2015,http://opendatacommunities.org/id/county-council/surrey,Surrey,http://id.esd.org.uk/service/1465,Council expenditure,07/07/2015,FRIMLEY YC,TESCO STORES 2334,4.97,PURCHASE OF FOOD (RAW MATERIALS),"GROCERY STORES, SUPERMARKETS"
29/10/2015,http://opendatacommunities.org/id/county-council/surrey,Surrey,http://id.esd.org.uk/service/1465,Council expenditure,07/07/2015,TRANSPORT,H FINE & SON LTD,333.72,OPERATIONAL FIRE EQUIPMENT,LEATHER GOODS AND LUGGAGE STORES
29/10/2015,http://opendatacommunities.org/id/county-council/surrey,Surrey,http://id.esd.org.uk/service/1465,Council expenditure,07/07/2015,COMMUNICATIONS TEAM,TRAVELODGE WEBSITE,41.6,MISCELLANEOUS STAFF TRAVEL,TRAVELODGE
29/10/2015,http://opendatacommunities.org/id/county-council/surrey,Surrey,http://id.esd.org.uk/service/1465,Council expenditure,07/07/2015,PROPERTY OPERATIONS TEAM,TOOLSTATION LTD,7.83,PURCHASE OF BUILDING MATERIALS,HARDWARE STORES
29/10/2015,http://opendatacommunities.org/id/county-council/surrey,Surrey,http://id.esd.org.uk/service/1465,Council expenditure,07/07/2015,FAIRCROFT COMMUNITY HOME,SAINSBURYS 0687,28.35,PURCHASE OF FOOD (RAW MATERIALS),"GROCERY STORES, SUPERMARKETS"
29/10/2015,http://opendatacommunities.org/id/county-council/surrey,Surrey,http://id.esd.org.uk/service/1465,Council expenditure,07/07/2015,RUTH HOUSE,PETS AT HOME,30,EDUC VISITS/HOLS/CAMPS/TOYS,VETERINARY SERVICES
29/10/2015,http://opendatacommunities.org/id/county-council/surrey,Surrey,http://id.esd.org.uk/service/1465,Council expenditure,07/07/2015,NE TEACHERS,HELEN ARKELL DYSLEXIA,460.5,BOOKS,"ORGANIZATIONS, CHARITABLE AND SOCIAL SERVICES"
29/10/2015,http://opendatacommunities.org/id/county-council/surrey,Surrey,http://id.esd.org.uk/service/1465,Council expenditure,07/07/2015,NE CP & COURT TEAM,"AMAZON SVCS EUROPE,SAR",156.59,EQUIPMENT,BOOK STORES
29/10/2015,http://opendatacommunities.org/id/county-council/surrey,Surrey,http://id.esd.org.uk/service/1465,Council expenditure,07/07/2015,BURBANK COMMUNITY HOME,WM MORRISONS PLC,5,PRINTING,"GROCERY STORES, SUPERMARKETS"
29/10/2015,http://opendatacommunities.org/id/county-council/surrey,Surrey,http://id.esd.org.uk/service/1465,Council expenditure,07/07/2015,SPECIAL EDUCATIONAL NEEDS,AWESOMEMERCHANDISE,300,"CLOTHING, UNIFORM AND LAUNDRY",MISCELLANEOUS PUBLISHING AND PRINTING
29/10/2015,http://opendatacommunities.org/id/county-council/surrey,Surrey,http://id.esd.org.uk/service/1465,Council expenditure,07/07/2015,FAIRCROFT COMMUNITY HOME,GIFFGAFF.COM,15,3RD PARTY PAYMENTS PRIVATE INDIV,TELECOMMUNICATION EQUIPMENT INCL TELEPHONE SALES
29/10/2015,http://opendatacommunities.org/id/county-council/surrey,Surrey,http://id.esd.org.uk/service/1465,Council expenditure,07/07/2015,NE TEACHERS,HELEN ARKELL DYSLEXIA,-460.5,BOOKS,"ORGANIZATIONS, CHARITABLE AND SOCIAL SERVICES"
29/10/2015,http://opendatacommunities.org/id/county-council/surrey,Surrey,http://id.esd.org.uk/service/1465,Council expenditure,07/07/2015,TARGETED INTERVENTION,KRISPY KREME SHANNON C,10.8,EDUC VISITS/HOLS/CAMPS/TOYS,"CANDY, NUT, CONFECTIONERY STORES"
29/10/2015,http://opendatacommunities.org/id/county-council/surrey,Surrey,http://id.esd.org.uk/service/1465,Council expenditure,07/07/2015,SURREY ARTS GENERAL,AMAZON UK MARKETPLACE,7.45,STATIONERY,BOOK STORES
29/10/2015,http://opendatacommunities.org/id/county-council/surrey,Surrey,http://id.esd.org.uk/service/1465,Council expenditure,07/07/2015,HOLLAND CLOSE RESIDENTIAL HOME,CEX,36,EQUIPMENT,ELECTRONIC SALES
29/10/2015,http://opendatacommunities.org/id/county-council/surrey,Surrey,http://id.esd.org.uk/service/1465,Council expenditure,07/07/2015,BURBANK COMMUNITY HOME,W M MORRISONS,12.23,PURCHASE OF FOOD (RAW MATERIALS),"GROCERY STORES, SUPERMARKETS"
29/10/2015,http://opendatacommunities.org/id/county-council/surrey,Surrey,http://id.esd.org.uk/service/1465,Council expenditure,07/07/2015,IMT TECHNICAL DELIVERY,"AMAZON SVCS EUROPE,SAR",55,STATIONERY,BOOK STORES
29/10/2015,http://opendatacommunities.org/id/county-council/surrey,Surrey,http://id.esd.org.uk/service/1465,Council expenditure,07/07/2015,BOOKS - ADULT FICTION                   ,"AMAZON SVCS EUROPE,SAR",-3.33,LIBRARY RESOURCES,BOOK STORES
29/10/2015,http://opendatacommunities.org/id/county-council/surrey,Surrey,http://id.esd.org.uk/service/1465,Council expenditure,07/07/2015,TARGETED INTERVENTION,SAINSBURYS SACAT 0687,13.68,EDUC VISITS/HOLS/CAMPS/TOYS,"GROCERY STORES, SUPERMARKETS"
29/10/2015,http://opendatacommunities.org/id/county-council/surrey,Surrey,http://id.esd.org.uk/service/1465,Council expenditure,07/07/2015,CHEYNE WALK COMMUNITY HOME,"CENTER PARCS, INTERNET","3,899.46",EDUC VISITS/HOLS/CAMPS/TOYS,"LODGING-HOTELS,MOTELS,RESORTS-NOT CLASSIFIED"
29/10/2015,http://opendatacommunities.org/id/county-council/surrey,Surrey,http://id.esd.org.uk/service/1465,Council expenditure,07/07/2015,SERVICE DELIVERY RESOURCES,AMAZON UK MARKETPLACE,63.89,CLEANING MATERIALS,BOOK STORES
29/10/2015,http://opendatacommunities.org/id/county-council/surrey,Surrey,http://id.esd.org.uk/service/1465,Council expenditure,07/07/2015,LEAVING CARE TEAM,TRAVELODGE WEBSITE,45,CHILDREN ACT SEC 17 PAYMENTS,TRAVELODGE
29/10/2015,http://opendatacommunities.org/id/county-council/surrey,Surrey,http://id.esd.org.uk/service/1465,Council expenditure,07/07/2015,SURREY PARENT PARTNERSHIP,TRAVELODGE WEBSITE,47,TRAINING EXPENSES EXTERNAL GENERAL,TRAVELODGE
29/10/2015,http://opendatacommunities.org/id/county-council/surrey,Surrey,http://id.esd.org.uk/service/1465,Council expenditure,07/07/2015,SERVICE DELIVERY RESOURCES,"AMAZON SVCS EUROPE,SAR",37.62,CLEANING MATERIALS,BOOK STORES
29/10/2015,http://opendatacommunities.org/id/county-council/surrey,Surrey,http://id.esd.org.uk/service/1465,Council expenditure,07/07/2015,TRANSPORT,AMAZON UK MARKETPLACE,24.75,COMPUTER CONSUMABLES,BOOK STORES
29/10/2015,http://opendatacommunities.org/id/county-council/surrey,Surrey,http://id.esd.org.uk/service/1465,Council expenditure,07/07/2015,SERVICE DELIVERY RESOURCES,AMAZON UK MARKETPLACE,52.14,CLEANING MATERIALS,BOOK STORES
29/10/2015,http://opendatacommunities.org/id/county-council/surrey,Surrey,http://id.esd.org.uk/service/1465,Council expenditure,07/07/2015,NE TEACHERS,AMAZON EU,29.56,EQUIPMENT,DIRECT MARKETING-OTHER DIRECT MARKETERS/NOT ELSEW.
29/10/2015,http://opendatacommunities.org/id/county-council/surrey,Surrey,http://id.esd.org.uk/service/1465,Council expenditure,07/07/2015,IMT TECHNICAL DELIVERY,AMAZON UK MARKETPLACE,17.5,STATIONERY,BOOK STORES
29/10/2015,http://opendatacommunities.org/id/county-council/surrey,Surrey,http://id.esd.org.uk/service/1465,Council expenditure,07/07/2015,KARIBU COMMUNITY HOME,MIELE COMPANY LTD,156,EQUIPMENT,HOUSEHOLD APPLIANCE STORES
29/10/2015,http://opendatacommunities.org/id/county-council/surrey,Surrey,http://id.esd.org.uk/service/1465,Council expenditure,07/07/2015,SE CARE - CP & COURT LAC,SURREY CC CARD PAY,11,CHILDREN ACT SEC 17 PAYMENTS,COMPUTER NETWORK/INFORMATION SERVICES
29/10/2015,http://opendatacommunities.org/id/county-council/surrey,Surrey,http://id.esd.org.uk/service/1465,Council expenditure,07/07/2015,APPLEWOOD,ASDA HOME SHOPPING,108.13,PURCHASE OF FOOD (RAW MATERIALS),"GROCERY STORES, SUPERMARKETS"
29/10/2015,http://opendatacommunities.org/id/county-council/surrey,Surrey,http://id.esd.org.uk/service/1465,Council expenditure,07/07/2015,SOLD DAY TO DAY OPERATIONS,AMAZON UK MARKETPLACE,13.58,EQUIPMENT,BOOK STORES
29/10/2015,http://opendatacommunities.org/id/county-council/surrey,Surrey,http://id.esd.org.uk/service/1465,Council expenditure,07/07/2015,IMT TECHNICAL DELIVERY,AMAZON UK MARKETPLACE,5.38,STATIONERY,BOOK STORES
29/10/2015,http://opendatacommunities.org/id/county-council/surrey,Surrey,http://id.esd.org.uk/service/1465,Council expenditure,07/07/2015,THE BRIDGE YC,TESCO STORES 2812,35,PURCHASE OF FOOD (RAW MATERIALS),"GROCERY STORES, SUPERMARKETS"
29/10/2015,http://opendatacommunities.org/id/county-council/surrey,Surrey,http://id.esd.org.uk/service/1465,Council expenditure,07/07/2015,FAIRCROFT COMMUNITY HOME,TESCO STORE 2160,45.7,PURCHASE OF FOOD (RAW MATERIALS),"GROCERY STORES, SUPERMARKETS"
29/10/2015,http://opendatacommunities.org/id/county-council/surrey,Surrey,http://id.esd.org.uk/service/1465,Council expenditure,07/07/2015,CORE ACTIVITY                           ,APPLE ONLINE STORE GBP,34.8,EQUIPMENT,ELECTRONIC SALES
29/10/2015,http://opendatacommunities.org/id/county-council/surrey,Surrey,http://id.esd.org.uk/service/1465,Council expenditure,07/07/2015,PROPERTY OPERATIONS TEAM,SCREWFIX,20.99,PURCHASE OF BUILDING MATERIALS,"BUILDING MATERIALS, LUMBER STORES"
29/10/2015,http://opendatacommunities.org/id/county-council/surrey,Surrey,http://id.esd.org.uk/service/1465,Council expenditure,07/07/2015,TARGETED INTERVENTION,WORLD OF GOLF,27,EDUC VISITS/HOLS/CAMPS/TOYS,RECREATION SERVICES (NOT ELSEWHERE CLASSIFIED)
29/10/2015,http://opendatacommunities.org/id/county-council/surrey,Surrey,http://id.esd.org.uk/service/1465,Council expenditure,07/07/2015,TRANSPORT,AMAZON UK MARKETPLACE,54.99,COMPUTER HARDWARE,BOOK STORES
29/10/2015,http://opendatacommunities.org/id/county-council/surrey,Surrey,http://id.esd.org.uk/service/1465,Council expenditure,07/07/2015,HOPE SERVICE - WEST,TESCO STORE 2590,18.75,PURCHASE OF FOOD (RAW MATERIALS),"GROCERY STORES, SUPERMARKETS"
29/10/2015,http://opendatacommunities.org/id/county-council/surrey,Surrey,http://id.esd.org.uk/service/1465,Council expenditure,07/07/2015,NIL RECOURSE PUBLIC FNDG 18+ ASYLUM SKR,LANES HOTEL,190,3RD PARTY PAYMENTS PRIVATE INDIV,"LODGING-HOTELS,MOTELS,RESORTS-NOT CLASSIFIED"
29/10/2015,http://opendatacommunities.org/id/county-council/surrey,Surrey,http://id.esd.org.uk/service/1465,Council expenditure,07/07/2015,HOLLAND CLOSE RESIDENTIAL HOME,GAME RETAIL LTD REDH,39.97,EQUIPMENT,"GAME, TOY, AND HOBBY SHOPS"
29/10/2015,http://opendatacommunities.org/id/county-council/surrey,Surrey,http://id.esd.org.uk/service/1465,Council expenditure,07/07/2015,COBGATES RESIDENTIAL CARE,TURUN (UK) LIMITED,28.67,EQUIPMENT,NURSING AND PERSONAL CARE FACILITIES
29/10/2015,http://opendatacommunities.org/id/county-council/surrey,Surrey,http://id.esd.org.uk/service/1465,Council expenditure,07/07/2015,SOLD DAY TO DAY OPERATIONS,SAILBOATS.CO.UK,156.99,EQUIPMENT,BOAT DEALERS
29/10/2015,http://opendatacommunities.org/id/county-council/surrey,Surrey,http://id.esd.org.uk/service/1465,Council expenditure,07/07/2015,TARGETED INTERVENTION,SAINSBURYS SACAT 0687,8.16,EDUC VISITS/HOLS/CAMPS/TOYS,"GROCERY STORES, SUPERMARKETS"
29/10/2015,http://opendatacommunities.org/id/county-council/surrey,Surrey,http://id.esd.org.uk/service/1465,Council expenditure,07/07/2015,CHILDREN'S RIGHTS TEAM,SURREY ARTS WARDRO,65.45,EQUIPMENT,GOVERNMENT SERVICES-NOT ELSEWHERE CLASSIFIED
29/10/2015,http://opendatacommunities.org/id/county-council/surrey,Surrey,http://id.esd.org.uk/service/1465,Council expenditure,07/07/2015,ACCESS 2 EDUCATION NE NON-MEDICAL,WWW.RHINOSTATIONERY.CO,79.92,BOOKS,"OFFICE, SCHOOL SUPPLY, AND STATIONERY STORES"
29/10/2015,http://opendatacommunities.org/id/county-council/surrey,Surrey,http://id.esd.org.uk/service/1465,Council expenditure,07/07/2015,FRIMLEY YC,ONE STOP 1396,3.48,PURCHASE OF FOOD (RAW MATERIALS),"GROCERY STORES, SUPERMARKETS"
29/10/2015,http://opendatacommunities.org/id/county-council/surrey,Surrey,http://id.esd.org.uk/service/1465,Council expenditure,07/07/2015,HOPE SERVICE - WEST,SAINSBURYS SACAT(4409),1.9,NEWSPAPER AND PERIODICALS,"GROCERY STORES, SUPERMARKETS"
29/10/2015,http://opendatacommunities.org/id/county-council/surrey,Surrey,http://id.esd.org.uk/service/1465,Council expenditure,07/07/2015,PROPERTY OPERATIONS TEAM,WICKES,23.21,PURCHASE OF BUILDING MATERIALS,"BUILDING MATERIALS, LUMBER STORES"
29/10/2015,http://opendatacommunities.org/id/county-council/surrey,Surrey,http://id.esd.org.uk/service/1465,Council expenditure,07/07/2015,READY FOR WORK YSS,AMF BOWLING,68,EDUC VISITS/HOLS/CAMPS/TOYS,"CLUBS-CNTRY,MBRSHIP(ATHLET,REC,SPRTS,PRIVATE GOLF"
29/10/2015,http://opendatacommunities.org/id/county-council/surrey,Surrey,http://id.esd.org.uk/service/1465,Council expenditure,07/07/2015,PROPERTY OPERATIONS TEAM,B & Q,8.37,PURCHASE OF BUILDING MATERIALS,"BUILDING MATERIALS, LUMBER STORES"
29/10/2015,http://opendatacommunities.org/id/county-council/surrey,Surrey,http://id.esd.org.uk/service/1465,Council expenditure,07/07/2015,HILLSIDE,SAINSBURYS 0675,81.63,PURCHASE OF FOOD (RAW MATERIALS),"GROCERY STORES, SUPERMARKETS"
29/10/2015,http://opendatacommunities.org/id/county-council/surrey,Surrey,http://id.esd.org.uk/service/1465,Council expenditure,07/07/2015,SERVICE DELIVERY RESOURCES,AMAZON EU,40.65,CLEANING MATERIALS,DIRECT MARKETING-OTHER DIRECT MARKETERS/NOT ELSEW.
29/10/2015,http://opendatacommunities.org/id/county-council/surrey,Surrey,http://id.esd.org.uk/service/1465,Council expenditure,07/07/2015,SE CP & COURT TEAM,NEW SOUTHERN RAILW,451.6,MISCELLANEOUS STAFF TRAVEL,PASSENGER RAILWAYS
29/10/2015,http://opendatacommunities.org/id/county-council/surrey,Surrey,http://id.esd.org.uk/service/1465,Council expenditure,07/07/2015,NE TEACHERS,TEACHINGTIMES.CO.,226.5,EQUIPMENT,MISCELLANEOUS PUBLISHING AND PRINTING
29/10/2015,http://opendatacommunities.org/id/county-council/surrey,Surrey,http://id.esd.org.uk/service/1465,Council expenditure,07/07/2015,IMT TECHNICAL DELIVERY,AMAZON EU,57.99,STATIONERY,DIRECT MARKETING-OTHER DIRECT MARKETERS/NOT ELSEW.
29/10/2015,http://opendatacommunities.org/id/county-council/surrey,Surrey,http://id.esd.org.uk/service/1465,Council expenditure,07/07/2015,MALLOW CRESCENT,SAINSBURYS,10.63,PURCHASE OF FOOD (RAW MATERIALS),"GROCERY STORES, SUPERMARKETS"
29/10/2015,http://opendatacommunities.org/id/county-council/surrey,Surrey,http://id.esd.org.uk/service/1465,Council expenditure,07/07/2015,MALLOW CRESCENT,SAINSBURYS,67.15,PURCHASE OF FOOD (RAW MATERIALS),"GROCERY STORES, SUPERMARKETS"
29/10/2015,http://opendatacommunities.org/id/county-council/surrey,Surrey,http://id.esd.org.uk/service/1465,Council expenditure,08/07/2015,WEB OPERATIONS TEAM,123-REG.CO.UK,5.99,SUBSCRIPTIONS,COMPUTER NETWORK/INFORMATION SERVICES
29/10/2015,http://opendatacommunities.org/id/county-council/surrey,Surrey,http://id.esd.org.uk/service/1465,Council expenditure,08/07/2015,IMT SUPPORT SERVICE DESK,UKBA4148986352,199,FEES,GOVERNMENT SERVICES-NOT ELSEWHERE CLASSIFIED
29/10/2015,http://opendatacommunities.org/id/county-council/surrey,Surrey,http://id.esd.org.uk/service/1465,Council expenditure,08/07/2015,IMT TECHNICAL DELIVERY,"AMAZON SVCS EUROPE,SAR",22.45,STATIONERY,BOOK STORES
29/10/2015,http://opendatacommunities.org/id/county-council/surrey,Surrey,http://id.esd.org.uk/service/1465,Council expenditure,08/07/2015,TRANSPORT,POUNDLAND LTD 1244,4,DAY TO DAY MAINTENANCE,DISCOUNT STORES
29/10/2015,http://opendatacommunities.org/id/county-council/surrey,Surrey,http://id.esd.org.uk/service/1465,Council expenditure,08/07/2015,IMT MODERN WORKER,SDD 2015 DEEP DIVE,"1,074.00",SUBSISTENCE AND CONFERENCE EXPENSES,"THEATRICAL PRODUCERS(EXCL MOTION PIX),TICKET AGNCY"
29/10/2015,http://opendatacommunities.org/id/county-council/surrey,Surrey,http://id.esd.org.uk/service/1465,Council expenditure,08/07/2015,NW TEACHERS,OPTIMUS PROF PUBLISHIN,389.4,SUBSCRIPTIONS,MISCELLANEOUS PUBLISHING AND PRINTING
29/10/2015,http://opendatacommunities.org/id/county-council/surrey,Surrey,http://id.esd.org.uk/service/1465,Council expenditure,08/07/2015,TRANSPORT,ARGOS REIGATE,37.98,DAY TO DAY MAINTENANCE,DISCOUNT STORES
29/10/2015,http://opendatacommunities.org/id/county-council/surrey,Surrey,http://id.esd.org.uk/service/1465,Council expenditure,08/07/2015,E&I - COUNTRYSIDE                       ,PAYPAL  HOOTSUITE,9.59,SUBSCRIPTIONS,COMPUTER NETWORK/INFORMATION SERVICES
29/10/2015,http://opendatacommunities.org/id/county-council/surrey,Surrey,http://id.esd.org.uk/service/1465,Council expenditure,08/07/2015,BURBANK COMMUNITY HOME,W M MORRISONS,26.15,EQUIPMENT,"GROCERY STORES, SUPERMARKETS"
29/10/2015,http://opendatacommunities.org/id/county-council/surrey,Surrey,http://id.esd.org.uk/service/1465,Council expenditure,08/07/2015,PINEHURST RESIDENTIAL CARE,ARGOS RETAIL GROUP,73.94,EQUIPMENT,DISCOUNT STORES
29/10/2015,http://opendatacommunities.org/id/county-council/surrey,Surrey,http://id.esd.org.uk/service/1465,Council expenditure,08/07/2015,STAFF OFFICE,TRAVELODGE WEBSITE,50.95,MISCELLANEOUS STAFF TRAVEL,TRAVELODGE
29/10/2015,http://opendatacommunities.org/id/county-council/surrey,Surrey,http://id.esd.org.uk/service/1465,Council expenditure,08/07/2015,WEB OPERATIONS TEAM,CRAZY EGG.COM,275.6,SUBSCRIPTIONS,BUSINESS SERVICES-NOT ELSEWHERE CLASSIFIED
29/10/2015,http://opendatacommunities.org/id/county-council/surrey,Surrey,http://id.esd.org.uk/service/1465,Council expenditure,08/07/2015,RUTH HOUSE,THE FARM SHOP-,337.69,PURCHASE OF FOOD (RAW MATERIALS),"CLOCK, JEWELRY, WATCH, AND SILVERWARE STORE"
29/10/2015,http://opendatacommunities.org/id/county-council/surrey,Surrey,http://id.esd.org.uk/service/1465,Council expenditure,08/07/2015,CHEYNE WALK COMMUNITY HOME,TANHOUSE FARM SHOP,16.9,PURCHASE OF FOOD (RAW MATERIALS),"MISC FOOD STORE-CONVENIENCE,MRKT,SPLTY,VENDNG MACS"
29/10/2015,http://opendatacommunities.org/id/county-council/surrey,Surrey,http://id.esd.org.uk/service/1465,Council expenditure,08/07/2015,WOKING YC,TESCO DIRECT,-332,EQUIPMENT,MISCELLANEOUS AND SPECIALTY RETAIL STORES
29/10/2015,http://opendatacommunities.org/id/county-council/surrey,Surrey,http://id.esd.org.uk/service/1465,Council expenditure,08/07/2015,HOPE SERVICE - EAST,SAINSBURYS TO YOU 0683,41.7,PURCHASE OF FOOD (RAW MATERIALS),"GROCERY STORES, SUPERMARKETS"
29/10/2015,http://opendatacommunities.org/id/county-council/surrey,Surrey,http://id.esd.org.uk/service/1465,Council expenditure,08/07/2015,HOPE SERVICE - EAST,DENBIES WINE ESTAT,11.15,REFRESHMENT COSTS,"EATING PLACES, RESTAURANTS"
29/10/2015,http://opendatacommunities.org/id/county-council/surrey,Surrey,http://id.esd.org.uk/service/1465,Council expenditure,08/07/2015,NORTH WEST AREA TEAM,NCS VUE CITB HS&E REV,17.5,TRAINING EXPENSES EXTERNAL GENERAL,SCHOOLS & EDUCATIONAL SVC-NOT ELSEWHERE CLASSIFIED
29/10/2015,http://opendatacommunities.org/id/county-council/surrey,Surrey,http://id.esd.org.uk/service/1465,Council expenditure,08/07/2015,HOPE SERVICE - WEST,SAINSBURYS SACAT(4409),5.9,PURCHASE OF FOOD (RAW MATERIALS),"GROCERY STORES, SUPERMARKETS"
29/10/2015,http://opendatacommunities.org/id/county-council/surrey,Surrey,http://id.esd.org.uk/service/1465,Council expenditure,08/07/2015,FAIRCROFT COMMUNITY HOME,TESCO STORE 2160,-5.5,PURCHASE OF FOOD (RAW MATERIALS),"GROCERY STORES, SUPERMARKETS"
29/10/2015,http://opendatacommunities.org/id/county-council/surrey,Surrey,http://id.esd.org.uk/service/1465,Council expenditure,08/07/2015,BURBANK COMMUNITY HOME,SAINSBURYS TO YOU 0686,281.2,PURCHASE OF FOOD (RAW MATERIALS),"GROCERY STORES, SUPERMARKETS"
29/10/2015,http://opendatacommunities.org/id/county-council/surrey,Surrey,http://id.esd.org.uk/service/1465,Council expenditure,08/07/2015,CHEYNE WALK COMMUNITY HOME,TANHOUSE FARM SHOP,7.2,PURCHASE OF FOOD (RAW MATERIALS),"MISC FOOD STORE-CONVENIENCE,MRKT,SPLTY,VENDNG MACS"
29/10/2015,http://opendatacommunities.org/id/county-council/surrey,Surrey,http://id.esd.org.uk/service/1465,Council expenditure,08/07/2015,HOPE SERVICE - WEST,AMAZON UK MARKETPLACE,51.92,CURRICULUM CONSUMABLES,BOOK STORES
29/10/2015,http://opendatacommunities.org/id/county-council/surrey,Surrey,http://id.esd.org.uk/service/1465,Council expenditure,08/07/2015,STRATEGIC DIRECTOR CSF,EAD SOLICITORS LLP,600,LEGAL EXPENSES,"ATTORNEYS, LEGAL SERVICES"
29/10/2015,http://opendatacommunities.org/id/county-council/surrey,Surrey,http://id.esd.org.uk/service/1465,Council expenditure,08/07/2015,NW TEACHERS,OPTIMUS PROF PUBLISHIN,389.4,SUBSCRIPTIONS,MISCELLANEOUS PUBLISHING AND PRINTING
29/10/2015,http://opendatacommunities.org/id/county-council/surrey,Surrey,http://id.esd.org.uk/service/1465,Council expenditure,08/07/2015,TARGETED INTERVENTION,BROOK LANDS MUSEUM TRU,22,EDUC VISITS/HOLS/CAMPS/TOYS,RECREATION SERVICES (NOT ELSEWHERE CLASSIFIED)
29/10/2015,http://opendatacommunities.org/id/county-council/surrey,Surrey,http://id.esd.org.uk/service/1465,Council expenditure,08/07/2015,PROPERTY OPERATIONS TEAM,SCREWFIX GUILDFORD,56.57,PURCHASE OF BUILDING MATERIALS,"BUILDING MATERIALS, LUMBER STORES"
29/10/2015,http://opendatacommunities.org/id/county-council/surrey,Surrey,http://id.esd.org.uk/service/1465,Council expenditure,08/07/2015,PRISON CAPITATION                       ,AMAZON UK MARKETPLACE,6.99,LIBRARY RESOURCES,BOOK STORES
29/10/2015,http://opendatacommunities.org/id/county-council/surrey,Surrey,http://id.esd.org.uk/service/1465,Council expenditure,08/07/2015,SW SECTION 17 CARE,TRAVELODGE WEBSITE,448,CHILDREN ACT SEC 17 PAYMENTS,TRAVELODGE
29/10/2015,http://opendatacommunities.org/id/county-council/surrey,Surrey,http://id.esd.org.uk/service/1465,Council expenditure,08/07/2015,SOLD CATERING,DAIRY CREST,75.6,PURCHASE OF FOOD (RAW MATERIALS),"MISC FOOD STORE-CONVENIENCE,MRKT,SPLTY,VENDNG MACS"
29/10/2015,http://opendatacommunities.org/id/county-council/surrey,Surrey,http://id.esd.org.uk/service/1465,Council expenditure,08/07/2015,TRANSPORT,AMAZON EU,39.54,COMPUTER CONSUMABLES,DIRECT MARKETING-OTHER DIRECT MARKETERS/NOT ELSEW.
29/10/2015,http://opendatacommunities.org/id/county-council/surrey,Surrey,http://id.esd.org.uk/service/1465,Council expenditure,08/07/2015,LOCAL DELIVERY GROUP,AMAZON UK MARKETPLACE,17.08,EQUIPMENT,BOOK STORES
29/10/2015,http://opendatacommunities.org/id/county-council/surrey,Surrey,http://id.esd.org.uk/service/1465,Council expenditure,08/07/2015,PE/CDT MAINTENANCE OVERHEADS,TECHSOFT UK LTD,303.6,ITEMS PURCHASED FOR RE-SALE,"COMP PROGRAMING,DATA PRCSNG,INTGRTD SYS DSGN SRVS"
29/10/2015,http://opendatacommunities.org/id/county-council/surrey,Surrey,http://id.esd.org.uk/service/1465,Council expenditure,08/07/2015,POLICY AND PERFORMANCE TEAM,AMAZON UK MARKETPLACE,-14.85,EQUIPMENT,MISCELLANEOUS AND SPECIALTY RETAIL STORES
29/10/2015,http://opendatacommunities.org/id/county-council/surrey,Surrey,http://id.esd.org.uk/service/1465,Council expenditure,08/07/2015,TARGETED INTERVENTION,ARPAN LONDIS,10.93,EDUC VISITS/HOLS/CAMPS/TOYS,"GROCERY STORES, SUPERMARKETS"
29/10/2015,http://opendatacommunities.org/id/county-council/surrey,Surrey,http://id.esd.org.uk/service/1465,Council expenditure,08/07/2015,HEAD OF C&D &PA,WWW.PAYOCS.CO.UK,56.03,REFRESHMENT COSTS,"CLEANING AND MAINTENANCE, JANITORIAL SERVICES"
29/10/2015,http://opendatacommunities.org/id/county-council/surrey,Surrey,http://id.esd.org.uk/service/1465,Council expenditure,08/07/2015,QUADRANT COURT WOKING,"AMAZON SVCS EUROPE,SAR",39,EQUIPMENT,BOOK STORES
29/10/2015,http://opendatacommunities.org/id/county-council/surrey,Surrey,http://id.esd.org.uk/service/1465,Council expenditure,08/07/2015,HR - BUSINESS SERVICES AND TRAINING,AMAZON EU,13.27,EQUIPMENT,DIRECT MARKETING-OTHER DIRECT MARKETERS/NOT ELSEW.
29/10/2015,http://opendatacommunities.org/id/county-council/surrey,Surrey,http://id.esd.org.uk/service/1465,Council expenditure,08/07/2015,AREA SCHOOLS OFFICER (NW),M&S E COMMERCE,25,SUBSISTENCE AND CONFERENCE EXPENSES,"GROCERY STORES, SUPERMARKETS"
29/10/2015,http://opendatacommunities.org/id/county-council/surrey,Surrey,http://id.esd.org.uk/service/1465,Council expenditure,08/07/2015,IMT MODERN WORKER,SDD 2015 DEEP DIVE,"1,074.00",SUBSISTENCE AND CONFERENCE EXPENSES,"THEATRICAL PRODUCERS(EXCL MOTION PIX),TICKET AGNCY"
29/10/2015,http://opendatacommunities.org/id/county-council/surrey,Surrey,http://id.esd.org.uk/service/1465,Council expenditure,08/07/2015,EPSOM LIBRARY SHOP,PP PAPERBIRD,165.89,ITEMS PURCHASED FOR RE-SALE,"OFFICE, SCHOOL SUPPLY, AND STATIONERY STORES"
29/10/2015,http://opendatacommunities.org/id/county-council/surrey,Surrey,http://id.esd.org.uk/service/1465,Council expenditure,08/07/2015,NORTH EAST AREA TEAM,INSURANCECHOICE.CO,99,NON-STAFF RELATED TRANSPORT COSTS,"INSURANCE SALES,UNDERWRITING,AND PREMIUMS"
29/10/2015,http://opendatacommunities.org/id/county-council/surrey,Surrey,http://id.esd.org.uk/service/1465,Council expenditure,08/07/2015,HILLSIDE,CROYDE BAY HOLIDAY,340,EDUC VISITS/HOLS/CAMPS/TOYS,"LODGING-HOTELS,MOTELS,RESORTS-NOT CLASSIFIED"
29/10/2015,http://opendatacommunities.org/id/county-council/surrey,Surrey,http://id.esd.org.uk/service/1465,Council expenditure,08/07/2015,ACL CENTRAL EXPENDITURE,AMAZON UK MARKETPLACE,5.47,DAY TO DAY MAINTENANCE,BOOK STORES
29/10/2015,http://opendatacommunities.org/id/county-council/surrey,Surrey,http://id.esd.org.uk/service/1465,Council expenditure,08/07/2015,ACCESS PROGRAMMES,BRITANNIA,569,NON-STAFF RELATED TRANSPORT COSTS,"LODGING-HOTELS,MOTELS,RESORTS-NOT CLASSIFIED"
29/10/2015,http://opendatacommunities.org/id/county-council/surrey,Surrey,http://id.esd.org.uk/service/1465,Council expenditure,08/07/2015,ACL CENTRAL EXPENDITURE,WWW.TOOLSTATION.COM,31.55,DAY TO DAY MAINTENANCE,HARDWARE STORES
29/10/2015,http://opendatacommunities.org/id/county-council/surrey,Surrey,http://id.esd.org.uk/service/1465,Council expenditure,08/07/2015,ADOPTION CARE,WWW.SACOAPARTMENTS.CO.,-96,CHILDREN ACT SEC 17 PAYMENTS,"LODGING-HOTELS,MOTELS,RESORTS-NOT CLASSIFIED"
29/10/2015,http://opendatacommunities.org/id/county-council/surrey,Surrey,http://id.esd.org.uk/service/1465,Council expenditure,08/07/2015,TARGETED INTERVENTION,BROOK LANDS MUSEUM TRU,8,EDUC VISITS/HOLS/CAMPS/TOYS,RECREATION SERVICES (NOT ELSEWHERE CLASSIFIED)
29/10/2015,http://opendatacommunities.org/id/county-council/surrey,Surrey,http://id.esd.org.uk/service/1465,Council expenditure,08/07/2015,HR - BUSINESS SERVICES AND TRAINING,AMAZON EU,32.49,STATIONERY,DIRECT MARKETING-OTHER DIRECT MARKETERS/NOT ELSEW.
29/10/2015,http://opendatacommunities.org/id/county-council/surrey,Surrey,http://id.esd.org.uk/service/1465,Council expenditure,08/07/2015,HERITAGE PUBLIC SERVICE,TESCO STORE 3220,11.74,ITEMS PURCHASED FOR RE-SALE,"GROCERY STORES, SUPERMARKETS"
29/10/2015,http://opendatacommunities.org/id/county-council/surrey,Surrey,http://id.esd.org.uk/service/1465,Council expenditure,08/07/2015,PROPERTY OPERATIONS TEAM,WICKES,25.27,PURCHASE OF BUILDING MATERIALS,"BUILDING MATERIALS, LUMBER STORES"
29/10/2015,http://opendatacommunities.org/id/county-council/surrey,Surrey,http://id.esd.org.uk/service/1465,Council expenditure,08/07/2015,CHEYNE WALK COMMUNITY HOME,TESCO STORES 2560,5,PURCHASE OF FOOD (RAW MATERIALS),"GROCERY STORES, SUPERMARKETS"
29/10/2015,http://opendatacommunities.org/id/county-council/surrey,Surrey,http://id.esd.org.uk/service/1465,Council expenditure,08/07/2015,QUADRANT COURT WOKING,"AMAZON SVCS EUROPE,SAR",39,EQUIPMENT,BOOK STORES
29/10/2015,http://opendatacommunities.org/id/county-council/surrey,Surrey,http://id.esd.org.uk/service/1465,Council expenditure,08/07/2015,CHEYNE WALK COMMUNITY HOME,TESCO STORE 2560,215.74,PURCHASE OF FOOD (RAW MATERIALS),"GROCERY STORES, SUPERMARKETS"
29/10/2015,http://opendatacommunities.org/id/county-council/surrey,Surrey,http://id.esd.org.uk/service/1465,Council expenditure,08/07/2015,TARGETED INTERVENTION,BROOKLANDS LTD,5.95,EDUC VISITS/HOLS/CAMPS/TOYS,RECREATION SERVICES (NOT ELSEWHERE CLASSIFIED)
29/10/2015,http://opendatacommunities.org/id/county-council/surrey,Surrey,http://id.esd.org.uk/service/1465,Council expenditure,08/07/2015,HOLLAND CLOSE RESIDENTIAL HOME,WWW.THEWORKS.CO.UK,20,EQUIPMENT,BOOK STORES
29/10/2015,http://opendatacommunities.org/id/county-council/surrey,Surrey,http://id.esd.org.uk/service/1465,Council expenditure,08/07/2015,IMT TECHNICAL DELIVERY,AMAZON UK MARKETPLACE,53.97,STATIONERY,BOOK STORES
29/10/2015,http://opendatacommunities.org/id/county-council/surrey,Surrey,http://id.esd.org.uk/service/1465,Council expenditure,08/07/2015,HILLSIDE,CROYDE BAY HOLIDAY,340,EDUC VISITS/HOLS/CAMPS/TOYS,"LODGING-HOTELS,MOTELS,RESORTS-NOT CLASSIFIED"
29/10/2015,http://opendatacommunities.org/id/county-council/surrey,Surrey,http://id.esd.org.uk/service/1465,Council expenditure,08/07/2015,BURBANK COMMUNITY HOME,CENTRAL AUTO REPAIR SE,432.48,VEHICLE REPAIRS AND MAINTENANCE,AUTOMOTIVE SERVICE SHOPS
29/10/2015,http://opendatacommunities.org/id/county-council/surrey,Surrey,http://id.esd.org.uk/service/1465,Council expenditure,08/07/2015,COVEHAM,SAINSBURYS TO YOU 0687,101.33,PURCHASE OF FOOD (RAW MATERIALS),"GROCERY STORES, SUPERMARKETS"
29/10/2015,http://opendatacommunities.org/id/county-council/surrey,Surrey,http://id.esd.org.uk/service/1465,Council expenditure,08/07/2015,PRISON CAPITATION                       ,AMAZON UK MARKETPLACE,82.8,LIBRARY RESOURCES,BOOK STORES
29/10/2015,http://opendatacommunities.org/id/county-council/surrey,Surrey,http://id.esd.org.uk/service/1465,Council expenditure,08/07/2015,RUTH HOUSE,THE FARM SHOP-,322.66,PURCHASE OF FOOD (RAW MATERIALS),"CLOCK, JEWELRY, WATCH, AND SILVERWARE STORE"
29/10/2015,http://opendatacommunities.org/id/county-council/surrey,Surrey,http://id.esd.org.uk/service/1465,Council expenditure,08/07/2015,IMT CRITICAL ENVIRONMENTS,WWW TONER24 CO UK,28.51,EQUIPMENT,"OFFICE, SCHOOL SUPPLY, AND STATIONERY STORES"
29/10/2015,http://opendatacommunities.org/id/county-council/surrey,Surrey,http://id.esd.org.uk/service/1465,Council expenditure,08/07/2015,KARIBU COMMUNITY HOME,WAITROSE 104,26.35,PURCHASE OF FOOD (RAW MATERIALS),"GROCERY STORES, SUPERMARKETS"
29/10/2015,http://opendatacommunities.org/id/county-council/surrey,Surrey,http://id.esd.org.uk/service/1465,Council expenditure,08/07/2015,LEAVING CARE PACKAGES,HIGH STREET VOUCHE,"2,010.50",OTHER COMMUNITY CARE VOL,"GIFT, CARD, NOVELTY AND SOUVENIR SHOPS"
29/10/2015,http://opendatacommunities.org/id/county-council/surrey,Surrey,http://id.esd.org.uk/service/1465,Council expenditure,08/07/2015,HOLLAND CLOSE RESIDENTIAL HOME,AMAZON UK MARKETPLACE,14.95,EQUIPMENT,BOOK STORES
29/10/2015,http://opendatacommunities.org/id/county-council/surrey,Surrey,http://id.esd.org.uk/service/1465,Council expenditure,08/07/2015,BUSINESS UNIT,WWW.HPA.ORG.UK,400,SUBSISTENCE AND CONFERENCE EXPENSES,MISCELLANEOUS PUBLISHING AND PRINTING
29/10/2015,http://opendatacommunities.org/id/county-council/surrey,Surrey,http://id.esd.org.uk/service/1465,Council expenditure,08/07/2015,ARUNDEL,TESCOS,121.32,REFRESHMENT COSTS,"GROCERY STORES, SUPERMARKETS"
29/10/2015,http://opendatacommunities.org/id/county-council/surrey,Surrey,http://id.esd.org.uk/service/1465,Council expenditure,08/07/2015,ARUNDEL,TESCOS,7,REFRESHMENT COSTS,"GROCERY STORES, SUPERMARKETS"
29/10/2015,http://opendatacommunities.org/id/county-council/surrey,Surrey,http://id.esd.org.uk/service/1465,Council expenditure,08/07/2015,APPLEWOOD,AMAZON UK MARKETPLACE,18.99,EDUC VISITS/HOLS/CAMPS/TOYS,BOOK STORES
29/10/2015,http://opendatacommunities.org/id/county-council/surrey,Surrey,http://id.esd.org.uk/service/1465,Council expenditure,08/07/2015,RUTH HOUSE,MUSBURY FABRICS,471.8,EQUIPMENT,MISCELLANEOUS HOUSE FURNISHING SPECIALTY SHOPS
29/10/2015,http://opendatacommunities.org/id/county-council/surrey,Surrey,http://id.esd.org.uk/service/1465,Council expenditure,08/07/2015,DOWNLANDS COUNTRYSIDE PROJECT,SCATS COUNTRYSTORE 70,21.06,EQUIPMENT,AGRICULTURAL COOPERATIVES
29/10/2015,http://opendatacommunities.org/id/county-council/surrey,Surrey,http://id.esd.org.uk/service/1465,Council expenditure,08/07/2015,RUTH HOUSE,THE FARM SHOP-,532.85,PURCHASE OF FOOD (RAW MATERIALS),"CLOCK, JEWELRY, WATCH, AND SILVERWARE STORE"
29/10/2015,http://opendatacommunities.org/id/county-council/surrey,Surrey,http://id.esd.org.uk/service/1465,Council expenditure,08/07/2015,RUTH HOUSE,THE FARM SHOP-,412.29,PURCHASE OF FOOD (RAW MATERIALS),"CLOCK, JEWELRY, WATCH, AND SILVERWARE STORE"
29/10/2015,http://opendatacommunities.org/id/county-council/surrey,Surrey,http://id.esd.org.uk/service/1465,Council expenditure,08/07/2015,SW SECTION 17 CARE,TRAVELODGE WEBSITE,485,CHILDREN ACT SEC 17 PAYMENTS,TRAVELODGE
29/10/2015,http://opendatacommunities.org/id/county-council/surrey,Surrey,http://id.esd.org.uk/service/1465,Council expenditure,08/07/2015,SURREY ARTS GENERAL,WWW.CASTORSUNLIMITED.C,13.39,EQUIPMENT,BUSINESS SERVICES-NOT ELSEWHERE CLASSIFIED
29/10/2015,http://opendatacommunities.org/id/county-council/surrey,Surrey,http://id.esd.org.uk/service/1465,Council expenditure,08/07/2015,HILLSIDE,SAINSBURYS 0675,51.94,PURCHASE OF FOOD (RAW MATERIALS),"GROCERY STORES, SUPERMARKETS"
29/10/2015,http://opendatacommunities.org/id/county-council/surrey,Surrey,http://id.esd.org.uk/service/1465,Council expenditure,08/07/2015,PRISON CAPITATION                       ,"AMAZON SVCS EUROPE,SAR",4.47,LIBRARY RESOURCES,BOOK STORES
29/10/2015,http://opendatacommunities.org/id/county-council/surrey,Surrey,http://id.esd.org.uk/service/1465,Council expenditure,08/07/2015,STRATEGIC DIRECTOR CSF,THE WILKY GROUP,226.8,VENUE COSTS (INCLUDING HIRE OF ROOMS),"BUILDING MATERIALS, LUMBER STORES"
29/10/2015,http://opendatacommunities.org/id/county-council/surrey,Surrey,http://id.esd.org.uk/service/1465,Council expenditure,08/07/2015,BURBANK COMMUNITY HOME,WWW.SURREYCC.GOV.UK,50,REFRESHMENT COSTS,GOVERNMENT SERVICES-NOT ELSEWHERE CLASSIFIED
29/10/2015,http://opendatacommunities.org/id/county-council/surrey,Surrey,http://id.esd.org.uk/service/1465,Council expenditure,08/07/2015,PRISON CAPITATION                       ,"AMAZON SVCS EUROPE,SAR",3.45,LIBRARY RESOURCES,BOOK STORES
29/10/2015,http://opendatacommunities.org/id/county-council/surrey,Surrey,http://id.esd.org.uk/service/1465,Council expenditure,08/07/2015,ROW AREA2 WAV WOK                       ,CCP CLEANING SUPPLIES,33.55,EQUIPMENT,PROFESSIONAL SERVICES-NOT ELSEWHERE CLASSIFIED
29/10/2015,http://opendatacommunities.org/id/county-council/surrey,Surrey,http://id.esd.org.uk/service/1465,Council expenditure,08/07/2015,ASSESSMENT TEAM,AMAZON UK MARKETPLACE,21.49,EQUIPMENT,BOOK STORES
29/10/2015,http://opendatacommunities.org/id/county-council/surrey,Surrey,http://id.esd.org.uk/service/1465,Council expenditure,08/07/2015,TARGETED INTERVENTION,ODEON,50.2,EDUC VISITS/HOLS/CAMPS/TOYS,MOTION PICTURE THEATERS
29/10/2015,http://opendatacommunities.org/id/county-council/surrey,Surrey,http://id.esd.org.uk/service/1465,Council expenditure,08/07/2015,SERVICE DELIVERY RESOURCES,"AMAZON SVCS EUROPE,SAR",51.98,CLEANING MATERIALS,BOOK STORES
29/10/2015,http://opendatacommunities.org/id/county-council/surrey,Surrey,http://id.esd.org.uk/service/1465,Council expenditure,08/07/2015,IMT TECHNICAL DELIVERY,AMAZON UK MARKETPLACE,8.44,STATIONERY,BOOK STORES
29/10/2015,http://opendatacommunities.org/id/county-council/surrey,Surrey,http://id.esd.org.uk/service/1465,Council expenditure,08/07/2015,SE EDUCATION PSYCHOLOGISTS,AMAZON EU,22.5,BOOKS,DIRECT MARKETING-OTHER DIRECT MARKETERS/NOT ELSEW.
29/10/2015,http://opendatacommunities.org/id/county-council/surrey,Surrey,http://id.esd.org.uk/service/1465,Council expenditure,09/07/2015,RUTH HOUSE,C BREWER & SONS,321.6,EQUIPMENT,"BUILDING MATERIALS, LUMBER STORES"
29/10/2015,http://opendatacommunities.org/id/county-council/surrey,Surrey,http://id.esd.org.uk/service/1465,Council expenditure,09/07/2015,TRAINING AND DEVELOPMENT,BRITISH A 12585280488770,162,SUBSISTENCE AND CONFERENCE EXPENSES,BRITISH A
29/10/2015,http://opendatacommunities.org/id/county-council/surrey,Surrey,http://id.esd.org.uk/service/1465,Council expenditure,09/07/2015,OTHER NON CWD HOME COSTS,WWW.MILLETS.CO.UK,295.65,EDUC VISITS/HOLS/CAMPS/TOYS,SPORTING GOODS STORES
29/10/2015,http://opendatacommunities.org/id/county-council/surrey,Surrey,http://id.esd.org.uk/service/1465,Council expenditure,09/07/2015,LIBERTAS COMMUNITY HOME,EASYJET00 000EPBFXSN,151.82,EDUC VISITS/HOLS/CAMPS/TOYS,EASYJET
29/10/2015,http://opendatacommunities.org/id/county-council/surrey,Surrey,http://id.esd.org.uk/service/1465,Council expenditure,09/07/2015,LSTF GRANT,HALFORDS ON LINE,150,EQUIPMENT,BICYCLE SHOPS-SALES AND SERVICE
29/10/2015,http://opendatacommunities.org/id/county-council/surrey,Surrey,http://id.esd.org.uk/service/1465,Council expenditure,09/07/2015,TRAINING AND DEVELOPMENT,EASYJET00 000EPCMB98,502.72,TRAINING EXPENSES EXTERNAL GENERAL,EASYJET
29/10/2015,http://opendatacommunities.org/id/county-council/surrey,Surrey,http://id.esd.org.uk/service/1465,Council expenditure,09/07/2015,TRAINING AND DEVELOPMENT,EASYJET00 000EPCMCQH,544.54,TRAINING EXPENSES EXTERNAL GENERAL,EASYJET
29/10/2015,http://opendatacommunities.org/id/county-council/surrey,Surrey,http://id.esd.org.uk/service/1465,Council expenditure,09/07/2015,TRAINING AND DEVELOPMENT,EASYJET00 000EPCMDFX,55.07,TRAINING EXPENSES EXTERNAL GENERAL,EASYJET
29/10/2015,http://opendatacommunities.org/id/county-council/surrey,Surrey,http://id.esd.org.uk/service/1465,Council expenditure,09/07/2015,LIBERTAS COMMUNITY HOME,EASYJET00 000EPBFXSN,350.88,EDUC VISITS/HOLS/CAMPS/TOYS,EASYJET
29/10/2015,http://opendatacommunities.org/id/county-council/surrey,Surrey,http://id.esd.org.uk/service/1465,Council expenditure,09/07/2015,TRAINING AND DEVELOPMENT,BRITISH A 12585280448600,71.36,TRAINING EXPENSES EXTERNAL GENERAL,BRITISH A
29/10/2015,http://opendatacommunities.org/id/county-council/surrey,Surrey,http://id.esd.org.uk/service/1465,Council expenditure,09/07/2015,EAST SUSSEX CONTRACT - MGMT & ADMIN,TESCO STORES 3330,2.75,REFRESHMENT COSTS,"GROCERY STORES, SUPERMARKETS"
29/10/2015,http://opendatacommunities.org/id/county-council/surrey,Surrey,http://id.esd.org.uk/service/1465,Council expenditure,09/07/2015,LAC INITIATIVES,PC WORLD ONLINE,735.98,EDUC VISITS/HOLS/CAMPS/TOYS,ELECTRONIC SALES
29/10/2015,http://opendatacommunities.org/id/county-council/surrey,Surrey,http://id.esd.org.uk/service/1465,Council expenditure,09/07/2015,NW SECTION 17 CARE,TRAVELODGE WEBSITE,506,CHILDREN ACT SEC 17 PAYMENTS,TRAVELODGE
29/10/2015,http://opendatacommunities.org/id/county-council/surrey,Surrey,http://id.esd.org.uk/service/1465,Council expenditure,09/07/2015,HOLLAND CLOSE RESIDENTIAL HOME,AMAZON UK MARKETPLACE,18.48,EQUIPMENT,BOOK STORES
29/10/2015,http://opendatacommunities.org/id/county-council/surrey,Surrey,http://id.esd.org.uk/service/1465,Council expenditure,09/07/2015,TRANSPORT,AMAZON UK MARKETPLACE,49.9,COMPUTER HARDWARE,BOOK STORES
29/10/2015,http://opendatacommunities.org/id/county-council/surrey,Surrey,http://id.esd.org.uk/service/1465,Council expenditure,09/07/2015,PROPERTY OPERATIONS TEAM,HOMEBASE LTD 247,14.97,PURCHASE OF BUILDING MATERIALS,"BUILDING MATERIALS, LUMBER STORES"
29/10/2015,http://opendatacommunities.org/id/county-council/surrey,Surrey,http://id.esd.org.uk/service/1465,Council expenditure,09/07/2015,LIBERTAS COMMUNITY HOME,GUILDFORD LOCK & SAFE,15.77,FIXTURES AND FITTINGS,HARDWARE EQUIPMENT AND SUPPLIES
29/10/2015,http://opendatacommunities.org/id/county-council/surrey,Surrey,http://id.esd.org.uk/service/1465,Council expenditure,09/07/2015,FAMILY WORKFORCE DEVELOPMENT EAST,AMAZON UK MARKETPLACE,9.98,COMPUTER HARDWARE,BOOK STORES
29/10/2015,http://opendatacommunities.org/id/county-council/surrey,Surrey,http://id.esd.org.uk/service/1465,Council expenditure,09/07/2015,LEAVING CARE PACKAGES,TRAVELODGE WEBSITE,81,INDEPENDENT LIVING PLACEMENTS,TRAVELODGE
29/10/2015,http://opendatacommunities.org/id/county-council/surrey,Surrey,http://id.esd.org.uk/service/1465,Council expenditure,09/07/2015,WOODLANDS COMMUNITY HOME,WWW.MILLETS.CO.UK,31,EQUIPMENT,SPORTING GOODS STORES
29/10/2015,http://opendatacommunities.org/id/county-council/surrey,Surrey,http://id.esd.org.uk/service/1465,Council expenditure,09/07/2015,HILLSIDE,CROYDE BAY HOLIDAY,"1,591.20",EDUC VISITS/HOLS/CAMPS/TOYS,"LODGING-HOTELS,MOTELS,RESORTS-NOT CLASSIFIED"
29/10/2015,http://opendatacommunities.org/id/county-council/surrey,Surrey,http://id.esd.org.uk/service/1465,Council expenditure,09/07/2015,TARGETED INTERVENTION,MB WORLD,85,EDUC VISITS/HOLS/CAMPS/TOYS,AUTOMOTIVE SERVICE SHOPS
29/10/2015,http://opendatacommunities.org/id/county-council/surrey,Surrey,http://id.esd.org.uk/service/1465,Council expenditure,09/07/2015,RUTH HOUSE,WWW.WALLPAPERWAREHSELT,65.4,EQUIPMENT,"GLASS, PAINT, WALLPAPER STORES"
29/10/2015,http://opendatacommunities.org/id/county-council/surrey,Surrey,http://id.esd.org.uk/service/1465,Council expenditure,09/07/2015,SE LOOKED AFTER TEAM,TRAVELODGE WEBSITE,77.3,OTHER COMMUNITY CARE PRIV,TRAVELODGE
29/10/2015,http://opendatacommunities.org/id/county-council/surrey,Surrey,http://id.esd.org.uk/service/1465,Council expenditure,09/07/2015,ACL CENTRAL EXPENDITURE,GOOGLE  ADWS3062151770,450,PUBLICITY,DIRECT MARKETING-CONTINUITY/SUBSCRIPTION MERCHANTS
29/10/2015,http://opendatacommunities.org/id/county-council/surrey,Surrey,http://id.esd.org.uk/service/1465,Council expenditure,09/07/2015,IMPROVING OUTCOMES - ECAT,AMAZON EU,30.08,BOOKS,DIRECT MARKETING-OTHER DIRECT MARKETERS/NOT ELSEW.
29/10/2015,http://opendatacommunities.org/id/county-council/surrey,Surrey,http://id.esd.org.uk/service/1465,Council expenditure,09/07/2015,IMT TECHNICAL DELIVERY,"AMAZON SVCS EUROPE,SAR",5.1,STATIONERY,BOOK STORES
29/10/2015,http://opendatacommunities.org/id/county-council/surrey,Surrey,http://id.esd.org.uk/service/1465,Council expenditure,09/07/2015,HOPE SERVICE - EAST,AMAZON UK MARKETPLACE,20.85,CURRICULUM EQUIPMENT AND FURNITURE,BOOK STORES
29/10/2015,http://opendatacommunities.org/id/county-council/surrey,Surrey,http://id.esd.org.uk/service/1465,Council expenditure,09/07/2015,QUADRANT COURT WOKING,WICKES BUILDING,97.12,EQUIPMENT,"BUILDING MATERIALS, LUMBER STORES"
29/10/2015,http://opendatacommunities.org/id/county-council/surrey,Surrey,http://id.esd.org.uk/service/1465,Council expenditure,09/07/2015,SAP COMPETENCY CENTRE,WWW.POSTURITE.CO.UK,121.14,EQUIPMENT,OFFICE AND COMMERCIAL FURNITURE
29/10/2015,http://opendatacommunities.org/id/county-council/surrey,Surrey,http://id.esd.org.uk/service/1465,Council expenditure,09/07/2015,LOCAL PREVENTION FRAMEWORK - TANDRIDGE,FREEDOM LEISURE,6.6,EDUC VISITS/HOLS/CAMPS/TOYS,RECREATION SERVICES (NOT ELSEWHERE CLASSIFIED)
29/10/2015,http://opendatacommunities.org/id/county-council/surrey,Surrey,http://id.esd.org.uk/service/1465,Council expenditure,09/07/2015,TRANSPORT,AMAZON EU,19.95,FURNITURE,DIRECT MARKETING-OTHER DIRECT MARKETERS/NOT ELSEW.
29/10/2015,http://opendatacommunities.org/id/county-council/surrey,Surrey,http://id.esd.org.uk/service/1465,Council expenditure,09/07/2015,E&I - PLASTICS                          ,GOOGLE  ADWS2060179426,500,PUBLICITY,DIRECT MARKETING-CONTINUITY/SUBSCRIPTION MERCHANTS
29/10/2015,http://opendatacommunities.org/id/county-council/surrey,Surrey,http://id.esd.org.uk/service/1465,Council expenditure,09/07/2015,HOPE SERVICE - EAST,TESCO STORES 3399,5,REFRESHMENT COSTS,"GROCERY STORES, SUPERMARKETS"
29/10/2015,http://opendatacommunities.org/id/county-council/surrey,Surrey,http://id.esd.org.uk/service/1465,Council expenditure,09/07/2015,TRANSPORT,LIDL UK,18.98,DAY TO DAY MAINTENANCE,"GROCERY STORES, SUPERMARKETS"
29/10/2015,http://opendatacommunities.org/id/county-council/surrey,Surrey,http://id.esd.org.uk/service/1465,Council expenditure,09/07/2015,HILLSIDE,SAINSBURYS 0675,50.75,PURCHASE OF FOOD (RAW MATERIALS),"GROCERY STORES, SUPERMARKETS"
29/10/2015,http://opendatacommunities.org/id/county-council/surrey,Surrey,http://id.esd.org.uk/service/1465,Council expenditure,09/07/2015,APPLEWOOD,AMAZON UK MARKETPLACE,7.99,EDUC VISITS/HOLS/CAMPS/TOYS,BOOK STORES
29/10/2015,http://opendatacommunities.org/id/county-council/surrey,Surrey,http://id.esd.org.uk/service/1465,Council expenditure,09/07/2015,TRAINING AND DEVELOPMENT,BOTHWELL BRIDGE HOTEL,130,SUBSISTENCE AND CONFERENCE EXPENSES,"LODGING-HOTELS,MOTELS,RESORTS-NOT CLASSIFIED"
29/10/2015,http://opendatacommunities.org/id/county-council/surrey,Surrey,http://id.esd.org.uk/service/1465,Council expenditure,09/07/2015,THE BRIDGE YC,TESCO STORES 2812,7.15,PURCHASE OF FOOD (RAW MATERIALS),"GROCERY STORES, SUPERMARKETS"
29/10/2015,http://opendatacommunities.org/id/county-council/surrey,Surrey,http://id.esd.org.uk/service/1465,Council expenditure,09/07/2015,TARGETED INTERVENTION,HITCOCK KING ENTERPRIS,44.35,EDUC VISITS/HOLS/CAMPS/TOYS,HARDWARE STORES
29/10/2015,http://opendatacommunities.org/id/county-council/surrey,Surrey,http://id.esd.org.uk/service/1465,Council expenditure,09/07/2015,CHILDREN'S RIGHTS TEAM,HSS HIRE,-144.74,EQUIPMENT,"EQUIPMENT RENTAL&LEASING SVS, FURNTURE/TOOL RENTAL"
29/10/2015,http://opendatacommunities.org/id/county-council/surrey,Surrey,http://id.esd.org.uk/service/1465,Council expenditure,09/07/2015,WOODLANDS COMMUNITY HOME,ARGOS LTD,35.33,EQUIPMENT,DISCOUNT STORES
29/10/2015,http://opendatacommunities.org/id/county-council/surrey,Surrey,http://id.esd.org.uk/service/1465,Council expenditure,09/07/2015,PRISON CAPITATION                       ,AMAZON UK MARKETPLACE,2.81,LIBRARY RESOURCES,BOOK STORES
29/10/2015,http://opendatacommunities.org/id/county-council/surrey,Surrey,http://id.esd.org.uk/service/1465,Council expenditure,09/07/2015,HOPE SERVICE - EAST,THE PHEASANT TREE,7.35,REFRESHMENT COSTS,"EATING PLACES, RESTAURANTS"
29/10/2015,http://opendatacommunities.org/id/county-council/surrey,Surrey,http://id.esd.org.uk/service/1465,Council expenditure,09/07/2015,APPLEWOOD,"AMAZON SVCS EUROPE,SAR",5.49,EDUC VISITS/HOLS/CAMPS/TOYS,BOOK STORES
29/10/2015,http://opendatacommunities.org/id/county-council/surrey,Surrey,http://id.esd.org.uk/service/1465,Council expenditure,09/07/2015,LIBERTAS COMMUNITY HOME,SAINSBURYS,101.2,EDUC VISITS/HOLS/CAMPS/TOYS,"GROCERY STORES, SUPERMARKETS"
29/10/2015,http://opendatacommunities.org/id/county-council/surrey,Surrey,http://id.esd.org.uk/service/1465,Council expenditure,09/07/2015,LIBERTAS COMMUNITY HOME,SAINSBURYS,44,EQUIPMENT,"GROCERY STORES, SUPERMARKETS"
29/10/2015,http://opendatacommunities.org/id/county-council/surrey,Surrey,http://id.esd.org.uk/service/1465,Council expenditure,09/07/2015,FAIRCROFT COMMUNITY HOME,SAINSBURYS SACAT(4180),4.1,PURCHASE OF FOOD (RAW MATERIALS),"GROCERY STORES, SUPERMARKETS"
29/10/2015,http://opendatacommunities.org/id/county-council/surrey,Surrey,http://id.esd.org.uk/service/1465,Council expenditure,09/07/2015,ARUNDEL,TESCO STORES 5999,83.31,REFRESHMENT COSTS,"GROCERY STORES, SUPERMARKETS"
29/10/2015,http://opendatacommunities.org/id/county-council/surrey,Surrey,http://id.esd.org.uk/service/1465,Council expenditure,09/07/2015,WOODLANDS COMMUNITY HOME,SAINSBURYS,14,EQUIPMENT,"GROCERY STORES, SUPERMARKETS"
29/10/2015,http://opendatacommunities.org/id/county-council/surrey,Surrey,http://id.esd.org.uk/service/1465,Council expenditure,09/07/2015,WOODLANDS COMMUNITY HOME,SAINSBURYS,4.4,PURCHASE OF FOOD (RAW MATERIALS),"GROCERY STORES, SUPERMARKETS"
29/10/2015,http://opendatacommunities.org/id/county-council/surrey,Surrey,http://id.esd.org.uk/service/1465,Council expenditure,09/07/2015,WOODLANDS COMMUNITY HOME,SAINSBURYS,61.6,PURCHASE OF FOOD (RAW MATERIALS),"GROCERY STORES, SUPERMARKETS"
29/10/2015,http://opendatacommunities.org/id/county-council/surrey,Surrey,http://id.esd.org.uk/service/1465,Council expenditure,09/07/2015,COUNTY HALL,TLC (SOUTHERN) LTD,355.82,EQUIPMENT,HOUSEHOLD APPLIANCE STORES
29/10/2015,http://opendatacommunities.org/id/county-council/surrey,Surrey,http://id.esd.org.uk/service/1465,Council expenditure,09/07/2015,COVEHAM,SANDY BALLS ESTATE,94.86,EDUC VISITS/HOLS/CAMPS/TOYS,CAMPGROUNDS AND TRAILER PARKS
29/10/2015,http://opendatacommunities.org/id/county-council/surrey,Surrey,http://id.esd.org.uk/service/1465,Council expenditure,09/07/2015,NE TEACHERS,HELEN ARKELL DYSLEXIA,460.5,CURRICULUM CONSUMABLES,"ORGANIZATIONS, CHARITABLE AND SOCIAL SERVICES"
29/10/2015,http://opendatacommunities.org/id/county-council/surrey,Surrey,http://id.esd.org.uk/service/1465,Council expenditure,09/07/2015,DOWNLANDS COUNTRYSIDE PROJECT,THE OUTDOORS COMPANY,325.75,"CLOTHING, UNIFORM AND LAUNDRY",SPORTING GOODS STORES
29/10/2015,http://opendatacommunities.org/id/county-council/surrey,Surrey,http://id.esd.org.uk/service/1465,Council expenditure,09/07/2015,SW SECTION 17 CARE,BASINGSTOKE COUNTRY HO,775.75,CHILDREN ACT SEC 17 PAYMENTS,"LODGING-HOTELS,MOTELS,RESORTS-NOT CLASSIFIED"
29/10/2015,http://opendatacommunities.org/id/county-council/surrey,Surrey,http://id.esd.org.uk/service/1465,Council expenditure,09/07/2015,SEN GREEN PAPER PATHFINDER PILOT,AMAZON EU,69.99,EQUIPMENT,DIRECT MARKETING-OTHER DIRECT MARKETERS/NOT ELSEW.
29/10/2015,http://opendatacommunities.org/id/county-council/surrey,Surrey,http://id.esd.org.uk/service/1465,Council expenditure,09/07/2015,BROCKHURST RESIDENTIAL CARE,"BOOTS,WEYBRIDGE",29.22,MEDICAL EXPENSES,"DRUG STORES, PHARMACIES"
29/10/2015,http://opendatacommunities.org/id/county-council/surrey,Surrey,http://id.esd.org.uk/service/1465,Council expenditure,09/07/2015,MALLOW CRESCENT,SAINSBURYS,4.7,PURCHASE OF FOOD (RAW MATERIALS),"GROCERY STORES, SUPERMARKETS"
29/10/2015,http://opendatacommunities.org/id/county-council/surrey,Surrey,http://id.esd.org.uk/service/1465,Council expenditure,09/07/2015,MALLOW CRESCENT,SAINSBURYS,98.8,PURCHASE OF FOOD (RAW MATERIALS),"GROCERY STORES, SUPERMARKETS"
29/10/2015,http://opendatacommunities.org/id/county-council/surrey,Surrey,http://id.esd.org.uk/service/1465,Council expenditure,09/07/2015,SW SECTION 17 CARE,TRAVELODGE WEBSITE,487,CHILDREN ACT SEC 17 PAYMENTS,TRAVELODGE
29/10/2015,http://opendatacommunities.org/id/county-council/surrey,Surrey,http://id.esd.org.uk/service/1465,Council expenditure,09/07/2015,TARGETED INTERVENTION,TESCO STORES-2047,12.64,EDUC VISITS/HOLS/CAMPS/TOYS,"GROCERY STORES, SUPERMARKETS"
29/10/2015,http://opendatacommunities.org/id/county-council/surrey,Surrey,http://id.esd.org.uk/service/1465,Council expenditure,09/07/2015,NW CARE - NON-LAC CP & COURT,BARRACUDAS ACTIVITY HO,151.98,CHILDREN ACT SEC 17 PAYMENTS,RECREATIONAL AND SPORTING CAMPS
29/10/2015,http://opendatacommunities.org/id/county-council/surrey,Surrey,http://id.esd.org.uk/service/1465,Council expenditure,09/07/2015,COMMUNITY ARCHAEOLOGIST PROJECT,"AMAZON SVCS EUROPE,SAR",19.95,EQUIPMENT,BOOK STORES
29/10/2015,http://opendatacommunities.org/id/county-council/surrey,Surrey,http://id.esd.org.uk/service/1465,Council expenditure,09/07/2015,CS BUSINESS SUPPORT WEST,ARGOS DIRECT,-312.93,FURNITURE,DISCOUNT STORES
29/10/2015,http://opendatacommunities.org/id/county-council/surrey,Surrey,http://id.esd.org.uk/service/1465,Council expenditure,09/07/2015,BURBANK COMMUNITY HOME,JD SPORTS PLC,20,EQUIPMENT,SPORTING GOODS STORES
29/10/2015,http://opendatacommunities.org/id/county-council/surrey,Surrey,http://id.esd.org.uk/service/1465,Council expenditure,09/07/2015,SURREY DOM CARE SRV,SAINSBURYS 0032,272.2,REFRESHMENT COSTS,"GROCERY STORES, SUPERMARKETS"
29/10/2015,http://opendatacommunities.org/id/county-council/surrey,Surrey,http://id.esd.org.uk/service/1465,Council expenditure,09/07/2015,NE CARE - NON-LAC CP & COURT,WWW.BHCC-INTERNET,10,FEES,GOVERNMENT SERVICES-NOT ELSEWHERE CLASSIFIED
29/10/2015,http://opendatacommunities.org/id/county-council/surrey,Surrey,http://id.esd.org.uk/service/1465,Council expenditure,09/07/2015,NIL RECOURSE PUBLIC FNDG 18+ ASYLUM SKR,LANES HOTEL,120,3RD PARTY PAYMENTS PRIVATE INDIV,"LODGING-HOTELS,MOTELS,RESORTS-NOT CLASSIFIED"
29/10/2015,http://opendatacommunities.org/id/county-council/surrey,Surrey,http://id.esd.org.uk/service/1465,Council expenditure,09/07/2015,HOPE SERVICE - EAST,"AMAZON SVCS EUROPE,SAR",3,CURRICULUM CONSUMABLES,BOOK STORES
29/10/2015,http://opendatacommunities.org/id/county-council/surrey,Surrey,http://id.esd.org.uk/service/1465,Council expenditure,09/07/2015,SOLD DAY TO DAY OPERATIONS,"AMAZON SVCS EUROPE,SAR",2.62,EQUIPMENT,BOOK STORES
29/10/2015,http://opendatacommunities.org/id/county-council/surrey,Surrey,http://id.esd.org.uk/service/1465,Council expenditure,09/07/2015,PRISON CAPITATION                       ,AMAZON UK MARKETPLACE,5.55,LIBRARY RESOURCES,BOOK STORES
29/10/2015,http://opendatacommunities.org/id/county-council/surrey,Surrey,http://id.esd.org.uk/service/1465,Council expenditure,09/07/2015,APPLEWOOD,AMAZON UK MARKETPLACE,30.98,EDUC VISITS/HOLS/CAMPS/TOYS,BOOK STORES
29/10/2015,http://opendatacommunities.org/id/county-council/surrey,Surrey,http://id.esd.org.uk/service/1465,Council expenditure,09/07/2015,TRANSPORT DEVELOPMENT CONTROL,AMAZON UK MARKETPLACE,23.98,COMPUTER HARDWARE,BOOK STORES
29/10/2015,http://opendatacommunities.org/id/county-council/surrey,Surrey,http://id.esd.org.uk/service/1465,Council expenditure,09/07/2015,HOLLAND CLOSE RESIDENTIAL HOME,AMAZON UK MARKETPLACE,26.64,EQUIPMENT,BOOK STORES
29/10/2015,http://opendatacommunities.org/id/county-council/surrey,Surrey,http://id.esd.org.uk/service/1465,Council expenditure,10/07/2015,MALLOW CRESCENT,TVLICENSING.CO.UK,145.5,EQUIPMENT,"CONSULTING, MANAGEMENT, AND PUBLIC RELATIONS SVCS"
29/10/2015,http://opendatacommunities.org/id/county-council/surrey,Surrey,http://id.esd.org.uk/service/1465,Council expenditure,10/07/2015,MALLOW CRESCENT,TVLICENSING.CO.UK,145.5,EQUIPMENT,"CONSULTING, MANAGEMENT, AND PUBLIC RELATIONS SVCS"
29/10/2015,http://opendatacommunities.org/id/county-council/surrey,Surrey,http://id.esd.org.uk/service/1465,Council expenditure,10/07/2015,ASYLUM SEEKERS 18+,TVLICENSING.CO.UK,145.5,EQUIPMENT,"CONSULTING, MANAGEMENT, AND PUBLIC RELATIONS SVCS"
29/10/2015,http://opendatacommunities.org/id/county-council/surrey,Surrey,http://id.esd.org.uk/service/1465,Council expenditure,10/07/2015,MALLOW CRESCENT,TVLICENSING.CO.UK,145.5,EQUIPMENT,"CONSULTING, MANAGEMENT, AND PUBLIC RELATIONS SVCS"
29/10/2015,http://opendatacommunities.org/id/county-council/surrey,Surrey,http://id.esd.org.uk/service/1465,Council expenditure,10/07/2015,TRAINING AND DEVELOPMENT,PREMIER INN44523660,45.75,TRAINING EXPENSES EXTERNAL GENERAL,PREMIER INN
29/10/2015,http://opendatacommunities.org/id/county-council/surrey,Surrey,http://id.esd.org.uk/service/1465,Council expenditure,10/07/2015,CEO - PUBLIC HEALTH CAMPAIGNS           ,NETMUMS LTD,272.16,PUBLICITY,PROFESSIONAL SERVICES-NOT ELSEWHERE CLASSIFIED
29/10/2015,http://opendatacommunities.org/id/county-council/surrey,Surrey,http://id.esd.org.uk/service/1465,Council expenditure,10/07/2015,TARGETED INTERVENTION,WELCOME BREAK STARBUCK,8.75,EDUC VISITS/HOLS/CAMPS/TOYS,"MISC FOOD STORE-CONVENIENCE,MRKT,SPLTY,VENDNG MACS"
29/10/2015,http://opendatacommunities.org/id/county-council/surrey,Surrey,http://id.esd.org.uk/service/1465,Council expenditure,10/07/2015,LIBERTAS COMMUNITY HOME,JD SPORTS PLC,60,"CLOTHING, UNIFORM AND LAUNDRY",SPORTING GOODS STORES
29/10/2015,http://opendatacommunities.org/id/county-council/surrey,Surrey,http://id.esd.org.uk/service/1465,Council expenditure,10/07/2015,SURREY HILLS AONB,THE PERCY ARMS,9.2,REFRESHMENT COSTS,"BAR,LOUNGE,DISCO,NIGHTCLUB,TAVERN-ALCOHOLIC DRINKS"
29/10/2015,http://opendatacommunities.org/id/county-council/surrey,Surrey,http://id.esd.org.uk/service/1465,Council expenditure,10/07/2015,FAMILY GROUP CONFERENCES,JNE SECURITY LTD,45.78,EQUIPMENT,ADVERTISING SERVICES
29/10/2015,http://opendatacommunities.org/id/county-council/surrey,Surrey,http://id.esd.org.uk/service/1465,Council expenditure,10/07/2015,BURBANK COMMUNITY HOME,AMAZON UK MARKETPLACE,3.99,EQUIPMENT,BOOK STORES
29/10/2015,http://opendatacommunities.org/id/county-council/surrey,Surrey,http://id.esd.org.uk/service/1465,Council expenditure,10/07/2015,HOPE SERVICE - WEST,SAINSBURYS LOC 4409,11.15,PURCHASE OF FOOD (RAW MATERIALS),"GROCERY STORES, SUPERMARKETS"
29/10/2015,http://opendatacommunities.org/id/county-council/surrey,Surrey,http://id.esd.org.uk/service/1465,Council expenditure,10/07/2015,QUADRANT COURT WOKING,ROBERT DYAS HOLDNG LTD,13.98,EQUIPMENT,HARDWARE STORES
29/10/2015,http://opendatacommunities.org/id/county-council/surrey,Surrey,http://id.esd.org.uk/service/1465,Council expenditure,10/07/2015,SE CARE - LAC,NATIONAL EXPRESS LIMIT,21.5,NON-STAFF RELATED TRANSPORT COSTS,BUS LINES
29/10/2015,http://opendatacommunities.org/id/county-council/surrey,Surrey,http://id.esd.org.uk/service/1465,Council expenditure,10/07/2015,LIBERTAS COMMUNITY HOME,SAINSBURYS TO YOU 0652,157.65,PURCHASE OF FOOD (RAW MATERIALS),"GROCERY STORES, SUPERMARKETS"
29/10/2015,http://opendatacommunities.org/id/county-council/surrey,Surrey,http://id.esd.org.uk/service/1465,Council expenditure,10/07/2015,APPLEWOOD,AMAZON EU,14.51,EDUC VISITS/HOLS/CAMPS/TOYS,DIRECT MARKETING-OTHER DIRECT MARKETERS/NOT ELSEW.
29/10/2015,http://opendatacommunities.org/id/county-council/surrey,Surrey,http://id.esd.org.uk/service/1465,Council expenditure,10/07/2015,PROPERTY OPERATIONS TEAM,TOOLSTATION LTD,16.72,PURCHASE OF BUILDING MATERIALS,HARDWARE STORES
29/10/2015,http://opendatacommunities.org/id/county-council/surrey,Surrey,http://id.esd.org.uk/service/1465,Council expenditure,10/07/2015,CENTRAL COMMUNICATIONS,WWW.RYMAN.CO.UK,-135.87,STATIONERY,"OFFICE, SCHOOL SUPPLY, AND STATIONERY STORES"
29/10/2015,http://opendatacommunities.org/id/county-council/surrey,Surrey,http://id.esd.org.uk/service/1465,Council expenditure,10/07/2015,WOODLANDS COMMUNITY HOME,AMAZON UK MARKETPLACE,11.05,EDUC VISITS/HOLS/CAMPS/TOYS,BOOK STORES
29/10/2015,http://opendatacommunities.org/id/county-council/surrey,Surrey,http://id.esd.org.uk/service/1465,Council expenditure,10/07/2015,OTHER NON CWD HOME COSTS,SAINSBURYS SACAT 0686,68.53,EQUIPMENT,"GROCERY STORES, SUPERMARKETS"
29/10/2015,http://opendatacommunities.org/id/county-council/surrey,Surrey,http://id.esd.org.uk/service/1465,Council expenditure,10/07/2015,ASYLUM SEEKERS 18+,TRAVELODGE WEBSITE,65,INDEPENDENT LIVING PLACEMENTS,TRAVELODGE
29/10/2015,http://opendatacommunities.org/id/county-council/surrey,Surrey,http://id.esd.org.uk/service/1465,Council expenditure,10/07/2015,WOODLANDS COMMUNITY HOME,"AMAZON SVCS EUROPE,SAR",4.98,EDUC VISITS/HOLS/CAMPS/TOYS,BOOK STORES
29/10/2015,http://opendatacommunities.org/id/county-council/surrey,Surrey,http://id.esd.org.uk/service/1465,Council expenditure,10/07/2015,NE TEACHERS,AMAZON UK MARKETPLACE,13.88,EQUIPMENT,BOOK STORES
29/10/2015,http://opendatacommunities.org/id/county-council/surrey,Surrey,http://id.esd.org.uk/service/1465,Council expenditure,10/07/2015,SE EDUCATION WELFARE OFFICERS,"AMAZON SVCS EUROPE,SAR",4.86,EQUIPMENT,BOOK STORES
29/10/2015,http://opendatacommunities.org/id/county-council/surrey,Surrey,http://id.esd.org.uk/service/1465,Council expenditure,10/07/2015,NE TEACHERS,"AMAZON SVCS EUROPE,SAR",12.79,EQUIPMENT,BOOK STORES
29/10/2015,http://opendatacommunities.org/id/county-council/surrey,Surrey,http://id.esd.org.uk/service/1465,Council expenditure,10/07/2015,WOODLANDS COMMUNITY HOME,PITCHUP.COM,15.3,EDUC VISITS/HOLS/CAMPS/TOYS,"LODGING-HOTELS,MOTELS,RESORTS-NOT CLASSIFIED"
29/10/2015,http://opendatacommunities.org/id/county-council/surrey,Surrey,http://id.esd.org.uk/service/1465,Council expenditure,10/07/2015,CENTRAL COMMUNICATIONS,WWW.RYMAN.CO.UK,135.87,STATIONERY,"OFFICE, SCHOOL SUPPLY, AND STATIONERY STORES"
29/10/2015,http://opendatacommunities.org/id/county-council/surrey,Surrey,http://id.esd.org.uk/service/1465,Council expenditure,10/07/2015,ASSESSMENT TEAM,AMAZON UK MARKETPLACE,7.9,EQUIPMENT,BOOK STORES
29/10/2015,http://opendatacommunities.org/id/county-council/surrey,Surrey,http://id.esd.org.uk/service/1465,Council expenditure,10/07/2015,WOODLANDS COMMUNITY HOME,AMAZON UK MARKETPLACE,1.56,EDUC VISITS/HOLS/CAMPS/TOYS,BOOK STORES
29/10/2015,http://opendatacommunities.org/id/county-council/surrey,Surrey,http://id.esd.org.uk/service/1465,Council expenditure,10/07/2015,WOKING YC,TESCO DIRECT,332,EQUIPMENT,MISCELLANEOUS AND SPECIALTY RETAIL STORES
29/10/2015,http://opendatacommunities.org/id/county-council/surrey,Surrey,http://id.esd.org.uk/service/1465,Council expenditure,10/07/2015,INSTRUMENT HIRE SHOP,AMAZON UK MARKETPLACE,9.98,EQUIPMENT,BOOK STORES
29/10/2015,http://opendatacommunities.org/id/county-council/surrey,Surrey,http://id.esd.org.uk/service/1465,Council expenditure,10/07/2015,TRANSPORT,AMAZON UK MARKETPLACE,16.16,OPERATIONAL FIRE EQUIPMENT,BOOK STORES
29/10/2015,http://opendatacommunities.org/id/county-council/surrey,Surrey,http://id.esd.org.uk/service/1465,Council expenditure,10/07/2015,ARUNDEL,TESCOS,141.65,REFRESHMENT COSTS,"GROCERY STORES, SUPERMARKETS"
29/10/2015,http://opendatacommunities.org/id/county-council/surrey,Surrey,http://id.esd.org.uk/service/1465,Council expenditure,10/07/2015,ARUNDEL,TESCOS,12.35,REFRESHMENT COSTS,"GROCERY STORES, SUPERMARKETS"
29/10/2015,http://opendatacommunities.org/id/county-council/surrey,Surrey,http://id.esd.org.uk/service/1465,Council expenditure,10/07/2015,NW CARE - CP & COURT LAC,HAMPSHIRE COUNTY COUNC,23,FEES,GOVERNMENT SERVICES-NOT ELSEWHERE CLASSIFIED
29/10/2015,http://opendatacommunities.org/id/county-council/surrey,Surrey,http://id.esd.org.uk/service/1465,Council expenditure,10/07/2015,PSS COUNTYWIDE,AMAZON UK MARKETPLACE,160.54,EQUIPMENT,BOOK STORES
29/10/2015,http://opendatacommunities.org/id/county-council/surrey,Surrey,http://id.esd.org.uk/service/1465,Council expenditure,10/07/2015,LEAVING CARE PACKAGES,FAIRDENE GUEST HOUSE,280,INDEPENDENT LIVING PLACEMENTS,"LODGING-HOTELS,MOTELS,RESORTS-NOT CLASSIFIED"
29/10/2015,http://opendatacommunities.org/id/county-council/surrey,Surrey,http://id.esd.org.uk/service/1465,Council expenditure,10/07/2015,NE AREA SEN MANAGEMENT TEAM,AMAZON EU,148.44,EQUIPMENT,DIRECT MARKETING-OTHER DIRECT MARKETERS/NOT ELSEW.
29/10/2015,http://opendatacommunities.org/id/county-council/surrey,Surrey,http://id.esd.org.uk/service/1465,Council expenditure,10/07/2015,HOPE SERVICE - EAST,CHESSINGTON GARDEN CNT,4.35,REFRESHMENT COSTS,LAWN AND GARDEN SUPPLY STORES
29/10/2015,http://opendatacommunities.org/id/county-council/surrey,Surrey,http://id.esd.org.uk/service/1465,Council expenditure,10/07/2015,WRAY PARK COMPLEX,SELCO TRADE CTR EFT S0,46.66,DAY TO DAY MAINTENANCE,"BUILDING MATERIALS, LUMBER STORES"
29/10/2015,http://opendatacommunities.org/id/county-council/surrey,Surrey,http://id.esd.org.uk/service/1465,Council expenditure,10/07/2015,CHILDREN'S RIGHTS TEAM,THE AMBASSADORS THEATR,500,EDUC VISITS/HOLS/CAMPS/TOYS,"THEATRICAL PRODUCERS(EXCL MOTION PIX),TICKET AGNCY"
29/10/2015,http://opendatacommunities.org/id/county-council/surrey,Surrey,http://id.esd.org.uk/service/1465,Council expenditure,10/07/2015,BOOKS - ADULT NON-FICTION               ,"AMAZON SVCS EUROPE,SAR",7.8,LIBRARY RESOURCES,BOOK STORES
29/10/2015,http://opendatacommunities.org/id/county-council/surrey,Surrey,http://id.esd.org.uk/service/1465,Council expenditure,10/07/2015,NE TEACHERS,AMAZON UK MARKETPLACE,9.47,EQUIPMENT,BOOK STORES
29/10/2015,http://opendatacommunities.org/id/county-council/surrey,Surrey,http://id.esd.org.uk/service/1465,Council expenditure,10/07/2015,TRAINING AND DEVELOPMENT,PREMIER INN44523660,45.75,TRAINING EXPENSES EXTERNAL GENERAL,PREMIER INN
29/10/2015,http://opendatacommunities.org/id/county-council/surrey,Surrey,http://id.esd.org.uk/service/1465,Council expenditure,10/07/2015,ROW VOLUNTEERS WEST                     ,PRACTICAL CAR & VAN RE,39,FEES,AUTOMOBILE RENTAL AGENCY-NOT ELSEWHERE CLASSIFIED
29/10/2015,http://opendatacommunities.org/id/county-council/surrey,Surrey,http://id.esd.org.uk/service/1465,Council expenditure,10/07/2015,WOODLANDS COMMUNITY HOME,SAINSBURYS,10.7,PURCHASE OF FOOD (RAW MATERIALS),"GROCERY STORES, SUPERMARKETS"
29/10/2015,http://opendatacommunities.org/id/county-council/surrey,Surrey,http://id.esd.org.uk/service/1465,Council expenditure,10/07/2015,WOODLANDS COMMUNITY HOME,SAINSBURYS,70.2,PURCHASE OF FOOD (RAW MATERIALS),"GROCERY STORES, SUPERMARKETS"
29/10/2015,http://opendatacommunities.org/id/county-council/surrey,Surrey,http://id.esd.org.uk/service/1465,Council expenditure,10/07/2015,WOODLANDS COMMUNITY HOME,AMAZON UK MARKETPLACE,35.94,EDUC VISITS/HOLS/CAMPS/TOYS,BOOK STORES
29/10/2015,http://opendatacommunities.org/id/county-council/surrey,Surrey,http://id.esd.org.uk/service/1465,Council expenditure,10/07/2015,HOPE SERVICE - EAST,CHESSINGTON GARDEN CNT,45.49,CURRICULUM CONSUMABLES,LAWN AND GARDEN SUPPLY STORES
29/10/2015,http://opendatacommunities.org/id/county-council/surrey,Surrey,http://id.esd.org.uk/service/1465,Council expenditure,10/07/2015,HERITAGE PUBLIC SERVICE,W M MORRISONS,18.34,REFRESHMENT COSTS,"GROCERY STORES, SUPERMARKETS"
29/10/2015,http://opendatacommunities.org/id/county-council/surrey,Surrey,http://id.esd.org.uk/service/1465,Council expenditure,10/07/2015,WOODLANDS COMMUNITY HOME,AMAZON EU,6.99,EDUC VISITS/HOLS/CAMPS/TOYS,DIRECT MARKETING-OTHER DIRECT MARKETERS/NOT ELSEW.
29/10/2015,http://opendatacommunities.org/id/county-council/surrey,Surrey,http://id.esd.org.uk/service/1465,Council expenditure,10/07/2015,CEO - PUBLIC HEALTH CAMPAIGNS           ,PAYPAL  MUMSNET LTD,108,PUBLICITY,ADVERTISING SERVICES
29/10/2015,http://opendatacommunities.org/id/county-council/surrey,Surrey,http://id.esd.org.uk/service/1465,Council expenditure,10/07/2015,ASSISTED PURCHASE SCHEME,ACKERMAN MUSIC,395,EQUIPMENT,"MUSIC STORES-INSTRUMENTS, PIANOS, SHEET MUSIC"
29/10/2015,http://opendatacommunities.org/id/county-council/surrey,Surrey,http://id.esd.org.uk/service/1465,Council expenditure,10/07/2015,CHEYNE WALK COMMUNITY HOME,WWW.TEAM-SPORT.CO.UK,87.98,EDUC VISITS/HOLS/CAMPS/TOYS,"AMUSEMENT PARKS,CARNIVALS,CIRCUS,FORTUNE TELLERS"
29/10/2015,http://opendatacommunities.org/id/county-council/surrey,Surrey,http://id.esd.org.uk/service/1465,Council expenditure,10/07/2015,SERVICE MARKETING,AMAZON EU,36.99,EQUIPMENT,DIRECT MARKETING-OTHER DIRECT MARKETERS/NOT ELSEW.
29/10/2015,http://opendatacommunities.org/id/county-council/surrey,Surrey,http://id.esd.org.uk/service/1465,Council expenditure,10/07/2015,KARIBU COMMUNITY HOME,TESCO STORE 2812,402.32,PURCHASE OF FOOD (RAW MATERIALS),"GROCERY STORES, SUPERMARKETS"
29/10/2015,http://opendatacommunities.org/id/county-council/surrey,Surrey,http://id.esd.org.uk/service/1465,Council expenditure,10/07/2015,NW CARE - NON-LAC CP & COURT,HAMPSHIRE COUNTY COUNC,23,FEES,GOVERNMENT SERVICES-NOT ELSEWHERE CLASSIFIED
29/10/2015,http://opendatacommunities.org/id/county-council/surrey,Surrey,http://id.esd.org.uk/service/1465,Council expenditure,10/07/2015,SW LOOKED AFTER TEAM,TRAVELODGE WEBSITE,206.95,OTHER COMMUNITY CARE PRIV,TRAVELODGE
29/10/2015,http://opendatacommunities.org/id/county-council/surrey,Surrey,http://id.esd.org.uk/service/1465,Council expenditure,10/07/2015,LEAP WOKING,WWW.CITIZENCARD.COM,15,EDUC VISITS/HOLS/CAMPS/TOYS,GOVERNMENT SERVICES-NOT ELSEWHERE CLASSIFIED
29/10/2015,http://opendatacommunities.org/id/county-council/surrey,Surrey,http://id.esd.org.uk/service/1465,Council expenditure,10/07/2015,TARGETED INTERVENTION,FREEDOM LEISURE,7.95,EDUC VISITS/HOLS/CAMPS/TOYS,GOVERNMENT SERVICES-NOT ELSEWHERE CLASSIFIED
29/10/2015,http://opendatacommunities.org/id/county-council/surrey,Surrey,http://id.esd.org.uk/service/1465,Council expenditure,10/07/2015,SERVICE DELIVERY RESOURCES,WWW.NISBETS.COM,129.48,CLEANING MATERIALS,DIRECT MARKETING-CATALOG MERCHANTS
29/10/2015,http://opendatacommunities.org/id/county-council/surrey,Surrey,http://id.esd.org.uk/service/1465,Council expenditure,10/07/2015,HILLSIDE,SAINSBURYS SACAT 0675,75.45,PURCHASE OF FOOD (RAW MATERIALS),"GROCERY STORES, SUPERMARKETS"
29/10/2015,http://opendatacommunities.org/id/county-council/surrey,Surrey,http://id.esd.org.uk/service/1465,Council expenditure,10/07/2015,WOODLANDS COMMUNITY HOME,"AMAZON SVCS EUROPE,SAR",10.48,EDUC VISITS/HOLS/CAMPS/TOYS,BOOK STORES
29/10/2015,http://opendatacommunities.org/id/county-council/surrey,Surrey,http://id.esd.org.uk/service/1465,Council expenditure,10/07/2015,LIBERTAS COMMUNITY HOME,EASYJET00 000EPCRJ1M,427.85,EDUC VISITS/HOLS/CAMPS/TOYS,EASYJET
29/10/2015,http://opendatacommunities.org/id/county-council/surrey,Surrey,http://id.esd.org.uk/service/1465,Council expenditure,10/07/2015,NE AREA SEN MANAGEMENT TEAM,AMAZON EU,74.22,EQUIPMENT,DIRECT MARKETING-OTHER DIRECT MARKETERS/NOT ELSEW.
29/10/2015,http://opendatacommunities.org/id/county-council/surrey,Surrey,http://id.esd.org.uk/service/1465,Council expenditure,10/07/2015,E&I - COMMUNITY RECYCLING CENTRES       ,WWW.RYMAN.CO.UK,205.8,STATIONERY,"OFFICE, SCHOOL SUPPLY, AND STATIONERY STORES"
29/10/2015,http://opendatacommunities.org/id/county-council/surrey,Surrey,http://id.esd.org.uk/service/1465,Council expenditure,10/07/2015,PSSS VISUALLY IMPAIRED,RNIB CHARITY,45,EQUIPMENT,DENTAL/LAB/MED/OPHTHALMIC HOSP EQUIP & SUPPLIES
29/10/2015,http://opendatacommunities.org/id/county-council/surrey,Surrey,http://id.esd.org.uk/service/1465,Council expenditure,10/07/2015,NE CARE - LAC,SURREY CC CARD PAY,11,CHILDREN ACT SEC 17 PAYMENTS,COMPUTER NETWORK/INFORMATION SERVICES
29/10/2015,http://opendatacommunities.org/id/county-council/surrey,Surrey,http://id.esd.org.uk/service/1465,Council expenditure,10/07/2015,PSSS VISUALLY IMPAIRED,AMAZON UK MARKETPLACE,143.84,EQUIPMENT,BOOK STORES
29/10/2015,http://opendatacommunities.org/id/county-council/surrey,Surrey,http://id.esd.org.uk/service/1465,Council expenditure,10/07/2015,WOODLANDS COMMUNITY HOME,AMAZON UK MARKETPLACE,15.98,EDUC VISITS/HOLS/CAMPS/TOYS,BOOK STORES
29/10/2015,http://opendatacommunities.org/id/county-council/surrey,Surrey,http://id.esd.org.uk/service/1465,Council expenditure,10/07/2015,TRANSPORT,AMAZON EU,11.9,COMPUTER CONSUMABLES,DIRECT MARKETING-OTHER DIRECT MARKETERS/NOT ELSEW.
29/10/2015,http://opendatacommunities.org/id/county-council/surrey,Surrey,http://id.esd.org.uk/service/1465,Council expenditure,10/07/2015,WOODLANDS COMMUNITY HOME,AMAZON UK MARKETPLACE,11.85,EDUC VISITS/HOLS/CAMPS/TOYS,BOOK STORES
29/10/2015,http://opendatacommunities.org/id/county-council/surrey,Surrey,http://id.esd.org.uk/service/1465,Council expenditure,10/07/2015,WOODLANDS COMMUNITY HOME,AMAZON UK MARKETPLACE,44.9,EDUC VISITS/HOLS/CAMPS/TOYS,BOOK STORES
29/10/2015,http://opendatacommunities.org/id/county-council/surrey,Surrey,http://id.esd.org.uk/service/1465,Council expenditure,10/07/2015,WOODLANDS COMMUNITY HOME,AMAZON UK MARKETPLACE,9.61,EDUC VISITS/HOLS/CAMPS/TOYS,BOOK STORES
29/10/2015,http://opendatacommunities.org/id/county-council/surrey,Surrey,http://id.esd.org.uk/service/1465,Council expenditure,10/07/2015,WOODLANDS COMMUNITY HOME,AMAZON UK MARKETPLACE,79.98,EDUC VISITS/HOLS/CAMPS/TOYS,BOOK STORES
29/10/2015,http://opendatacommunities.org/id/county-council/surrey,Surrey,http://id.esd.org.uk/service/1465,Council expenditure,11/07/2015,KARIBU COMMUNITY HOME,ODEON,9.45,PURCHASE OF FOOD (RAW MATERIALS),MOTION PICTURE THEATERS
29/10/2015,http://opendatacommunities.org/id/county-council/surrey,Surrey,http://id.esd.org.uk/service/1465,Council expenditure,11/07/2015,HOLLAND CLOSE RESIDENTIAL HOME,TESCO-STORES 6647,188.55,PURCHASE OF FOOD (RAW MATERIALS),"GROCERY STORES, SUPERMARKETS"
29/10/2015,http://opendatacommunities.org/id/county-council/surrey,Surrey,http://id.esd.org.uk/service/1465,Council expenditure,11/07/2015,CHEYNE WALK COMMUNITY HOME,PREZZO,66.6,PURCHASE OF FOOD (RAW MATERIALS),"EATING PLACES, RESTAURANTS"
29/10/2015,http://opendatacommunities.org/id/county-council/surrey,Surrey,http://id.esd.org.uk/service/1465,Council expenditure,11/07/2015,NE LOOKED AFTER TEAM,PREMIER INN44530660,205.98,OTHER COMMUNITY CARE PRIV,PREMIER INN
29/10/2015,http://opendatacommunities.org/id/county-council/surrey,Surrey,http://id.esd.org.uk/service/1465,Council expenditure,11/07/2015,HILLSIDE,SAINSBURYS 0675,2.24,PURCHASE OF FOOD (RAW MATERIALS),"GROCERY STORES, SUPERMARKETS"
29/10/2015,http://opendatacommunities.org/id/county-council/surrey,Surrey,http://id.esd.org.uk/service/1465,Council expenditure,11/07/2015,HILLSIDE,ARGOS RETAIL GROUP,89.98,EQUIPMENT,DISCOUNT STORES
29/10/2015,http://opendatacommunities.org/id/county-council/surrey,Surrey,http://id.esd.org.uk/service/1465,Council expenditure,11/07/2015,WOODLANDS COMMUNITY HOME,LEADSTONE CAMPING,86.7,EDUC VISITS/HOLS/CAMPS/TOYS,"LODGING-HOTELS,MOTELS,RESORTS-NOT CLASSIFIED"
29/10/2015,http://opendatacommunities.org/id/county-council/surrey,Surrey,http://id.esd.org.uk/service/1465,Council expenditure,11/07/2015,"SW REF, ASS & INT SERVICE - HUB 1",TRAVELODGE WEBSITE,49.65,OTHER COMMUNITY CARE PRIV,TRAVELODGE
29/10/2015,http://opendatacommunities.org/id/county-council/surrey,Surrey,http://id.esd.org.uk/service/1465,Council expenditure,11/07/2015,CHEYNE WALK COMMUNITY HOME,LA MODA REDHILL,26,EQUIPMENT,BARBER AND BEAUTY SHOPS
29/10/2015,http://opendatacommunities.org/id/county-council/surrey,Surrey,http://id.esd.org.uk/service/1465,Council expenditure,11/07/2015,WOODLANDS COMMUNITY HOME,SAINSBURYS,13.7,PURCHASE OF FOOD (RAW MATERIALS),"GROCERY STORES, SUPERMARKETS"
29/10/2015,http://opendatacommunities.org/id/county-council/surrey,Surrey,http://id.esd.org.uk/service/1465,Council expenditure,11/07/2015,WOODLANDS COMMUNITY HOME,SAINSBURYS,26.22,3RD PARTY PAYMENTS PRIVATE INDIV,"GROCERY STORES, SUPERMARKETS"
29/10/2015,http://opendatacommunities.org/id/county-council/surrey,Surrey,http://id.esd.org.uk/service/1465,Council expenditure,11/07/2015,WOODLANDS COMMUNITY HOME,SAINSBURYS,17.49,EQUIPMENT,"GROCERY STORES, SUPERMARKETS"
29/10/2015,http://opendatacommunities.org/id/county-council/surrey,Surrey,http://id.esd.org.uk/service/1465,Council expenditure,11/07/2015,WOODLANDS COMMUNITY HOME,SAINSBURYS,59.85,PURCHASE OF FOOD (RAW MATERIALS),"GROCERY STORES, SUPERMARKETS"
29/10/2015,http://opendatacommunities.org/id/county-council/surrey,Surrey,http://id.esd.org.uk/service/1465,Council expenditure,11/07/2015,HOPE SERVICE - EAST,"AMAZON SVCS EUROPE,SAR",3.1,CURRICULUM CONSUMABLES,BOOK STORES
29/10/2015,http://opendatacommunities.org/id/county-council/surrey,Surrey,http://id.esd.org.uk/service/1465,Council expenditure,11/07/2015,HILLSIDE,SAINSBURYS 0675,16.75,PURCHASE OF FOOD (RAW MATERIALS),"GROCERY STORES, SUPERMARKETS"
29/10/2015,http://opendatacommunities.org/id/county-council/surrey,Surrey,http://id.esd.org.uk/service/1465,Council expenditure,11/07/2015,MALLOW CRESCENT,GUILDFORD COBBLERS,5.5,EQUIPMENT,"HAT CLEANING SHOPS, SHOE REPAIR SHOPS, SHOE SHINE"
